Body Name,Body,Organisational unit,Service division,Expenditure category,Date,Transacton number,Net amount,Supplier,Narrative
Tendring DC,http://statistics.data.gov.uk/id/local-authority-district/22UN,Corporate Services,1800 - Qualification and Other Training,1700 - Training - Courses,23/09/2014,1061244-1,126,REDACTED PERSONAL DATA,REDACTED PERSONAL DATA
Tendring DC,http://statistics.data.gov.uk/id/local-authority-district/22UN,Corporate Services,1620 - IT Section Service Unit,3300 - Public Transport - Officers,16/09/2014,1061073-1,16,REDACTED PERSONAL DATA,REDACTED PERSONAL DATA
Tendring DC,http://statistics.data.gov.uk/id/local-authority-district/22UN,Corporate Services,1620 - IT Section Service Unit,3300 - Public Transport - Officers,16/09/2014,1061074-1,16,REDACTED PERSONAL DATA,REDACTED PERSONAL DATA
Tendring DC,http://statistics.data.gov.uk/id/local-authority-district/22UN,Corporate Services,1620 - IT Section Service Unit,3300 - Public Transport - Officers,30/09/2014,1061265-1,16,REDACTED PERSONAL DATA,REDACTED PERSONAL DATA
Tendring DC,http://statistics.data.gov.uk/id/local-authority-district/22UN,Corporate Services,1620 - IT Section Service Unit,3300 - Public Transport - Officers,23/09/2014,7015015-1,16,REDACTED PERSONAL DATA,REDACTED PERSONAL DATA
Tendring DC,http://statistics.data.gov.uk/id/local-authority-district/22UN,Corporate Services,4820 - Public Conveniences,6300 - Contract Payment,09/09/2014,1060929-1,174.58,REDACTED PERSONAL DATA,REDACTED PERSONAL DATA
Tendring DC,http://statistics.data.gov.uk/id/local-authority-district/22UN,Corporate Services,4820 - Public Conveniences,6300 - Contract Payment,23/09/2014,1061200-1,249.4,2104045 - Adecco UK Ltd,ADECCO-PUBLIC CONVENIENCE
Tendring DC,http://statistics.data.gov.uk/id/local-authority-district/22UN,Corporate Services,4820 - Public Conveniences,6300 - Contract Payment,02/09/2014,2115733-1,87.29,2104045 - Adecco UK Ltd,adecco
Tendring DC,http://statistics.data.gov.uk/id/local-authority-district/22UN,Corporate Services,1950 - Transport,3062 - Running Costs - Petrol,09/09/2014,2115972-1,126.3,2101825 - Allstar Business Solutions Ltd,courier fuel
Tendring DC,http://statistics.data.gov.uk/id/local-authority-district/22UN,Corporate Services,6975 - Community Builder,5500 - Miscellaneous Expenses,09/09/2014,2115936-1,250,2109992 - Anglian Community Enterprise,nhs
Tendring DC,http://statistics.data.gov.uk/id/local-authority-district/22UN,Corporate Services,1300 - Legal Services Service Unit,4355 - Books & Periodicals,16/09/2014,2116193-1,95,2112776 - ARK Conferences Ltd,ark conferences ltd
Tendring DC,http://statistics.data.gov.uk/id/local-authority-district/22UN,Corporate Services,1432 - TDC Website,4500 - Consultancy Fees,16/09/2014,2116206-1,1055,2109504 - Associated Knowledge Systems Ltd,e-petition egenda
Tendring DC,http://statistics.data.gov.uk/id/local-authority-district/22UN,Corporate Services,6580 - Member Support Cost,4753 - Computer - Application Software,23/09/2014,7014979-1,4110,2109504 - Associated Knowledge Systems Ltd,ANNUAL E-GENDA FEE
Tendring DC,http://statistics.data.gov.uk/id/local-authority-district/22UN,Corporate Services,1320 - Print Unit Service Unit,4302 - External Print Unit Expenses,09/09/2014,2115940-1,45,2100069 - Autoprint,job 297
Tendring DC,http://statistics.data.gov.uk/id/local-authority-district/22UN,Corporate Services,1320 - Print Unit Service Unit,4302 - External Print Unit Expenses,09/09/2014,2115941-1,33,2100069 - Autoprint,job 269
Tendring DC,http://statistics.data.gov.uk/id/local-authority-district/22UN,Corporate Services,7240 - Electoral Registration Expenses,4300 - Printing & Stationery,09/09/2014,1060915-1,-50.74,2100111 - Banner Business Supplies Ltd,CREDIT A3 COLOURTECH
Tendring DC,http://statistics.data.gov.uk/id/local-authority-district/22UN,Corporate Services,1100 - Corporate Director (Corporate Services) and Admin Service Unit,4300 - Printing & Stationery,02/09/2014,2115873-1,2.1,2100111 - Banner Business Supplies Ltd,part order banner
Tendring DC,http://statistics.data.gov.uk/id/local-authority-district/22UN,Corporate Services,6560 - Other Democratic Costs,4110 - General Provisions,09/09/2014,2115958-1,3.18,2100111 - Banner Business Supplies Ltd,misc stationery
Tendring DC,http://statistics.data.gov.uk/id/local-authority-district/22UN,Corporate Services,7240 - Electoral Registration Expenses,4300 - Printing & Stationery,09/09/2014,2115958-2,16.14,2100111 - Banner Business Supplies Ltd,misc stationery
Tendring DC,http://statistics.data.gov.uk/id/local-authority-district/22UN,Corporate Services,1100 - Corporate Director (Corporate Services) and Admin Service Unit,4300 - Printing & Stationery,09/09/2014,2115958-3,35.92,2100111 - Banner Business Supplies Ltd,misc stationery
Tendring DC,http://statistics.data.gov.uk/id/local-authority-district/22UN,Corporate Services,1100 - Corporate Director (Corporate Services) and Admin Service Unit,4300 - Printing & Stationery,09/09/2014,2115963-1,378.05,2100111 - Banner Business Supplies Ltd,banner
Tendring DC,http://statistics.data.gov.uk/id/local-authority-district/22UN,Corporate Services,6560 - Other Democratic Costs,4110 - General Provisions,16/09/2014,2116205-1,6.36,2100111 - Banner Business Supplies Ltd,paper/envelopes
Tendring DC,http://statistics.data.gov.uk/id/local-authority-district/22UN,Corporate Services,6580 - Member Support Cost,4300 - Printing & Stationery,16/09/2014,2116205-2,81.68,2100111 - Banner Business Supplies Ltd,paper/envelopes
Tendring DC,http://statistics.data.gov.uk/id/local-authority-district/22UN,Corporate Services,7220 - Election Expenses,4486 - Election Expenses,16/09/2014,2116205-3,84.72,2100111 - Banner Business Supplies Ltd,paper/envelopes
Tendring DC,http://statistics.data.gov.uk/id/local-authority-district/22UN,Corporate Services,1100 - Corporate Director (Corporate Services) and Admin Service Unit,4300 - Printing & Stationery,16/09/2014,2116205-4,21.18,2100111 - Banner Business Supplies Ltd,paper/envelopes
Tendring DC,http://statistics.data.gov.uk/id/local-authority-district/22UN,Corporate Services,1100 - Corporate Director (Corporate Services) and Admin Service Unit,4300 - Printing & Stationery,16/09/2014,2116211-1,10.04,2100111 - Banner Business Supplies Ltd,banner
Tendring DC,http://statistics.data.gov.uk/id/local-authority-district/22UN,Corporate Services,1100 - Corporate Director (Corporate Services) and Admin Service Unit,4300 - Printing & Stationery,23/09/2014,7015004-1,24.18,2100111 - Banner Business Supplies Ltd,BANNER ORDER BENE FRAUD
Tendring DC,http://statistics.data.gov.uk/id/local-authority-district/22UN,Corporate Services,6580 - Member Support Cost,4300 - Printing & Stationery,30/09/2014,7015040-1,32.28,2100111 - Banner Business Supplies Ltd,MISC STATIONERY
Tendring DC,http://statistics.data.gov.uk/id/local-authority-district/22UN,Corporate Services,7200 - LSP/Community Strategy,4300 - Printing & Stationery,30/09/2014,7015040-2,8.51,2100111 - Banner Business Supplies Ltd,MISC STATIONERY
Tendring DC,http://statistics.data.gov.uk/id/local-authority-district/22UN,Corporate Services,1100 - Corporate Director (Corporate Services) and Admin Service Unit,4300 - Printing & Stationery,30/09/2014,7015040-3,55.2,2100111 - Banner Business Supplies Ltd,MISC STATIONERY
Tendring DC,http://statistics.data.gov.uk/id/local-authority-district/22UN,Corporate Services,7100 - Community Health/Safety,4900 - Grants,30/09/2014,7015044-1,50.4,2100111 - Banner Business Supplies Ltd,BANNER ORDER
Tendring DC,http://statistics.data.gov.uk/id/local-authority-district/22UN,Corporate Services,1100 - Corporate Director (Corporate Services) and Admin Service Unit,4300 - Printing & Stationery,30/09/2014,7015044-2,40.78,2100111 - Banner Business Supplies Ltd,BANNER ORDER
Tendring DC,http://statistics.data.gov.uk/id/local-authority-district/22UN,Corporate Services,5220 - HRA - Policy & Management,5930 - Business Planning Expenses,09/09/2014,2116063-1,238.5,2112486 - Basildon District Council,airshow injunction
Tendring DC,http://statistics.data.gov.uk/id/local-authority-district/22UN,Corporate Services,1930 - Asset Management Service Unit,4469 - Other Non - Legal Professional Services,09/09/2014,2116074-1,500,2113948 - Blackman Surveyors LLP,old road cp valuation
Tendring DC,http://statistics.data.gov.uk/id/local-authority-district/22UN,Corporate Services,1930 - Asset Management Service Unit,4469 - Other Non - Legal Professional Services,16/09/2014,2116075-1,300,2113948 - Blackman Surveyors LLP,valuation car park elmstead market
Tendring DC,http://statistics.data.gov.uk/id/local-authority-district/22UN,Corporate Services,1760 - IT Direct Service Costs,4753 - Computer - Application Software,23/09/2014,7014985-1,216.3,2111031 - Boldon James Ltd,CLASSIFIER SUPPORT 100 LIC
Tendring DC,http://statistics.data.gov.uk/id/local-authority-district/22UN,Corporate Services,C080 - Joint HR and Payroll System,C274 - Purchase of Software,09/09/2014,1060928-1,60,2106181 - Bond International Software (UK) Ltd,TEAMSPIRIT
Tendring DC,http://statistics.data.gov.uk/id/local-authority-district/22UN,Corporate Services,C080 - Joint HR and Payroll System,C274 - Purchase of Software,23/09/2014,1061201-1,3150,2108648 - Bond International Software (UK) Ltd,TEAMSPIRIT 31/08/2014
Tendring DC,http://statistics.data.gov.uk/id/local-authority-district/22UN,Corporate Services,C080 - Joint HR and Payroll System,C274 - Purchase of Software,23/09/2014,1061202-1,1415.7,2108648 - Bond International Software (UK) Ltd,TEAMSPIRIT
Tendring DC,http://statistics.data.gov.uk/id/local-authority-district/22UN,Corporate Services,1760 - IT Direct Service Costs,4715 - Data Communication Charge,30/09/2014,2116338-1,46.89,2100168 - British Telecommunications plc,0166 sept 14
Tendring DC,http://statistics.data.gov.uk/id/local-authority-district/22UN,Corporate Services,1760 - IT Direct Service Costs,4715 - Data Communication Charge,30/09/2014,2116339-1,45.37,2100168 - British Telecommunications plc,7075 sept 14
Tendring DC,http://statistics.data.gov.uk/id/local-authority-district/22UN,Corporate Services,1760 - IT Direct Service Costs,4715 - Data Communication Charge,30/09/2014,2116340-1,46.89,2100168 - British Telecommunications plc,8418 sept 14
Tendring DC,http://statistics.data.gov.uk/id/local-authority-district/22UN,Corporate Services,1760 - IT Direct Service Costs,4715 - Data Communication Charge,30/09/2014,2116341-1,45.36,2100168 - British Telecommunications plc,7071 sept 14
Tendring DC,http://statistics.data.gov.uk/id/local-authority-district/22UN,Corporate Services,1760 - IT Direct Service Costs,4715 - Data Communication Charge,30/09/2014,2116342-1,45.36,2100168 - British Telecommunications plc,8827 sept 14
Tendring DC,http://statistics.data.gov.uk/id/local-authority-district/22UN,Corporate Services,1760 - IT Direct Service Costs,4715 - Data Communication Charge,30/09/2014,2116343-1,51.57,2100168 - British Telecommunications plc,7234 sept 14
Tendring DC,http://statistics.data.gov.uk/id/local-authority-district/22UN,Corporate Services,1760 - IT Direct Service Costs,4715 - Data Communication Charge,30/09/2014,2116362-1,46.89,2100168 - British Telecommunications plc,1625 sept 14
Tendring DC,http://statistics.data.gov.uk/id/local-authority-district/22UN,Corporate Services,1760 - IT Direct Service Costs,4715 - Data Communication Charge,30/09/2014,2116362-2,13.5,2100168 - British Telecommunications plc,1625 sept 14
Tendring DC,http://statistics.data.gov.uk/id/local-authority-district/22UN,Corporate Services,1760 - IT Direct Service Costs,4715 - Data Communication Charge,30/09/2014,2116363-1,45.36,2100168 - British Telecommunications plc,8878 sept 14
Tendring DC,http://statistics.data.gov.uk/id/local-authority-district/22UN,Corporate Services,1760 - IT Direct Service Costs,4715 - Data Communication Charge,30/09/2014,2116364-1,161.5,2100168 - British Telecommunications plc,7437 sept 14
Tendring DC,http://statistics.data.gov.uk/id/local-authority-district/22UN,Corporate Services,1760 - IT Direct Service Costs,4715 - Data Communication Charge,30/09/2014,2116365-1,124.7,2100168 - British Telecommunications plc,1327 sept 14
Tendring DC,http://statistics.data.gov.uk/id/local-authority-district/22UN,Corporate Services,1760 - IT Direct Service Costs,4715 - Data Communication Charge,30/09/2014,2116366-1,45.37,2100168 - British Telecommunications plc,3347 SEPT 14
Tendring DC,http://statistics.data.gov.uk/id/local-authority-district/22UN,Corporate Services,1840 - Central Telephone Service,4710 - Telephones - Charges,02/09/2014,7014853-1,5979.27,2100168 - British Telecommunications plc,3574 4802 AUG 14
Tendring DC,http://statistics.data.gov.uk/id/local-authority-district/22UN,Corporate Services,1760 - IT Direct Service Costs,4715 - Data Communication Charge,23/09/2014,7014986-1,188.94,2100168 - British Telecommunications plc,2194 SEPT 14
Tendring DC,http://statistics.data.gov.uk/id/local-authority-district/22UN,Corporate Services,1760 - IT Direct Service Costs,4715 - Data Communication Charge,23/09/2014,7014986-2,13.5,2100168 - British Telecommunications plc,2194 SEPT 14
Tendring DC,http://statistics.data.gov.uk/id/local-authority-district/22UN,Corporate Services,1760 - IT Direct Service Costs,4715 - Data Communication Charge,23/09/2014,7014987-1,926.32,2100168 - British Telecommunications plc,3820 SEPT 14
Tendring DC,http://statistics.data.gov.uk/id/local-authority-district/22UN,Corporate Services,1840 - Central Telephone Service,4710 - Telephones - Charges,23/09/2014,7014988-1,13.5,2100168 - British Telecommunications plc,4308 SEPT 14
Tendring DC,http://statistics.data.gov.uk/id/local-authority-district/22UN,Corporate Services,1840 - Central Telephone Service,4710 - Telephones - Charges,23/09/2014,7014988-2,1180.52,2100168 - British Telecommunications plc,4308 SEPT 14
Tendring DC,http://statistics.data.gov.uk/id/local-authority-district/22UN,Corporate Services,9900 - General Fund Balance Sheet,B879 - Charges made by Merchant Acquirer,08/09/2014,7800518-1,18.9,2100202 - Capita Business Services Ltd,CAPITA - August 2014
Tendring DC,http://statistics.data.gov.uk/id/local-authority-district/22UN,Corporate Services,9900 - General Fund Balance Sheet,B879 - Charges made by Merchant Acquirer,08/09/2014,7800518-3,28.84,2100202 - Capita Business Services Ltd,CAPITA - August 2014
Tendring DC,http://statistics.data.gov.uk/id/local-authority-district/22UN,Corporate Services,9900 - General Fund Balance Sheet,B879 - Charges made by Merchant Acquirer,08/09/2014,7800518-4,55.62,2100202 - Capita Business Services Ltd,CAPITA - August 2014
Tendring DC,http://statistics.data.gov.uk/id/local-authority-district/22UN,Corporate Services,9900 - General Fund Balance Sheet,B879 - Charges made by Merchant Acquirer,08/09/2014,7800518-5,303.29,2100202 - Capita Business Services Ltd,CAPITA - August 2014
Tendring DC,http://statistics.data.gov.uk/id/local-authority-district/22UN,Corporate Services,9900 - General Fund Balance Sheet,B879 - Charges made by Merchant Acquirer,08/09/2014,7800518-6,490.14,2100202 - Capita Business Services Ltd,CAPITA - August 2014
Tendring DC,http://statistics.data.gov.uk/id/local-authority-district/22UN,Corporate Services,9900 - General Fund Balance Sheet,B879 - Charges made by Merchant Acquirer,08/09/2014,7800518-7,349.49,2100202 - Capita Business Services Ltd,CAPITA - August 2014
Tendring DC,http://statistics.data.gov.uk/id/local-authority-district/22UN,Corporate Services,9900 - General Fund Balance Sheet,B879 - Charges made by Merchant Acquirer,08/09/2014,7800518-8,374.04,2100202 - Capita Business Services Ltd,CAPITA - August 2014
Tendring DC,http://statistics.data.gov.uk/id/local-authority-district/22UN,Corporate Services,9900 - General Fund Balance Sheet,B879 - Charges made by Merchant Acquirer,08/09/2014,7800518-9,290.82,2100202 - Capita Business Services Ltd,CAPITA - August 2014
Tendring DC,http://statistics.data.gov.uk/id/local-authority-district/22UN,Corporate Services,1100 - Corporate Director (Corporate Services) and Admin Service Unit,4300 - Printing & Stationery,09/09/2014,2115898-1,49.99,2100265 - Child Poverty Action Group,benefit book
Tendring DC,http://statistics.data.gov.uk/id/local-authority-district/22UN,Corporate Services,1120 - Accountancy Service Unit,4753 - Computer - Application Software,23/09/2014,2116290-1,3210,2109394 - CIPFA Business Ltd,asset manager 011014 to 300915
Tendring DC,http://statistics.data.gov.uk/id/local-authority-district/22UN,Corporate Services,1320 - Print Unit Service Unit,4302 - External Print Unit Expenses,23/09/2014,7015019-1,695,2113356 - Classique Design & Print Limted,JOB 274
Tendring DC,http://statistics.data.gov.uk/id/local-authority-district/22UN,Corporate Services,9900 - General Fund Balance Sheet,B382 - Rechargeable Works - Other,16/09/2014,1061133-1,440,REDACTED PERSONAL DATA,REDACTED PERSONAL DATA
Tendring DC,http://statistics.data.gov.uk/id/local-authority-district/22UN,Corporate Services,9900 - General Fund Balance Sheet,B382 - Rechargeable Works - Other,16/09/2014,1061133-2,-440,REDACTED PERSONAL DATA,REDACTED PERSONAL DATA
Tendring DC,http://statistics.data.gov.uk/id/local-authority-district/22UN,Corporate Services,8680 - Rural Infrastructure Improvement Fund,4884 - Credit Union Joining Fees,30/09/2014,1061275-1,63,2114332 - Colchester Credit Union Ltd,CREDIT UNION MEMBERSHIP FEES
Tendring DC,http://statistics.data.gov.uk/id/local-authority-district/22UN,Corporate Services,1800 - Qualification and Other Training,1700 - Training - Courses,30/09/2014,7015054-1,650,REDACTED PERSONAL DATA,REDACTED PERSONAL DATA
Tendring DC,http://statistics.data.gov.uk/id/local-authority-district/22UN,Corporate Services,1800 - Qualification and Other Training,1700 - Training - Courses,30/09/2014,7015055-1,180,REDACTED PERSONAL DATA,REDACTED PERSONAL DATA
Tendring DC,http://statistics.data.gov.uk/id/local-authority-district/22UN,Corporate Services,1800 - Qualification and Other Training,1700 - Training - Courses,30/09/2014,7015056-1,180,REDACTED PERSONAL DATA,REDACTED PERSONAL DATA
Tendring DC,http://statistics.data.gov.uk/id/local-authority-district/22UN,Corporate Services,1800 - Qualification and Other Training,1700 - Training - Courses,30/09/2014,7015057-1,650,REDACTED PERSONAL DATA,REDACTED PERSONAL DATA
Tendring DC,http://statistics.data.gov.uk/id/local-authority-district/22UN,Corporate Services,6620 - Corporate Management - General,5190 - Bank Commission Charges,01/09/2014,7800569-0,2,2100304 - CO-OP Bank,RB Aug 14
Tendring DC,http://statistics.data.gov.uk/id/local-authority-district/22UN,Corporate Services,6040 - Miscellaneous Seafront Activities,4040 - Equipment & Tools,01/09/2014,7800569-11,622.5,2100304 - CO-OP Bank,RB Aug 14
Tendring DC,http://statistics.data.gov.uk/id/local-authority-district/22UN,Corporate Services,1780 - Health & Safety,5500 - Miscellaneous Expenses,01/09/2014,7800569-2,710,2100304 - CO-OP Bank,RB Aug 14
Tendring DC,http://statistics.data.gov.uk/id/local-authority-district/22UN,Corporate Services,4720 - Dog Warden,4040 - Equipment & Tools,01/09/2014,7800569-4,104.17,2100304 - CO-OP Bank,RB Aug 14
Tendring DC,http://statistics.data.gov.uk/id/local-authority-district/22UN,Corporate Services,1780 - Health & Safety,5500 - Miscellaneous Expenses,01/09/2014,7800569-6,260.83,2100304 - CO-OP Bank,RB Aug 14
Tendring DC,http://statistics.data.gov.uk/id/local-authority-district/22UN,Corporate Services,6920 - Youth Initiatives,5164 - Project Expenses,01/09/2014,7800569-7,39.63,2100304 - CO-OP Bank,RB Aug 14
Tendring DC,http://statistics.data.gov.uk/id/local-authority-district/22UN,Corporate Services,H880 - New Build Initiatives and Acquisitions,C200 - Main Contractor,01/09/2014,7800569-9,16.5,2100304 - CO-OP Bank,RB Aug 14
Tendring DC,http://statistics.data.gov.uk/id/local-authority-district/22UN,Corporate Services,"1580 - Benefits, Revenues and Customer Contact SU",4461 - Court Fees,01/09/2014,7800571-0,3029,2100304 - CO-OP Bank,Court Costs Aug 14 JB
Tendring DC,http://statistics.data.gov.uk/id/local-authority-district/22UN,Corporate Services,5260 - HRA - Rent Collection And Accounting,4461 - Court Fees,01/09/2014,7800572-1,1300,2100304 - CO-OP Bank,Credit Card Aug 14 PP
Tendring DC,http://statistics.data.gov.uk/id/local-authority-district/22UN,Corporate Services,5480 - HRA - Repair & Maintenance,4040 - Equipment & Tools,01/09/2014,7800572-10,58.5,2100304 - CO-OP Bank,Credit Card Aug 14 PP
Tendring DC,http://statistics.data.gov.uk/id/local-authority-district/22UN,Corporate Services,"1580 - Benefits, Revenues and Customer Contact SU",4040 - Equipment & Tools,01/09/2014,7800572-11,179.95,2100304 - CO-OP Bank,Credit Card Aug 14 PP
Tendring DC,http://statistics.data.gov.uk/id/local-authority-district/22UN,Corporate Services,1650 - Building Services Service Unit,4300 - Printing & Stationery,01/09/2014,7800572-12,50.83,2100304 - CO-OP Bank,Credit Card Aug 14 PP
Tendring DC,http://statistics.data.gov.uk/id/local-authority-district/22UN,Corporate Services,6620 - Corporate Management - General,5190 - Bank Commission Charges,01/09/2014,7800572-3,2,2100304 - CO-OP Bank,Credit Card Aug 14 PP
Tendring DC,http://statistics.data.gov.uk/id/local-authority-district/22UN,Corporate Services,H860 - Disabled Adaptations,C200 - Main Contractor,01/09/2014,7800572-5,2170.8,2100304 - CO-OP Bank,Credit Card Aug 14 PP
Tendring DC,http://statistics.data.gov.uk/id/local-authority-district/22UN,Corporate Services,5480 - HRA - Repair & Maintenance,4040 - Equipment & Tools,01/09/2014,7800572-7,70.02,2100304 - CO-OP Bank,Credit Card Aug 14 PP
Tendring DC,http://statistics.data.gov.uk/id/local-authority-district/22UN,Corporate Services,5480 - HRA - Repair & Maintenance,4040 - Equipment & Tools,01/09/2014,7800572-9,-70.02,2100304 - CO-OP Bank,Credit Card Aug 14 PP
Tendring DC,http://statistics.data.gov.uk/id/local-authority-district/22UN,Corporate Services,6040 - Miscellaneous Seafront Activities,4040 - Equipment & Tools,01/09/2014,7800575-0,83.33,2100304 - CO-OP Bank,Dect Phone/Book/Talktalk - JH Aug 14
Tendring DC,http://statistics.data.gov.uk/id/local-authority-district/22UN,Corporate Services,1620 - IT Section Service Unit,4880 - Subscriptions Paid,01/09/2014,7800575-2,30.61,2100304 - CO-OP Bank,Dect Phone/Book/Talktalk - JH Aug 14
Tendring DC,http://statistics.data.gov.uk/id/local-authority-district/22UN,Corporate Services,5800 - Brightlingsea Sports Centre,4710 - Telephones - Charges,01/09/2014,7800575-4,45,2100304 - CO-OP Bank,Dect Phone/Book/Talktalk - JH Aug 14
Tendring DC,http://statistics.data.gov.uk/id/local-authority-district/22UN,Corporate Services,1760 - IT Direct Service Costs,4715 - Data Communication Charge,01/09/2014,7800575-6,15,2100304 - CO-OP Bank,Dect Phone/Book/Talktalk - JH Aug 14
Tendring DC,http://statistics.data.gov.uk/id/local-authority-district/22UN,Corporate Services,6620 - Corporate Management - General,5190 - Bank Commission Charges,01/09/2014,7800575-8,2,2100304 - CO-OP Bank,Dect Phone/Book/Talktalk - JH Aug 14
Tendring DC,http://statistics.data.gov.uk/id/local-authority-district/22UN,Corporate Services,1180 - Benefit Fraud Investigation Service Unit,5160 - Advertising,16/09/2014,2116225-1,350,2113364 - CPL Media Ltd,advert
Tendring DC,http://statistics.data.gov.uk/id/local-authority-district/22UN,Corporate Services,1760 - IT Direct Service Costs,4715 - Data Communication Charge,30/09/2014,2116337-1,236.97,2106704 - Daisy  Updata Communications Ltd,voice/data/inbound calls (daisy)
Tendring DC,http://statistics.data.gov.uk/id/local-authority-district/22UN,Corporate Services,1180 - Benefit Fraud Investigation Service Unit,5500 - Miscellaneous Expenses,16/09/2014,1061117-1,57,2102200 - David Horn Communications Ltd,IVC MACHINE SERVICE
Tendring DC,http://statistics.data.gov.uk/id/local-authority-district/22UN,Corporate Services,1930 - Asset Management Service Unit,4469 - Other Non - Legal Professional Services,30/09/2014,7015073-1,41.06,2107644 - E.ON,ELECTRICITY - GAS HOUSE QUAY
Tendring DC,http://statistics.data.gov.uk/id/local-authority-district/22UN,Corporate Services,1140 - Audit Services Service Unit,4880 - Subscriptions Paid,16/09/2014,2116150-1,100,2111249 - Essex Audit Group,eag 2014/15 subscription
Tendring DC,http://statistics.data.gov.uk/id/local-authority-district/22UN,Corporate Services,8660 - Fit for Purpose,5500 - Miscellaneous Expenses,16/09/2014,1061132-1,37586.63,REDACTED PERSONAL DATA,REDACTED PERSONAL DATA
Tendring DC,http://statistics.data.gov.uk/id/local-authority-district/22UN,Corporate Services,8971 - MIRS - Contributions Payable to the Pension Scheme,1810 - Superannuation - Financial Strain/Added Years,16/09/2014,7014869-3,16494.7,2100419 - Essex County Council,Pension 00013
Tendring DC,http://statistics.data.gov.uk/id/local-authority-district/22UN,Corporate Services,8971 - MIRS - Contributions Payable to the Pension Scheme,1822 - Superannuation - Port Health Pensions etc.,16/09/2014,7014870-2,826.37,2100419 - Essex County Council,Port Health Authority
Tendring DC,http://statistics.data.gov.uk/id/local-authority-district/22UN,Corporate Services,9880 - Collection Fund - Council Tax,R100 - Precept - ECC,15/09/2014,7800538-0,4724602,2100409 - Essex County Council,ECC precept Sept 2014
Tendring DC,http://statistics.data.gov.uk/id/local-authority-district/22UN,Corporate Services,9890 - Collection Fund - NNDR,R132 - NDR - Surplus/Deficit - ECC,15/09/2014,7800538-10,413,2100409 - Essex County Council,ECC precept Sept 2014
Tendring DC,http://statistics.data.gov.uk/id/local-authority-district/22UN,Corporate Services,9880 - Collection Fund - Council Tax,R110 - Council Tax Balance - ECC,15/09/2014,7800538-2,154977,2100409 - Essex County Council,ECC precept Sept 2014
Tendring DC,http://statistics.data.gov.uk/id/local-authority-district/22UN,Corporate Services,9890 - Collection Fund - NNDR,R127 - NDR - Essex County Retention,15/09/2014,7800538-4,221763,2100409 - Essex County Council,ECC precept Sept 2014
Tendring DC,http://statistics.data.gov.uk/id/local-authority-district/22UN,Corporate Services,6683 - Technical Discount Scheme,8109 - Technical  Discount Scheme - ECC Contribution,15/09/2014,7800538-6,-53463,2100409 - Essex County Council,ECC precept Sept 2014
Tendring DC,http://statistics.data.gov.uk/id/local-authority-district/22UN,Corporate Services,6420 - Cost Of Council Tax Collection,8124 - Contribution - Collection Investment/Hardship Admin.,15/09/2014,7800538-8,-11992,2100409 - Essex County Council,ECC precept Sept 2014
Tendring DC,http://statistics.data.gov.uk/id/local-authority-district/22UN,Corporate Services,1100 - Corporate Director (Corporate Services) and Admin Service Unit,1710 - Training - Central Department Budget,02/09/2014,2115734-1,25,2109345 - Essex County Council - ESAB,domestic abuse training
Tendring DC,http://statistics.data.gov.uk/id/local-authority-district/22UN,Corporate Services,9880 - Collection Fund - Council Tax,R101 - Precept - Essex Fire,15/09/2014,7800536-0,288758,2100469 - Essex Fire Authority,Essex Fire Precept Sept 2014
Tendring DC,http://statistics.data.gov.uk/id/local-authority-district/22UN,Corporate Services,9880 - Collection Fund - Council Tax,R111 - Council Tax Balance - Essex Fire,15/09/2014,7800536-2,9472,2100469 - Essex Fire Authority,Essex Fire Precept Sept 2014
Tendring DC,http://statistics.data.gov.uk/id/local-authority-district/22UN,Corporate Services,9890 - Collection Fund - NNDR,R128 - NDR - Fire Retention,15/09/2014,7800536-4,24640,2100469 - Essex Fire Authority,Essex Fire Precept Sept 2014
Tendring DC,http://statistics.data.gov.uk/id/local-authority-district/22UN,Corporate Services,6683 - Technical Discount Scheme,8109 - Technical  Discount Scheme - ECC Contribution,15/09/2014,7800536-6,-3268,2100469 - Essex Fire Authority,Essex Fire Precept Sept 2014
Tendring DC,http://statistics.data.gov.uk/id/local-authority-district/22UN,Corporate Services,9890 - Collection Fund - NNDR,R133 - NDR - Surplus/Deficit - Fire,15/09/2014,7800536-8,46,2100469 - Essex Fire Authority,Essex Fire Precept Sept 2014
Tendring DC,http://statistics.data.gov.uk/id/local-authority-district/22UN,Corporate Services,9880 - Collection Fund - Council Tax,R102 - Precept - Essex Police,15/09/2014,7800537-1,627208,2100500 - Essex Police Authority,Essex Police Precept Sept 2014
Tendring DC,http://statistics.data.gov.uk/id/local-authority-district/22UN,Corporate Services,9880 - Collection Fund - Council Tax,R112 - Council Tax Balance - Essex Police,15/09/2014,7800537-3,20176,2100500 - Essex Police Authority,Essex Police Precept Sept 2014
Tendring DC,http://statistics.data.gov.uk/id/local-authority-district/22UN,Corporate Services,6683 - Technical Discount Scheme,8109 - Technical  Discount Scheme - ECC Contribution,15/09/2014,7800537-5,-6960,2100500 - Essex Police Authority,Essex Police Precept Sept 2014
Tendring DC,http://statistics.data.gov.uk/id/local-authority-district/22UN,Corporate Services,6420 - Cost Of Council Tax Collection,8124 - Contribution - Collection Investment/Hardship Admin.,15/09/2014,7800537-7,-1561,2100500 - Essex Police Authority,Essex Police Precept Sept 2014
Tendring DC,http://statistics.data.gov.uk/id/local-authority-district/22UN,Corporate Services,1660 - Other Apportionable Overheads,4609 - Child Care Vouchers Management Fee,02/09/2014,1060900-2,48.84,2104459 - Fideliti Ltd,SEPT 14 VOUCHERS
Tendring DC,http://statistics.data.gov.uk/id/local-authority-district/22UN,Corporate Services,C349 - IT Strategic Investment,C276 - Licences for Software,23/09/2014,7014983-1,1183.95,2113822 - Fujitsu (FTS) Ltd,SAN
Tendring DC,http://statistics.data.gov.uk/id/local-authority-district/22UN,Corporate Services,1180 - Benefit Fraud Investigation Service Unit,4459 - External Legal Advice,16/09/2014,2116149-1,1604.16,2100672 - Harris Cuffaro & Nichols Solicitors,solicitor costs
Tendring DC,http://statistics.data.gov.uk/id/local-authority-district/22UN,Corporate Services,1180 - Benefit Fraud Investigation Service Unit,4459 - External Legal Advice,16/09/2014,2116149-2,11.25,2100672 - Harris Cuffaro & Nichols Solicitors,solicitor costs
Tendring DC,http://statistics.data.gov.uk/id/local-authority-district/22UN,Corporate Services,1180 - Benefit Fraud Investigation Service Unit,4459 - External Legal Advice,16/09/2014,2116251-1,970.38,2100672 - Harris Cuffaro & Nichols Solicitors,solicitors
Tendring DC,http://statistics.data.gov.uk/id/local-authority-district/22UN,Corporate Services,1180 - Benefit Fraud Investigation Service Unit,4459 - External Legal Advice,16/09/2014,2116251-2,4,2100672 - Harris Cuffaro & Nichols Solicitors,solicitors
Tendring DC,http://statistics.data.gov.uk/id/local-authority-district/22UN,Corporate Services,8540 - Leisure Centre Clacton,5160 - Advertising,10/09/2014,7800566-1,63,2111275 - hibu (UK) Ltd,10/09/2014
Tendring DC,http://statistics.data.gov.uk/id/local-authority-district/22UN,Corporate Services,5880 - Management Of Sport & Leisure Facilities,5166 - Marketing and Promotion,10/09/2014,7800566-3,87,2111275 - hibu (UK) Ltd,10/09/2014
Tendring DC,http://statistics.data.gov.uk/id/local-authority-district/22UN,Corporate Services,1300 - Legal Services Service Unit,4461 - Court Fees,23/09/2014,1061227-1,530,2100661 - HMCTS,
Tendring DC,http://statistics.data.gov.uk/id/local-authority-district/22UN,Corporate Services,1100 - Corporate Director (Corporate Services) and Admin Service Unit,1710 - Training - Central Department Budget,16/09/2014,2116130-1,110,2112936 - Hoey Ainscough Associates Ltd,conference for monitoring officers
Tendring DC,http://statistics.data.gov.uk/id/local-authority-district/22UN,Corporate Services,C349 - IT Strategic Investment,C275 - Hardware,30/09/2014,2116355-1,10.48,2100782 - Insight Direct (uk) Limited,toshiba business backpack 15.6 inch
Tendring DC,http://statistics.data.gov.uk/id/local-authority-district/22UN,Corporate Services,C349 - IT Strategic Investment,C275 - Hardware,30/09/2014,2116358-1,8.29,2100782 - Insight Direct (uk) Limited,black briefcase tan20102v4
Tendring DC,http://statistics.data.gov.uk/id/local-authority-district/22UN,Corporate Services,C349 - IT Strategic Investment,C276 - Licences for Software,09/09/2014,2115895-1,8055,2113973 - Interact - The Intelligent Intranet,interact software
Tendring DC,http://statistics.data.gov.uk/id/local-authority-district/22UN,Corporate Services,7220 - Election Expenses,4486 - Election Expenses,19/09/2014,7800576-1,470.09,REDACTED PERSONAL DATA,REDACTED PERSONAL DATA
Tendring DC,http://statistics.data.gov.uk/id/local-authority-district/22UN,Corporate Services,"1580 - Benefits, Revenues and Customer Contact SU",4635 - Cash Collection Contract,23/09/2014,1061196-1,380,2114129 - Jade Security Services Ltd,COLLECTIONS AUG 14
Tendring DC,http://statistics.data.gov.uk/id/local-authority-district/22UN,Corporate Services,8025 - Car Parks - Off St,4635 - Cash Collection Contract,23/09/2014,1061196-10,95,2114129 - Jade Security Services Ltd,COLLECTIONS AUG 14
Tendring DC,http://statistics.data.gov.uk/id/local-authority-district/22UN,Corporate Services,7600 - Tourist Information Centres,4635 - Cash Collection Contract,23/09/2014,1061196-2,95,2114129 - Jade Security Services Ltd,COLLECTIONS AUG 14
Tendring DC,http://statistics.data.gov.uk/id/local-authority-district/22UN,Corporate Services,1520 - Head of Planning and Customer Services,4635 - Cash Collection Contract,23/09/2014,1061196-3,57,2114129 - Jade Security Services Ltd,COLLECTIONS AUG 14
Tendring DC,http://statistics.data.gov.uk/id/local-authority-district/22UN,Corporate Services,5800 - Brightlingsea Sports Centre,4635 - Cash Collection Contract,23/09/2014,1061196-4,76,2114129 - Jade Security Services Ltd,COLLECTIONS AUG 14
Tendring DC,http://statistics.data.gov.uk/id/local-authority-district/22UN,Corporate Services,8540 - Leisure Centre Clacton,4635 - Cash Collection Contract,23/09/2014,1061196-5,228,2114129 - Jade Security Services Ltd,COLLECTIONS AUG 14
Tendring DC,http://statistics.data.gov.uk/id/local-authority-district/22UN,Corporate Services,8520 - Frinton & Walton Swimming Pool,4635 - Cash Collection Contract,23/09/2014,1061196-6,228,2114129 - Jade Security Services Ltd,COLLECTIONS AUG 14
Tendring DC,http://statistics.data.gov.uk/id/local-authority-district/22UN,Corporate Services,8510 - Dovercourt Swimming Pool & All Weather Facilities,4635 - Cash Collection Contract,23/09/2014,1061196-7,228,2114129 - Jade Security Services Ltd,COLLECTIONS AUG 14
Tendring DC,http://statistics.data.gov.uk/id/local-authority-district/22UN,Corporate Services,5820 - Harwich Sports Centre,4635 - Cash Collection Contract,23/09/2014,1061196-8,57,2114129 - Jade Security Services Ltd,COLLECTIONS AUG 14
Tendring DC,http://statistics.data.gov.uk/id/local-authority-district/22UN,Corporate Services,5860 - Manningtree Sports Centre,4635 - Cash Collection Contract,23/09/2014,1061196-9,57,2114129 - Jade Security Services Ltd,COLLECTIONS AUG 14
Tendring DC,http://statistics.data.gov.uk/id/local-authority-district/22UN,Corporate Services,1100 - Corporate Director (Corporate Services) and Admin Service Unit,3311 - Travelling Career Track,09/09/2014,1061034-1,25.5,REDACTED PERSONAL DATA,REDACTED PERSONAL DATA
Tendring DC,http://statistics.data.gov.uk/id/local-authority-district/22UN,Corporate Services,1100 - Corporate Director (Corporate Services) and Admin Service Unit,3311 - Travelling Career Track,16/09/2014,1061072-1,38.6,REDACTED PERSONAL DATA,REDACTED PERSONAL DATA
Tendring DC,http://statistics.data.gov.uk/id/local-authority-district/22UN,Corporate Services,1100 - Corporate Director (Corporate Services) and Admin Service Unit,3311 - Travelling Career Track,30/09/2014,1061264-1,25.55,REDACTED PERSONAL DATA,REDACTED PERSONAL DATA
Tendring DC,http://statistics.data.gov.uk/id/local-authority-district/22UN,Corporate Services,1100 - Corporate Director (Corporate Services) and Admin Service Unit,3311 - Travelling Career Track,02/09/2014,2115839-1,21.4,REDACTED PERSONAL DATA,REDACTED PERSONAL DATA
Tendring DC,http://statistics.data.gov.uk/id/local-authority-district/22UN,Corporate Services,1100 - Corporate Director (Corporate Services) and Admin Service Unit,3311 - Travelling Career Track,23/09/2014,7015012-1,25.6,REDACTED PERSONAL DATA,REDACTED PERSONAL DATA
Tendring DC,http://statistics.data.gov.uk/id/local-authority-district/22UN,Corporate Services,1815 - Personnel and Human Resources Issues,1610 - Counselling,09/09/2014,1060930-1,245,REDACTED PERSONAL DATA,REDACTED PERSONAL DATA
Tendring DC,http://statistics.data.gov.uk/id/local-authority-district/22UN,Corporate Services,6640 - Treasury Management,5192 - Brokerage,22/09/2014,7800529-3,46.18,2107040 - King & Shaxson Limited,TB 1 Month DR2014108
Tendring DC,http://statistics.data.gov.uk/id/local-authority-district/22UN,Corporate Services,8915 - Interest & Investment Income,9600 - External Investment Interest Receivable,22/09/2014,7800529-5,-598.36,2107040 - King & Shaxson Limited,TB 1 Month DR2014108
Tendring DC,http://statistics.data.gov.uk/id/local-authority-district/22UN,Corporate Services,6640 - Treasury Management,5192 - Brokerage,15/09/2014,7800540-2,149.41,2107040 - King & Shaxson Limited,K&S for CD Nordea 2014103
Tendring DC,http://statistics.data.gov.uk/id/local-authority-district/22UN,Corporate Services,6640 - Treasury Management,5192 - Brokerage,04/09/2014,7800551-3,74.71,2107040 - King & Shaxson Limited,K&S for CD Nordea Bank deal 201493
Tendring DC,http://statistics.data.gov.uk/id/local-authority-district/22UN,Corporate Services,1320 - Print Unit Service Unit,4080 - Materials & Consumables,30/09/2014,2116347-1,298.84,2100864 - Leston Stationery Ltd,paper
Tendring DC,http://statistics.data.gov.uk/id/local-authority-district/22UN,Corporate Services,1320 - Print Unit Service Unit,4080 - Materials & Consumables,30/09/2014,2116348-1,104.65,2100864 - Leston Stationery Ltd,paper
Tendring DC,http://statistics.data.gov.uk/id/local-authority-district/22UN,Corporate Services,1320 - Print Unit Service Unit,4080 - Materials & Consumables,23/09/2014,7015017-1,215.76,2100864 - Leston Stationery Ltd,PAPER
Tendring DC,http://statistics.data.gov.uk/id/local-authority-district/22UN,Corporate Services,1800 - Qualification and Other Training,1700 - Training - Courses,23/09/2014,1061243-1,126,REDACTED PERSONAL DATA,REDACTED PERSONAL DATA
Tendring DC,http://statistics.data.gov.uk/id/local-authority-district/22UN,Corporate Services,1300 - Legal Services Service Unit,4355 - Books & Periodicals,16/09/2014,2116131-1,1223.26,2100874 - Lexis Nexis UK,books from lexis nexis
Tendring DC,http://statistics.data.gov.uk/id/local-authority-district/22UN,Corporate Services,C349 - IT Strategic Investment,C275 - Hardware,30/09/2014,2116356-1,12.76,2101818 - Misco,clamshell laptop case black
Tendring DC,http://statistics.data.gov.uk/id/local-authority-district/22UN,Corporate Services,C349 - IT Strategic Investment,C275 - Hardware,30/09/2014,2116357-1,13.33,2101818 - Misco,targus essential notebook 15.4 - 16
Tendring DC,http://statistics.data.gov.uk/id/local-authority-district/22UN,Corporate Services,7220 - Election Expenses,4486 - Election Expenses,19/09/2014,7800577-0,2074,REDACTED PERSONAL DATA,REDACTED PERSONAL DATA
Tendring DC,http://statistics.data.gov.uk/id/local-authority-district/22UN,Corporate Services,1815 - Personnel and Human Resources Issues,1708 - Training - New Programme Development Courses,30/09/2014,1061270-1,70,REDACTED PERSONAL DATA,REDACTED PERSONAL DATA
Tendring DC,http://statistics.data.gov.uk/id/local-authority-district/22UN,Corporate Services,7220 - Election Expenses,4486 - Election Expenses,02/09/2014,2115894-1,318.9,2113536 - Newsquest Media Group,electoral public notice
Tendring DC,http://statistics.data.gov.uk/id/local-authority-district/22UN,Corporate Services,1930 - Asset Management Service Unit,4469 - Other Non - Legal Professional Services,09/09/2014,2116072-1,222,2111951 - NPS Property Consultants Ltd,"clay hall, clacton"
Tendring DC,http://statistics.data.gov.uk/id/local-authority-district/22UN,Corporate Services,1930 - Asset Management Service Unit,4469 - Other Non - Legal Professional Services,09/09/2014,2116073-1,222,2111951 - NPS Property Consultants Ltd,"car park, old road"
Tendring DC,http://statistics.data.gov.uk/id/local-authority-district/22UN,Corporate Services,6460 - Career Track,4688 - Career Track Exam Fees,09/09/2014,1060931-1,89.3,REDACTED PERSONAL DATA,REDACTED PERSONAL DATA
Tendring DC,http://statistics.data.gov.uk/id/local-authority-district/22UN,Corporate Services,6460 - Career Track,4688 - Career Track Exam Fees,09/09/2014,1060932-1,89.3,REDACTED PERSONAL DATA,REDACTED PERSONAL DATA
Tendring DC,http://statistics.data.gov.uk/id/local-authority-district/22UN,Corporate Services,6460 - Career Track,4688 - Career Track Exam Fees,09/09/2014,1060933-1,89.3,REDACTED PERSONAL DATA,REDACTED PERSONAL DATA
Tendring DC,http://statistics.data.gov.uk/id/local-authority-district/22UN,Corporate Services,6460 - Career Track,4688 - Career Track Exam Fees,09/09/2014,1060934-1,89.3,REDACTED PERSONAL DATA,REDACTED PERSONAL DATA
Tendring DC,http://statistics.data.gov.uk/id/local-authority-district/22UN,Corporate Services,6460 - Career Track,4688 - Career Track Exam Fees,09/09/2014,1060935-1,89.3,REDACTED PERSONAL DATA,REDACTED PERSONAL DATA
Tendring DC,http://statistics.data.gov.uk/id/local-authority-district/22UN,Corporate Services,6460 - Career Track,4688 - Career Track Exam Fees,02/09/2014,2115794-1,89.3,REDACTED PERSONAL DATA,REDACTED PERSONAL DATA
Tendring DC,http://statistics.data.gov.uk/id/local-authority-district/22UN,Corporate Services,6460 - Career Track,4688 - Career Track Exam Fees,02/09/2014,2115795-1,89.3,REDACTED PERSONAL DATA,REDACTED PERSONAL DATA
Tendring DC,http://statistics.data.gov.uk/id/local-authority-district/22UN,Corporate Services,6460 - Career Track,4688 - Career Track Exam Fees,02/09/2014,2115796-1,99.4,REDACTED PERSONAL DATA,REDACTED PERSONAL DATA
Tendring DC,http://statistics.data.gov.uk/id/local-authority-district/22UN,Corporate Services,6460 - Career Track,4688 - Career Track Exam Fees,16/09/2014,2116248-1,89.3,REDACTED PERSONAL DATA,REDACTED PERSONAL DATA
Tendring DC,http://statistics.data.gov.uk/id/local-authority-district/22UN,Corporate Services,6460 - Career Track,4688 - Career Track Exam Fees,30/09/2014,2116359-1,89.3,REDACTED PERSONAL DATA,REDACTED PERSONAL DATA
Tendring DC,http://statistics.data.gov.uk/id/local-authority-district/22UN,Corporate Services,6460 - Career Track,4688 - Career Track Exam Fees,30/09/2014,2116374-1,89.3,2101071 - OCR,ocr ba la2 h grieg
Tendring DC,http://statistics.data.gov.uk/id/local-authority-district/22UN,Corporate Services,1815 - Personnel and Human Resources Issues,1709 - Training - Management Development Courses,23/09/2014,1061199-1,7.5,2104612 - OPP Limited,OPP
Tendring DC,http://statistics.data.gov.uk/id/local-authority-district/22UN,Corporate Services,1815 - Personnel and Human Resources Issues,1709 - Training - Management Development Courses,23/09/2014,1061199-2,125,2104612 - OPP Limited,OPP
Tendring DC,http://statistics.data.gov.uk/id/local-authority-district/22UN,Corporate Services,1320 - Print Unit Service Unit,4302 - External Print Unit Expenses,09/09/2014,2115942-1,27,2111844 - Optimumprint,job 285
Tendring DC,http://statistics.data.gov.uk/id/local-authority-district/22UN,Corporate Services,1320 - Print Unit Service Unit,4302 - External Print Unit Expenses,09/09/2014,2115943-1,1085,2111844 - Optimumprint,job 295
Tendring DC,http://statistics.data.gov.uk/id/local-authority-district/22UN,Corporate Services,1320 - Print Unit Service Unit,4302 - External Print Unit Expenses,30/09/2014,2116349-1,736,2111844 - Optimumprint,job 361
Tendring DC,http://statistics.data.gov.uk/id/local-authority-district/22UN,Corporate Services,1320 - Print Unit Service Unit,4302 - External Print Unit Expenses,30/09/2014,2116350-1,393,2111844 - Optimumprint,job 367
Tendring DC,http://statistics.data.gov.uk/id/local-authority-district/22UN,Corporate Services,1320 - Print Unit Service Unit,4302 - External Print Unit Expenses,23/09/2014,7015018-1,10,2111844 - Optimumprint,JOB 334
Tendring DC,http://statistics.data.gov.uk/id/local-authority-district/22UN,Corporate Services,6460 - Career Track,4688 - Career Track Exam Fees,16/09/2014,1060936-1,44,REDACTED PERSONAL DATA,REDACTED PERSONAL DATA
Tendring DC,http://statistics.data.gov.uk/id/local-authority-district/22UN,Corporate Services,6460 - Career Track,4688 - Career Track Exam Fees,16/09/2014,1060937-1,29,REDACTED PERSONAL DATA,REDACTED PERSONAL DATA
Tendring DC,http://statistics.data.gov.uk/id/local-authority-district/22UN,Corporate Services,6460 - Career Track,4688 - Career Track Exam Fees,16/09/2014,1060938-1,14.5,REDACTED PERSONAL DATA,REDACTED PERSONAL DATA
Tendring DC,http://statistics.data.gov.uk/id/local-authority-district/22UN,Corporate Services,6460 - Career Track,4688 - Career Track Exam Fees,16/09/2014,1060939-1,88,REDACTED PERSONAL DATA,REDACTED PERSONAL DATA
Tendring DC,http://statistics.data.gov.uk/id/local-authority-district/22UN,Corporate Services,6460 - Career Track,4688 - Career Track Exam Fees,16/09/2014,1060940-1,49,REDACTED PERSONAL DATA,REDACTED PERSONAL DATA
Tendring DC,http://statistics.data.gov.uk/id/local-authority-district/22UN,Corporate Services,6460 - Career Track,4688 - Career Track Exam Fees,16/09/2014,2116249-1,14.5,REDACTED PERSONAL DATA,REDACTED PERSONAL DATA
Tendring DC,http://statistics.data.gov.uk/id/local-authority-district/22UN,Corporate Services,6460 - Career Track,4688 - Career Track Exam Fees,16/09/2014,2116250-1,220,REDACTED PERSONAL DATA,REDACTED PERSONAL DATA
Tendring DC,http://statistics.data.gov.uk/id/local-authority-district/22UN,Corporate Services,6460 - Career Track,4688 - Career Track Exam Fees,30/09/2014,2116360-1,43.5,REDACTED PERSONAL DATA,REDACTED PERSONAL DATA
Tendring DC,http://statistics.data.gov.uk/id/local-authority-district/22UN,Corporate Services,6460 - Career Track,4688 - Career Track Exam Fees,30/09/2014,2116361-1,14.5,REDACTED PERSONAL DATA,REDACTED PERSONAL DATA
Tendring DC,http://statistics.data.gov.uk/id/local-authority-district/22UN,Corporate Services,6460 - Career Track,4688 - Career Track Exam Fees,30/09/2014,7015058-1,44,REDACTED PERSONAL DATA,REDACTED PERSONAL DATA
Tendring DC,http://statistics.data.gov.uk/id/local-authority-district/22UN,Corporate Services,4355 - Planning and Enforcement,5160 - Advertising,30/09/2014,7015052-1,1520,2101097 - Peter Lockyer Advertising Ltd,PETER LOCKYER - PLANNING
Tendring DC,http://statistics.data.gov.uk/id/local-authority-district/22UN,Corporate Services,4355 - Planning and Enforcement,5160 - Advertising,30/09/2014,7015053-1,1520,2101097 - Peter Lockyer Advertising Ltd,PETER LOCKYER - PLANNING
Tendring DC,http://statistics.data.gov.uk/id/local-authority-district/22UN,Corporate Services,C349 - IT Strategic Investment,C276 - Licences for Software,16/09/2014,2116143-1,24247.3,2101038 - Phoenix Software Limited,windows remote licence
Tendring DC,http://statistics.data.gov.uk/id/local-authority-district/22UN,Corporate Services,C349 - IT Strategic Investment,C276 - Licences for Software,23/09/2014,7014984-1,16982.4,2101038 - Phoenix Software Limited,HYPER - V MAINTENANCE
Tendring DC,http://statistics.data.gov.uk/id/local-authority-district/22UN,Corporate Services,1661 - Other Apportionable Overheads - Corporate Support,4700 - Postage,09/09/2014,1061026-1,5050,2104077 - Pitney Bowes Ltd,RE-CREDIT FRANKING MACHINE-CLACTON-PBP A/C10113561
Tendring DC,http://statistics.data.gov.uk/id/local-authority-district/22UN,Corporate Services,1661 - Other Apportionable Overheads - Corporate Support,4700 - Postage,16/09/2014,1061122-1,5050,2104077 - Pitney Bowes Ltd,RE-CREDIT FRANKING MACHINE-CLACTON-PBP A/C10113561
Tendring DC,http://statistics.data.gov.uk/id/local-authority-district/22UN,Corporate Services,7240 - Electoral Registration Expenses,4300 - Printing & Stationery,23/09/2014,1061164-1,-460,2103246 - Print.uk.com,IER FULFILMENT 2014
Tendring DC,http://statistics.data.gov.uk/id/local-authority-district/22UN,Corporate Services,7240 - Electoral Registration Expenses,4300 - Printing & Stationery,23/09/2014,1061165-1,-212,2103246 - Print.uk.com,CREDIT IER FULFILMENT
Tendring DC,http://statistics.data.gov.uk/id/local-authority-district/22UN,Corporate Services,7240 - Electoral Registration Expenses,4300 - Printing & Stationery,23/09/2014,7014975-1,5039.34,2103246 - Print.uk.com,IER FULFILMENT
Tendring DC,http://statistics.data.gov.uk/id/local-authority-district/22UN,Corporate Services,7240 - Electoral Registration Expenses,4300 - Printing & Stationery,23/09/2014,7014976-1,1015,2103246 - Print.uk.com,IER FULFILMENT - POSTAGE COSTS
Tendring DC,http://statistics.data.gov.uk/id/local-authority-district/22UN,Corporate Services,7240 - Electoral Registration Expenses,4300 - Printing & Stationery,23/09/2014,7014977-1,357.75,2103246 - Print.uk.com,IEF FULFILMENT - HEF REMINDERS
Tendring DC,http://statistics.data.gov.uk/id/local-authority-district/22UN,Corporate Services,7240 - Electoral Registration Expenses,4300 - Printing & Stationery,23/09/2014,7014978-1,436.8,2103246 - Print.uk.com,IER FULFILMENT - POSTAGE
Tendring DC,http://statistics.data.gov.uk/id/local-authority-district/22UN,Corporate Services,1100 - Corporate Director (Corporate Services) and Admin Service Unit,4300 - Printing & Stationery,02/09/2014,2115731-1,373.1,2108638 - Prolog Print Media Ltd,prolog print media ltd
Tendring DC,http://statistics.data.gov.uk/id/local-authority-district/22UN,Corporate Services,8901 - Interest Payable and similar charges,7570 - Interest Payments,30/09/2014,7800519-3,40304.58,2101162 - Public Works Loan Board,"PWLB GF 348503, 474193, 474910"
Tendring DC,http://statistics.data.gov.uk/id/local-authority-district/22UN,Corporate Services,8901 - Interest Payable and similar charges,7570 - Interest Payments,23/09/2014,7800526-2,17062.61,2101162 - Public Works Loan Board,PWLB GF 336153/158/161/162 472962
Tendring DC,http://statistics.data.gov.uk/id/local-authority-district/22UN,Corporate Services,8901 - Interest Payable and similar charges,7570 - Interest Payments,15/09/2014,7800535-2,1471.15,2101162 - Public Works Loan Board,"PWLB 486269,486270,486271,486272"
Tendring DC,http://statistics.data.gov.uk/id/local-authority-district/22UN,Corporate Services,5760 - HRA - Capital & Interest Charges,9831 - HRA Interest (formerly Item 8),15/09/2014,7800535-4,98528.85,2101162 - Public Works Loan Board,"PWLB 486269,486270,486271,486272"
Tendring DC,http://statistics.data.gov.uk/id/local-authority-district/22UN,Corporate Services,9900 - General Fund Balance Sheet,B886 - Rail Warrants Allocation Holding Account,12/09/2014,7800517-1,303.5,2101174 - R S P Ltd,Rail Warrants
Tendring DC,http://statistics.data.gov.uk/id/local-authority-district/22UN,Corporate Services,1800 - Qualification and Other Training,1700 - Training - Courses,16/09/2014,1061128-1,100,REDACTED PERSONAL DATA,REDACTED PERSONAL DATA
Tendring DC,http://statistics.data.gov.uk/id/local-authority-district/22UN,Corporate Services,7220 - Election Expenses,4486 - Election Expenses,09/09/2014,2116064-1,501.25,2101139 - Royal Mail Group Ltd,electoral postage
Tendring DC,http://statistics.data.gov.uk/id/local-authority-district/22UN,Corporate Services,7240 - Electoral Registration Expenses,4700 - Postage,16/09/2014,2116207-1,14.22,2101139 - Royal Mail Group Ltd,electoral postage
Tendring DC,http://statistics.data.gov.uk/id/local-authority-district/22UN,Corporate Services,7240 - Electoral Registration Expenses,4700 - Postage,23/09/2014,7014981-1,768.69,2101139 - Royal Mail Group Ltd,ELECTORAL POSTAGE
Tendring DC,http://statistics.data.gov.uk/id/local-authority-district/22UN,Corporate Services,1815 - Personnel and Human Resources Issues,1600 - Medical Expenses,02/09/2014,2115732-1,90,2112524 - RPS Business Healthcare,occupational health
Tendring DC,http://statistics.data.gov.uk/id/local-authority-district/22UN,Corporate Services,1815 - Personnel and Human Resources Issues,1600 - Medical Expenses,23/09/2014,1061198-1,580,2110675 - RPS Consultants Ltd,RPS OCCUPATIONAL HEALTH
Tendring DC,http://statistics.data.gov.uk/id/local-authority-district/22UN,Corporate Services,6640 - Treasury Management,4506 - Consultants Fees - Treasury Management,23/09/2014,1061197-1,6000,2101223 - Sector Treasury Services Ltd,sector
Tendring DC,http://statistics.data.gov.uk/id/local-authority-district/22UN,Corporate Services,1300 - Legal Services Service Unit,4503 - Counsels Fees,23/09/2014,1061204-1,12309,2105530 - Shoosmiths,ST OSYTH PRIORY APPEAL
Tendring DC,http://statistics.data.gov.uk/id/local-authority-district/22UN,Corporate Services,1930 - Asset Management Service Unit,4469 - Other Non - Legal Professional Services,02/09/2014,2115822-1,78,2100032 - Signs Made Easy,to let signs (kiosk)
Tendring DC,http://statistics.data.gov.uk/id/local-authority-district/22UN,Corporate Services,1300 - Legal Services Service Unit,4503 - Counsels Fees,16/09/2014,2116144-1,14.12,2114238 - Stanley Ley (West End) Ltd,stanley ley full bib collarette
Tendring DC,http://statistics.data.gov.uk/id/local-authority-district/22UN,Corporate Services,1100 - Corporate Director (Corporate Services) and Admin Service Unit,1710 - Training - Central Department Budget,16/09/2014,2116148-1,99,2114258 - Tenancy Fraud Forum,tenancy fraud forum
Tendring DC,http://statistics.data.gov.uk/id/local-authority-district/22UN,Corporate Services,"1580 - Benefits, Revenues and Customer Contact SU",4716 - Mobile Telephone Costs,18/09/2014,7800562-0,26.65,2112813 - Three,Dongles x 2 Sep 14
Tendring DC,http://statistics.data.gov.uk/id/local-authority-district/22UN,Corporate Services,5240 - HRA - Managing Tenancies,5248 - Estate Management Expenses,01/09/2014,7800563-1,13.32,2112813 - Three,Dongles x 3 Sept 14
Tendring DC,http://statistics.data.gov.uk/id/local-authority-district/22UN,Corporate Services,5240 - HRA - Managing Tenancies,5242 - Tenant Relations,01/09/2014,7800563-3,13.32,2112813 - Three,Dongles x 3 Sept 14
Tendring DC,http://statistics.data.gov.uk/id/local-authority-district/22UN,Corporate Services,1760 - IT Direct Service Costs,4715 - Data Communication Charge,01/09/2014,7800563-5,13.33,2112813 - Three,Dongles x 3 Sept 14
Tendring DC,http://statistics.data.gov.uk/id/local-authority-district/22UN,Corporate Services,1180 - Benefit Fraud Investigation Service Unit,5500 - Miscellaneous Expenses,16/09/2014,2116147-1,47.66,2101679 - TNT UK Ltd,tnt
Tendring DC,http://statistics.data.gov.uk/id/local-authority-district/22UN,Corporate Services,6460 - Career Track,4468 - AGE Grant Training Costs,23/09/2014,1061184-1,1500,REDACTED PERSONAL DATA,REDACTED PERSONAL DATA
Tendring DC,http://statistics.data.gov.uk/id/local-authority-district/22UN,Corporate Services,4355 - Planning and Enforcement,5500 - Miscellaneous Expenses,16/09/2014,1061130-1,5000,REDACTED PERSONAL DATA,REDACTED PERSONAL DATA
Tendring DC,http://statistics.data.gov.uk/id/local-authority-district/22UN,Corporate Services,5480 - HRA - Repair & Maintenance,6625 - Tenants Compensation Scheme,16/09/2014,1061131-1,5000,REDACTED PERSONAL DATA,REDACTED PERSONAL DATA
Tendring DC,http://statistics.data.gov.uk/id/local-authority-district/22UN,Corporate Services,1760 - IT Direct Service Costs,6320 - IT Services Agreements Payment,09/09/2014,1061051-1,47898.74,2108077 - Trinity,TRINITY MAIN CONTRACT PAYMENT SEPT 14
Tendring DC,http://statistics.data.gov.uk/id/local-authority-district/22UN,Corporate Services,1760 - IT Direct Service Costs,4715 - Data Communication Charge,30/09/2014,2116354-1,1630.17,2108077 - Trinity,cs101365/6/51/92 lo304534
Tendring DC,http://statistics.data.gov.uk/id/local-authority-district/22UN,Corporate Services,1880 - Office Accommodation Expenses,4632 - Security,30/09/2014,2116354-2,216,2108077 - Trinity,cs101365/6/51/92 lo304534
Tendring DC,http://statistics.data.gov.uk/id/local-authority-district/22UN,Corporate Services,C347 - Information and Communications Technology Core Infrastructure,C275 - Hardware,30/09/2014,2116354-3,12785.3,2108077 - Trinity,cs101365/6/51/92 lo304534
Tendring DC,http://statistics.data.gov.uk/id/local-authority-district/22UN,Corporate Services,6740 - Careline,4040 - Equipment & Tools,30/09/2014,2116354-4,441.28,2108077 - Trinity,cs101365/6/51/92 lo304534
Tendring DC,http://statistics.data.gov.uk/id/local-authority-district/22UN,Corporate Services,1760 - IT Direct Service Costs,4751 - Hardware & Service Maintenance,30/09/2014,2116354-5,71.25,2108077 - Trinity,cs101365/6/51/92 lo304534
Tendring DC,http://statistics.data.gov.uk/id/local-authority-district/22UN,Corporate Services,C080 - Joint HR and Payroll System,C274 - Purchase of Software,30/09/2014,2116354-6,120,2108077 - Trinity,cs101365/6/51/92 lo304534
Tendring DC,http://statistics.data.gov.uk/id/local-authority-district/22UN,Corporate Services,9900 - General Fund Balance Sheet,B339 - Lease Car - TUSKER scheme,09/09/2014,1060927-1,66.67,2114054 - Tuskerdirect Limited,LEASE PAYMENT SEPTEMBER 14
Tendring DC,http://statistics.data.gov.uk/id/local-authority-district/22UN,Corporate Services,9900 - General Fund Balance Sheet,B339 - Lease Car - TUSKER scheme,09/09/2014,1060927-2,80.02,2114054 - Tuskerdirect Limited,LEASE PAYMENT SEPTEMBER 14
Tendring DC,http://statistics.data.gov.uk/id/local-authority-district/22UN,Corporate Services,9900 - General Fund Balance Sheet,B339 - Lease Car - TUSKER scheme,09/09/2014,1060927-3,32.59,2114054 - Tuskerdirect Limited,LEASE PAYMENT SEPTEMBER 14
Tendring DC,http://statistics.data.gov.uk/id/local-authority-district/22UN,Corporate Services,9900 - General Fund Balance Sheet,B339 - Lease Car - TUSKER scheme,09/09/2014,1060927-4,52.01,2114054 - Tuskerdirect Limited,LEASE PAYMENT SEPTEMBER 14
Tendring DC,http://statistics.data.gov.uk/id/local-authority-district/22UN,Corporate Services,9900 - General Fund Balance Sheet,B339 - Lease Car - TUSKER scheme,09/09/2014,1060927-5,65.65,2114054 - Tuskerdirect Limited,LEASE PAYMENT SEPTEMBER 14
Tendring DC,http://statistics.data.gov.uk/id/local-authority-district/22UN,Corporate Services,9900 - General Fund Balance Sheet,B339 - Lease Car - TUSKER scheme,09/09/2014,1060927-6,78.79,2114054 - Tuskerdirect Limited,LEASE PAYMENT SEPTEMBER 14
Tendring DC,http://statistics.data.gov.uk/id/local-authority-district/22UN,Corporate Services,9900 - General Fund Balance Sheet,B339 - Lease Car - TUSKER scheme,09/09/2014,1060927-7,37.4,2114054 - Tuskerdirect Limited,LEASE PAYMENT SEPTEMBER 14
Tendring DC,http://statistics.data.gov.uk/id/local-authority-district/22UN,Corporate Services,9900 - General Fund Balance Sheet,B339 - Lease Car - TUSKER scheme,09/09/2014,1060927-8,45.42,2114054 - Tuskerdirect Limited,LEASE PAYMENT SEPTEMBER 14
Tendring DC,http://statistics.data.gov.uk/id/local-authority-district/22UN,Corporate Services,1200 - Payroll & Payments,4753 - Computer - Application Software,02/09/2014,1060901-1,54,2108181 - Twofold Ltd,CHEQUE PRINTER
Tendring DC,http://statistics.data.gov.uk/id/local-authority-district/22UN,Corporate Services,1100 - Corporate Director (Corporate Services) and Admin Service Unit,4716 - Mobile Telephone Costs,23/09/2014,7015023-1,363.02,2101522 - Vodafone Corporate,VODAFONE CS JULY 14
Tendring DC,http://statistics.data.gov.uk/id/local-authority-district/22UN,Corporate Services,1330 - Human Resources Service Unit,4716 - Mobile Telephone Costs,23/09/2014,7015023-2,125.76,2101522 - Vodafone Corporate,VODAFONE CS JULY 14
Tendring DC,http://statistics.data.gov.uk/id/local-authority-district/22UN,Corporate Services,1300 - Legal Services Service Unit,4716 - Mobile Telephone Costs,23/09/2014,7015023-3,42.05,2101522 - Vodafone Corporate,VODAFONE CS JULY 14
Tendring DC,http://statistics.data.gov.uk/id/local-authority-district/22UN,Corporate Services,1180 - Benefit Fraud Investigation Service Unit,4716 - Mobile Telephone Costs,23/09/2014,7015023-4,12.26,2101522 - Vodafone Corporate,VODAFONE CS JULY 14
Tendring DC,http://statistics.data.gov.uk/id/local-authority-district/22UN,Corporate Services,6460 - Career Track,4716 - Mobile Telephone Costs,23/09/2014,7015023-5,153.96,2101522 - Vodafone Corporate,VODAFONE CS JULY 14
Tendring DC,http://statistics.data.gov.uk/id/local-authority-district/22UN,Corporate Services,1620 - IT Section Service Unit,4716 - Mobile Telephone Costs,23/09/2014,7015023-6,176.72,2101522 - Vodafone Corporate,VODAFONE CS JULY 14
Tendring DC,http://statistics.data.gov.uk/id/local-authority-district/22UN,Corporate Services,7040 - Civic Ceremonial Expenses,4080 - Materials & Consumables,23/09/2014,7015023-7,36,2101522 - Vodafone Corporate,VODAFONE CS JULY 14
Tendring DC,http://statistics.data.gov.uk/id/local-authority-district/22UN,Corporate Services,6550 - Members - Other Costs,4716 - Mobile Telephone Costs,23/09/2014,7015023-8,36.08,2101522 - Vodafone Corporate,VODAFONE CS JULY 14
Tendring DC,http://statistics.data.gov.uk/id/local-authority-district/22UN,Corporate Services,1320 - Print Unit Service Unit,4350 - Photocopier Hire,23/09/2014,7015021-1,2956.23,2101517 - Xerox (UK) Ltd,252 B C & COPIES
Tendring DC,http://statistics.data.gov.uk/id/local-authority-district/22UN,Corporate Services,1320 - Print Unit Service Unit,4350 - Photocopier Hire,23/09/2014,7015022-1,554.01,2101517 - Xerox (UK) Ltd,4127 BC & COPIES
Tendring DC,http://statistics.data.gov.uk/id/local-authority-district/22UN,Corporate Services,1760 - IT Direct Service Costs,4350 - Photocopier Hire,16/09/2014,2116142-1,156.79,2101527 - Xerox Finance Ltd,man brd - oct-dec14
Tendring DC,http://statistics.data.gov.uk/id/local-authority-district/22UN,Corporate Services,1760 - IT Direct Service Costs,4350 - Photocopier Hire,23/09/2014,7014989-1,163.76,2101527 - Xerox Finance Ltd,MAN BOARD SEP / NOV 14
Tendring DC,http://statistics.data.gov.uk/id/local-authority-district/22UN,Corporate Services,1100 - Corporate Director (Corporate Services) and Admin Service Unit,4300 - Printing & Stationery,09/09/2014,2115937-1,36.55,2107546 - XMA Limited,xma
Tendring DC,http://statistics.data.gov.uk/id/local-authority-district/22UN,Corporate Services,1100 - Corporate Director (Corporate Services) and Admin Service Unit,4300 - Printing & Stationery,30/09/2014,2116353-1,86.84,2107546 - XMA Limited,printer ink
Tendring DC,http://statistics.data.gov.uk/id/local-authority-district/22UN,Corporate Services,1100 - Corporate Director (Corporate Services) and Admin Service Unit,4300 - Printing & Stationery,23/09/2014,7014980-1,148.4,2107546 - XMA Limited,ELECTORAL PRINT CARTRIDGE
Tendring DC,http://statistics.data.gov.uk/id/local-authority-district/22UN,Corporate Services,1700 - Insurance Recharge Account,5010 - Other Insurances - Public & Products Liability,02/09/2014,2115751-1,157655.9,2107672 - Zurich Municipal Insurance,ins renewal 14/15
Tendring DC,http://statistics.data.gov.uk/id/local-authority-district/22UN,Corporate Services,1700 - Insurance Recharge Account,1904 - Employee Insurances - Officials Indemnity,02/09/2014,2115751-2,4800.73,2107672 - Zurich Municipal Insurance,ins renewal 14/15
Tendring DC,http://statistics.data.gov.uk/id/local-authority-district/22UN,Corporate Services,1700 - Insurance Recharge Account,1900 - Employee Insurances - Employers Liability,02/09/2014,2115751-3,31345.02,2107672 - Zurich Municipal Insurance,ins renewal 14/15
Tendring DC,http://statistics.data.gov.uk/id/local-authority-district/22UN,Corporate Services,1700 - Insurance Recharge Account,1903 - Insurances - Libel & Slander,02/09/2014,2115751-4,1101.16,2107672 - Zurich Municipal Insurance,ins renewal 14/15
Tendring DC,http://statistics.data.gov.uk/id/local-authority-district/22UN,Corporate Services,1700 - Insurance Recharge Account,2802 - Premises Insurance - Engineering,02/09/2014,2115751-5,2826.14,2107672 - Zurich Municipal Insurance,ins renewal 14/15
Tendring DC,http://statistics.data.gov.uk/id/local-authority-district/22UN,Corporate Services,1700 - Insurance Recharge Account,1902 - Insurances - Land Charges,02/09/2014,2115751-6,6383.43,2107672 - Zurich Municipal Insurance,ins renewal 14/15
Tendring DC,http://statistics.data.gov.uk/id/local-authority-district/22UN,Corporate Services,1700 - Insurance Recharge Account,2802 - Premises Insurance - Engineering,02/09/2014,2115752-1,18289.69,2107672 - Zurich Municipal Insurance,ins renewal engineering 14/15
Tendring DC,http://statistics.data.gov.uk/id/local-authority-district/22UN,Corporate Services,1700 - Insurance Recharge Account,2813 - Premises Insurance - Terrorism,30/09/2014,2116351-1,10799.16,2107672 - Zurich Municipal Insurance,terrorism ins 14/15
Tendring DC,http://statistics.data.gov.uk/id/local-authority-district/22UN,Corporate Services,1700 - Insurance Recharge Account,"2806 - Premises Insurance - Material damage-Property,WIP, Terrorism",30/09/2014,2116352-1,130366.19,2107672 - Zurich Municipal Insurance,property ins 14/15
Tendring DC,http://statistics.data.gov.uk/id/local-authority-district/22UN,Corporate Services,1700 - Insurance Recharge Account,2800 - Premises Insurance - All Risks,30/09/2014,2116352-2,1809.6,2107672 - Zurich Municipal Insurance,property ins 14/15
Tendring DC,http://statistics.data.gov.uk/id/local-authority-district/22UN,Corporate Services,1700 - Insurance Recharge Account,2807 - Premises Insurances - Business Interuption,30/09/2014,2116352-3,7702.71,2107672 - Zurich Municipal Insurance,property ins 14/15
Tendring DC,http://statistics.data.gov.uk/id/local-authority-district/22UN,Corporate Services,1700 - Insurance Recharge Account,2812 - Premises Insurance - Theft,30/09/2014,2116352-4,4265.23,2107672 - Zurich Municipal Insurance,property ins 14/15
Tendring DC,http://statistics.data.gov.uk/id/local-authority-district/22UN,Corporate Services,1700 - Insurance Recharge Account,2805 - Premises Insurances - Work in Progress,30/09/2014,2116352-5,770.99,2107672 - Zurich Municipal Insurance,property ins 14/15
Tendring DC,http://statistics.data.gov.uk/id/local-authority-district/22UN,Life Opportunities,6160 - Princes Theatre,4597 - Hired Services - Payments to Contractors,23/09/2014,7014992-1,50,2100091 - A Warrender,PIANO TUNING SEPT 14
Tendring DC,http://statistics.data.gov.uk/id/local-authority-district/22UN,Life Opportunities,6740 - Careline,3300 - Public Transport - Officers,16/09/2014,2116208-1,15.4,2100768 - A2B Taxis,a2b taxi 17/8/14
Tendring DC,http://statistics.data.gov.uk/id/local-authority-district/22UN,Life Opportunities,5480 - HRA - Repair & Maintenance,2073 - Smoke Alarm Service/Testing,02/09/2014,1060904-1,260.82,2111360 - Aaron Services Ltd,GAS SERVICE & REPAIR-NORTH AREA 14/15
Tendring DC,http://statistics.data.gov.uk/id/local-authority-district/22UN,Life Opportunities,5480 - HRA - Repair & Maintenance,2075 - Gas Service Contract Servicing/Testing (Domestic I,02/09/2014,1060904-2,2939.45,2111360 - Aaron Services Ltd,GAS SERVICE & REPAIR-NORTH AREA 14/15
Tendring DC,http://statistics.data.gov.uk/id/local-authority-district/22UN,Life Opportunities,5480 - HRA - Repair & Maintenance,2076 - Gas Service Contract Other Refurbishment/Repairs (,02/09/2014,1060904-3,7740.77,2111360 - Aaron Services Ltd,GAS SERVICE & REPAIR-NORTH AREA 14/15
Tendring DC,http://statistics.data.gov.uk/id/local-authority-district/22UN,Life Opportunities,5480 - HRA - Repair & Maintenance,2073 - Smoke Alarm Service/Testing,23/09/2014,1061234-1,103.68,2111360 - Aaron Services Ltd,GAS SERVICE & REPAIR-NORTH AREA 14/15
Tendring DC,http://statistics.data.gov.uk/id/local-authority-district/22UN,Life Opportunities,5480 - HRA - Repair & Maintenance,2075 - Gas Service Contract Servicing/Testing (Domestic I,23/09/2014,1061234-2,1747.35,2111360 - Aaron Services Ltd,GAS SERVICE & REPAIR-NORTH AREA 14/15
Tendring DC,http://statistics.data.gov.uk/id/local-authority-district/22UN,Life Opportunities,5480 - HRA - Repair & Maintenance,2076 - Gas Service Contract Other Refurbishment/Repairs (,23/09/2014,1061234-3,8171.43,2111360 - Aaron Services Ltd,GAS SERVICE & REPAIR-NORTH AREA 14/15
Tendring DC,http://statistics.data.gov.uk/id/local-authority-district/22UN,Life Opportunities,6740 - Careline,8300 - Capital Receipts,02/09/2014,7014836-1,16,REDACTED PERSONAL DATA,REDACTED PERSONAL DATA
Tendring DC,http://statistics.data.gov.uk/id/local-authority-district/22UN,Life Opportunities,5820 - Harwich Sports Centre,2100 - Building Repairs,16/09/2014,2116111-1,300,2114267 - ACC Leisure Maintenance Limited,repair to sq crt plaster
Tendring DC,http://statistics.data.gov.uk/id/local-authority-district/22UN,Life Opportunities,H860 - Disabled Adaptations,C200 - Main Contractor,02/09/2014,2115747-1,1425,REDACTED PERSONAL DATA,REDACTED PERSONAL DATA
Tendring DC,http://statistics.data.gov.uk/id/local-authority-district/22UN,Life Opportunities,5480 - HRA - Repair & Maintenance,2088 - Disabled Adaptations,09/09/2014,2115930-1,100,REDACTED PERSONAL DATA,REDACTED PERSONAL DATA
Tendring DC,http://statistics.data.gov.uk/id/local-authority-district/22UN,Life Opportunities,8540 - Leisure Centre Clacton,2100 - Building Repairs,02/09/2014,7014849-1,100,2108452 - Access Automation Ltd,ENTRANCE DOOR REPAIR
Tendring DC,http://statistics.data.gov.uk/id/local-authority-district/22UN,Life Opportunities,5480 - HRA - Repair & Maintenance,2091 - External Works,23/09/2014,7014944-1,500,REDACTED PERSONAL DATA,REDACTED PERSONAL DATA
Tendring DC,http://statistics.data.gov.uk/id/local-authority-district/22UN,Life Opportunities,5480 - HRA - Repair & Maintenance,2017 - Mechanical Equipment /Extract Fans,23/09/2014,1061154-1,4980.68,2100072 - Acorn Pressurisation Services Ltd,SPENDELLS HOUSE
Tendring DC,http://statistics.data.gov.uk/id/local-authority-district/22UN,Life Opportunities,5480 - HRA - Repair & Maintenance,2092 - Plumbing,02/09/2014,2115745-1,216.3,2100072 - Acorn Pressurisation Services Ltd,mead house
Tendring DC,http://statistics.data.gov.uk/id/local-authority-district/22UN,Life Opportunities,5480 - HRA - Repair & Maintenance,2092 - Plumbing,02/09/2014,2115876-1,302.82,2100072 - Acorn Pressurisation Services Ltd,honeycroft
Tendring DC,http://statistics.data.gov.uk/id/local-authority-district/22UN,Life Opportunities,1880 - Office Accommodation Expenses,2100 - Building Repairs,09/09/2014,2115927-1,144.9,2101609 - Adcock Refrigeration & Air Conditioning Ltd,works at barnes house
Tendring DC,http://statistics.data.gov.uk/id/local-authority-district/22UN,Life Opportunities,8540 - Leisure Centre Clacton,2510 - Water Services - Unmetered,23/09/2014,1061208-1,1559.06,2112518 - Affinity Water Ltd (East Region),AUGUST
Tendring DC,http://statistics.data.gov.uk/id/local-authority-district/22UN,Life Opportunities,8520 - Frinton & Walton Swimming Pool,2510 - Water Services - Unmetered,16/09/2014,2116095-1,803.37,2112518 - Affinity Water Ltd (East Region),fwsp - affinity water
Tendring DC,http://statistics.data.gov.uk/id/local-authority-district/22UN,Life Opportunities,1880 - Office Accommodation Expenses,2500 - Water Services - Metered,16/09/2014,2116169-1,600.28,2112518 - Affinity Water Ltd (East Region),weeley water & sewerage
Tendring DC,http://statistics.data.gov.uk/id/local-authority-district/22UN,Life Opportunities,1880 - Office Accommodation Expenses,2520 - Sewerage & Environmental Charges,16/09/2014,2116169-2,627.84,2112518 - Affinity Water Ltd (East Region),weeley water & sewerage
Tendring DC,http://statistics.data.gov.uk/id/local-authority-district/22UN,Life Opportunities,8510 - Dovercourt Swimming Pool & All Weather Facilities,2510 - Water Services - Unmetered,30/09/2014,7015066-1,709.69,2112518 - Affinity Water Ltd (East Region),WATER - DSP
Tendring DC,http://statistics.data.gov.uk/id/local-authority-district/22UN,Life Opportunities,H715 - Measures To Combat Condensation,C200 - Main Contractor,02/09/2014,2115743-1,551,REDACTED PERSONAL DATA,REDACTED PERSONAL DATA
Tendring DC,http://statistics.data.gov.uk/id/local-authority-district/22UN,Life Opportunities,H715 - Measures To Combat Condensation,C200 - Main Contractor,16/09/2014,2116163-1,665.5,REDACTED PERSONAL DATA,REDACTED PERSONAL DATA
Tendring DC,http://statistics.data.gov.uk/id/local-authority-district/22UN,Life Opportunities,H715 - Measures To Combat Condensation,C200 - Main Contractor,30/09/2014,2116392-1,1083.8,REDACTED PERSONAL DATA,REDACTED PERSONAL DATA
Tendring DC,http://statistics.data.gov.uk/id/local-authority-district/22UN,Life Opportunities,H715 - Measures To Combat Condensation,C200 - Main Contractor,30/09/2014,2116393-1,1089.5,REDACTED PERSONAL DATA,REDACTED PERSONAL DATA
Tendring DC,http://statistics.data.gov.uk/id/local-authority-district/22UN,Life Opportunities,H715 - Measures To Combat Condensation,C200 - Main Contractor,30/09/2014,2116394-1,713.8,REDACTED PERSONAL DATA,REDACTED PERSONAL DATA
Tendring DC,http://statistics.data.gov.uk/id/local-authority-district/22UN,Life Opportunities,H715 - Measures To Combat Condensation,C200 - Main Contractor,23/09/2014,7014991-1,275.5,REDACTED PERSONAL DATA,REDACTED PERSONAL DATA
Tendring DC,http://statistics.data.gov.uk/id/local-authority-district/22UN,Life Opportunities,6160 - Princes Theatre,4622 - Hired Services - Artistes and Production Companies,09/09/2014,2116051-1,3750,2104920 - Alan Field Associates,the searchers
Tendring DC,http://statistics.data.gov.uk/id/local-authority-district/22UN,Life Opportunities,8530 - Brightlingsea Swimming Pool,2100 - Building Repairs,02/09/2014,2115844-1,325,REDACTED PERSONAL DATA,REDACTED PERSONAL DATA
Tendring DC,http://statistics.data.gov.uk/id/local-authority-district/22UN,Life Opportunities,C021 - Cremator Replacement and Crematorium Car Park,C200 - Main Contractor,23/09/2014,2116283-1,1115,2113215 - Allman Woodcock Limited,weeley crem app 15
Tendring DC,http://statistics.data.gov.uk/id/local-authority-district/22UN,Life Opportunities,6740 - Careline,3060 - Running Costs - Diesel,16/09/2014,2116220-1,399.85,2101825 - Allstar Business Solutions Ltd,allstar august 14
Tendring DC,http://statistics.data.gov.uk/id/local-authority-district/22UN,Life Opportunities,8540 - Leisure Centre Clacton,5300 - Resaleable Items,23/09/2014,1061195-1,273,2112986 - Allwag Promotions Ltd,GYMNASTIC T SHIRTS
Tendring DC,http://statistics.data.gov.uk/id/local-authority-district/22UN,Life Opportunities,5880 - Management Of Sport & Leisure Facilities,5166 - Marketing and Promotion,02/09/2014,7014842-1,150,2112986 - Allwag Promotions Ltd,TROLLEY COIN KEYRINGS
Tendring DC,http://statistics.data.gov.uk/id/local-authority-district/22UN,Life Opportunities,1240 - Commercial Management,3311 - Travelling Career Track,09/09/2014,1061030-1,7.4,REDACTED PERSONAL DATA,REDACTED PERSONAL DATA
Tendring DC,http://statistics.data.gov.uk/id/local-authority-district/22UN,Life Opportunities,7620 - Air Show,5160 - Advertising,09/09/2014,2116032-1,350,2102337 - Archant Regional Ltd,airshow 14 advertising
Tendring DC,http://statistics.data.gov.uk/id/local-authority-district/22UN,Life Opportunities,7620 - Air Show,5160 - Advertising,09/09/2014,2116041-1,820,2102337 - Archant Regional Ltd,airshow 14 adverts
Tendring DC,http://statistics.data.gov.uk/id/local-authority-district/22UN,Life Opportunities,7620 - Air Show,5160 - Advertising,16/09/2014,2116158-1,3000,2102337 - Archant Regional Ltd,eadt air show progs
Tendring DC,http://statistics.data.gov.uk/id/local-authority-district/22UN,Life Opportunities,5220 - HRA - Policy & Management,5253 - HRA Health & Safety Expenses,09/09/2014,2115916-1,86.78,2100097 - Arco Ltd,2 x 3 in 1 jacket
Tendring DC,http://statistics.data.gov.uk/id/local-authority-district/22UN,Life Opportunities,5860 - Manningtree Sports Centre,4040 - Equipment & Tools,02/09/2014,2115869-1,71.24,2100048 - Argos Business Solutions,triples phones with answerphone
Tendring DC,http://statistics.data.gov.uk/id/local-authority-district/22UN,Life Opportunities,5800 - Brightlingsea Sports Centre,4000 - Furniture,02/09/2014,7014838-1,111.98,2100048 - Argos Business Solutions,FRIDGE
Tendring DC,http://statistics.data.gov.uk/id/local-authority-district/22UN,Life Opportunities,1880 - Office Accommodation Expenses,2100 - Building Repairs,23/09/2014,7015002-1,111.22,2100048 - Argos Business Solutions,ITEMS FOR FACILITIES
Tendring DC,http://statistics.data.gov.uk/id/local-authority-district/22UN,Life Opportunities,H860 - Disabled Adaptations,C200 - Main Contractor,09/09/2014,1060918-1,1150,REDACTED PERSONAL DATA,REDACTED PERSONAL DATA
Tendring DC,http://statistics.data.gov.uk/id/local-authority-district/22UN,Life Opportunities,H860 - Disabled Adaptations,C200 - Main Contractor,09/09/2014,1060918-2,4273,REDACTED PERSONAL DATA,REDACTED PERSONAL DATA
Tendring DC,http://statistics.data.gov.uk/id/local-authority-district/22UN,Life Opportunities,H860 - Disabled Adaptations,C200 - Main Contractor,02/09/2014,7014857-1,1100,2105132 - Arrow Heating,2 GREENFIELDS
Tendring DC,http://statistics.data.gov.uk/id/local-authority-district/22UN,Life Opportunities,H860 - Disabled Adaptations,C200 - Main Contractor,02/09/2014,7014857-2,4075,2105132 - Arrow Heating,2 GREENFIELDS
Tendring DC,http://statistics.data.gov.uk/id/local-authority-district/22UN,Life Opportunities,8520 - Frinton & Walton Swimming Pool,5300 - Resaleable Items,09/09/2014,1061017-1,60.54,2100088 - ASA Merchandising Ltd,FWSP-ASA
Tendring DC,http://statistics.data.gov.uk/id/local-authority-district/22UN,Life Opportunities,8520 - Frinton & Walton Swimming Pool,4300 - Printing & Stationery,09/09/2014,1061010-1,14.95,2103481 - AtoZ Supplies,FWSP-ATOZ
Tendring DC,http://statistics.data.gov.uk/id/local-authority-district/22UN,Life Opportunities,8520 - Frinton & Walton Swimming Pool,4400 - Maintenance Under Service Agreements,09/09/2014,2115967-1,81.07,2112129 - Autobar Vending Services Ltd,fwsp - autobar
Tendring DC,http://statistics.data.gov.uk/id/local-authority-district/22UN,Life Opportunities,8520 - Frinton & Walton Swimming Pool,4400 - Maintenance Under Service Agreements,30/09/2014,7015046-1,81.07,2112129 - Autobar Vending Services Ltd,FWSP - AUTOBAR
Tendring DC,http://statistics.data.gov.uk/id/local-authority-district/22UN,Life Opportunities,H920 - Disabled Facilities Grants,C400 - Grant payments,09/09/2014,1060964-1,499,REDACTED PERSONAL DATA,REDACTED PERSONAL DATA
Tendring DC,http://statistics.data.gov.uk/id/local-authority-district/22UN,Life Opportunities,1230 - Strategic Housing & Needs Management,4040 - Equipment & Tools,30/09/2014,1060914-1,-16.44,2100099 - B & Q Trade Account,REFUND FOR RETURNED ITEMS
Tendring DC,http://statistics.data.gov.uk/id/local-authority-district/22UN,Life Opportunities,1230 - Strategic Housing & Needs Management,4040 - Equipment & Tools,02/09/2014,2115847-1,103.78,2100099 - B & Q Trade Account,items for traveller injunction
Tendring DC,http://statistics.data.gov.uk/id/local-authority-district/22UN,Life Opportunities,1880 - Office Accommodation Expenses,4080 - Materials & Consumables,30/09/2014,2116371-1,37.02,2100099 - B & Q Trade Account,"cement tub, nightlatch, tape measure"
Tendring DC,http://statistics.data.gov.uk/id/local-authority-district/22UN,Life Opportunities,8540 - Leisure Centre Clacton,4200 - Clothing & Uniforms,02/09/2014,7014848-1,46.5,2106876 - Badgemaster Ltd,STAFF NAME BADGES
Tendring DC,http://statistics.data.gov.uk/id/local-authority-district/22UN,Life Opportunities,5860 - Manningtree Sports Centre,4040 - Equipment & Tools,02/09/2014,2115791-1,26.94,2106358 - Baker Ross Ltd,art & craft supplies for holiday activities
Tendring DC,http://statistics.data.gov.uk/id/local-authority-district/22UN,Life Opportunities,5240 - HRA - Managing Tenancies,4312 - Tenancy Stationery,02/09/2014,2115868-1,60.2,2100111 - Banner Business Supplies Ltd,stationery
Tendring DC,http://statistics.data.gov.uk/id/local-authority-district/22UN,Life Opportunities,"1580 - Benefits, Revenues and Customer Contact SU",4300 - Printing & Stationery,09/09/2014,2115956-1,160.15,2100111 - Banner Business Supplies Ltd,stationery 22/8/14
Tendring DC,http://statistics.data.gov.uk/id/local-authority-district/22UN,Life Opportunities,5240 - HRA - Managing Tenancies,4312 - Tenancy Stationery,09/09/2014,2115960-1,92.92,2100111 - Banner Business Supplies Ltd,stationary 22/8/14
Tendring DC,http://statistics.data.gov.uk/id/local-authority-district/22UN,Life Opportunities,5240 - HRA - Managing Tenancies,4312 - Tenancy Stationery,09/09/2014,2115961-1,6.81,2100111 - Banner Business Supplies Ltd,custom stamp
Tendring DC,http://statistics.data.gov.uk/id/local-authority-district/22UN,Life Opportunities,5240 - HRA - Managing Tenancies,4312 - Tenancy Stationery,16/09/2014,2116213-1,6.81,2100111 - Banner Business Supplies Ltd,copy stamp
Tendring DC,http://statistics.data.gov.uk/id/local-authority-district/22UN,Life Opportunities,1650 - Building Services Service Unit,4300 - Printing & Stationery,16/09/2014,2116214-1,22.76,2100111 - Banner Business Supplies Ltd,brother fax ribbon
Tendring DC,http://statistics.data.gov.uk/id/local-authority-district/22UN,Life Opportunities,5240 - HRA - Managing Tenancies,4312 - Tenancy Stationery,16/09/2014,2116215-1,91.13,2100111 - Banner Business Supplies Ltd,calculator sticky notes loop paper pens
Tendring DC,http://statistics.data.gov.uk/id/local-authority-district/22UN,Life Opportunities,6740 - Careline,4040 - Equipment & Tools,16/09/2014,2116216-1,462.08,2100111 - Banner Business Supplies Ltd,jiffy bag alassio travel cases
Tendring DC,http://statistics.data.gov.uk/id/local-authority-district/22UN,Life Opportunities,1230 - Strategic Housing & Needs Management,4300 - Printing & Stationery,23/09/2014,7015003-1,11.31,2100111 - Banner Business Supplies Ltd,STAT 05.09.14
Tendring DC,http://statistics.data.gov.uk/id/local-authority-district/22UN,Life Opportunities,6160 - Princes Theatre,4300 - Printing & Stationery,23/09/2014,7015003-2,14.03,2100111 - Banner Business Supplies Ltd,STAT 05.09.14
Tendring DC,http://statistics.data.gov.uk/id/local-authority-district/22UN,Life Opportunities,"1580 - Benefits, Revenues and Customer Contact SU",4300 - Printing & Stationery,23/09/2014,7015003-3,6.96,2100111 - Banner Business Supplies Ltd,STAT 05.09.14
Tendring DC,http://statistics.data.gov.uk/id/local-authority-district/22UN,Life Opportunities,5240 - HRA - Managing Tenancies,4312 - Tenancy Stationery,23/09/2014,7015003-4,111.13,2100111 - Banner Business Supplies Ltd,STAT 05.09.14
Tendring DC,http://statistics.data.gov.uk/id/local-authority-district/22UN,Life Opportunities,1100 - Corporate Director (Corporate Services) and Admin Service Unit,4300 - Printing & Stationery,30/09/2014,7015041-1,3.19,2100111 - Banner Business Supplies Ltd,STATIONERY
Tendring DC,http://statistics.data.gov.uk/id/local-authority-district/22UN,Life Opportunities,"1580 - Benefits, Revenues and Customer Contact SU",4300 - Printing & Stationery,30/09/2014,7015041-2,18.74,2100111 - Banner Business Supplies Ltd,STATIONERY
Tendring DC,http://statistics.data.gov.uk/id/local-authority-district/22UN,Life Opportunities,6740 - Careline,4300 - Printing & Stationery,30/09/2014,7015042-1,62.82,2100111 - Banner Business Supplies Ltd,STATIONERY CARELINE
Tendring DC,http://statistics.data.gov.uk/id/local-authority-district/22UN,Life Opportunities,5240 - HRA - Managing Tenancies,4312 - Tenancy Stationery,30/09/2014,7015043-1,39.62,2100111 - Banner Business Supplies Ltd,STATIONERY TOWN HALL
Tendring DC,http://statistics.data.gov.uk/id/local-authority-district/22UN,Life Opportunities,5240 - HRA - Managing Tenancies,5242 - Tenant Relations,09/09/2014,1061039-1,10,REDACTED PERSONAL DATA,REDACTED PERSONAL DATA
Tendring DC,http://statistics.data.gov.uk/id/local-authority-district/22UN,Life Opportunities,6160 - Princes Theatre,4622 - Hired Services - Artistes and Production Companies,09/09/2014,2116056-1,7350.08,2111423 - Barry Collings Entertainments,chas n dave
Tendring DC,http://statistics.data.gov.uk/id/local-authority-district/22UN,Life Opportunities,5240 - HRA - Managing Tenancies,5242 - Tenant Relations,30/09/2014,1061279-1,250,REDACTED PERSONAL DATA,REDACTED PERSONAL DATA
Tendring DC,http://statistics.data.gov.uk/id/local-authority-district/22UN,Life Opportunities,8540 - Leisure Centre Clacton,2300 - Energy Costs - Fuel Oil,09/09/2014,1061006-1,1111.8,2112681 - BIRLEM Ltd,1700 LT
Tendring DC,http://statistics.data.gov.uk/id/local-authority-district/22UN,Life Opportunities,8540 - Leisure Centre Clacton,2300 - Energy Costs - Fuel Oil,02/09/2014,2115820-1,1300,2112681 - BIRLEM Ltd,2000 lt
Tendring DC,http://statistics.data.gov.uk/id/local-authority-district/22UN,Life Opportunities,8540 - Leisure Centre Clacton,2300 - Energy Costs - Fuel Oil,23/09/2014,2116313-1,1322,2112681 - BIRLEM Ltd,2000 lt
Tendring DC,http://statistics.data.gov.uk/id/local-authority-district/22UN,Life Opportunities,H805 - Major Refurbishment of Heating,C200 - Main Contractor,02/09/2014,1060905-1,32575.5,2100155 - Blue Flame (Colchester) Ltd,HEATING REFURBISHMENT & UPGRADE TERM CONTRACT
Tendring DC,http://statistics.data.gov.uk/id/local-authority-district/22UN,Life Opportunities,C263 - Replacement of Careline Alarms in Group Schemes,C251 - Other Furniture,09/09/2014,1060920-1,2565,2100155 - Blue Flame (Colchester) Ltd,REMOVE TUNSTALL BOXES
Tendring DC,http://statistics.data.gov.uk/id/local-authority-district/22UN,Life Opportunities,H805 - Major Refurbishment of Heating,C200 - Main Contractor,16/09/2014,1061125-1,13686.65,2100155 - Blue Flame (Colchester) Ltd,HEATING REFURBISHMENT & UPGRADE TERM CONTRACT
Tendring DC,http://statistics.data.gov.uk/id/local-authority-district/22UN,Life Opportunities,5480 - HRA - Repair & Maintenance,2072 - Planned Partial Refurbishment To Electrical Instal,23/09/2014,1061156-1,4200.73,2100155 - Blue Flame (Colchester) Ltd,REPLACE CONSUMER UNITS
Tendring DC,http://statistics.data.gov.uk/id/local-authority-district/22UN,Life Opportunities,6160 - Princes Theatre,5160 - Advertising,09/09/2014,2116053-1,5.19,2113279 - Booker,water for theatre lollies for airshow
Tendring DC,http://statistics.data.gov.uk/id/local-authority-district/22UN,Life Opportunities,6160 - Princes Theatre,4105 - Bar/Catering Expenses,09/09/2014,2116053-2,2.99,2113279 - Booker,water for theatre lollies for airshow
Tendring DC,http://statistics.data.gov.uk/id/local-authority-district/22UN,Life Opportunities,6160 - Princes Theatre,5306 - Confectionary,23/09/2014,7014923-1,85.02,2113279 - Booker,ITEMS FOR THEATRE BAR
Tendring DC,http://statistics.data.gov.uk/id/local-authority-district/22UN,Life Opportunities,7100 - Community Health/Safety,5164 - Project Expenses,30/09/2014,7015032-1,54.79,2113279 - Booker,PROVISIONS FOR EXT ELECTION MEETING
Tendring DC,http://statistics.data.gov.uk/id/local-authority-district/22UN,Life Opportunities,7100 - Community Health/Safety,5164 - Project Expenses,30/09/2014,7015032-2,70.65,2113279 - Booker,PROVISIONS FOR EXT ELECTION MEETING
Tendring DC,http://statistics.data.gov.uk/id/local-authority-district/22UN,Life Opportunities,5240 - HRA - Managing Tenancies,5242 - Tenant Relations,09/09/2014,1061036-1,10,REDACTED PERSONAL DATA,REDACTED PERSONAL DATA
Tendring DC,http://statistics.data.gov.uk/id/local-authority-district/22UN,Life Opportunities,1880 - Office Accommodation Expenses,2100 - Building Repairs,09/09/2014,2115928-1,1290,2100117 - Brian Birt Carpets Ltd,carpet room 3 pier avenue
Tendring DC,http://statistics.data.gov.uk/id/local-authority-district/22UN,Life Opportunities,5440 - HRA - Communal Electricity,2304 - Energy Costs - Electricity,30/09/2014,1061246-1,-12.04,2100118 - British Gas Business,33-43 CHURCH ST
Tendring DC,http://statistics.data.gov.uk/id/local-authority-district/22UN,Life Opportunities,5440 - HRA - Communal Electricity,2304 - Energy Costs - Electricity,09/09/2014,2115934-1,20.62,2100118 - British Gas Business,24-30 willow way
Tendring DC,http://statistics.data.gov.uk/id/local-authority-district/22UN,Life Opportunities,5440 - HRA - Communal Electricity,2304 - Energy Costs - Electricity,30/09/2014,2116328-1,11.65,2100118 - British Gas Business,33-43 church st
Tendring DC,http://statistics.data.gov.uk/id/local-authority-district/22UN,Life Opportunities,5440 - HRA - Communal Electricity,2304 - Energy Costs - Electricity,30/09/2014,2116388-1,20.92,2100118 - British Gas Business,willow way
Tendring DC,http://statistics.data.gov.uk/id/local-authority-district/22UN,Life Opportunities,5440 - HRA - Communal Electricity,2304 - Energy Costs - Electricity,16/09/2014,2116197-1,23.1,2104953 - British Gas Trading Ltd,ls clarkes road
Tendring DC,http://statistics.data.gov.uk/id/local-authority-district/22UN,Life Opportunities,5440 - HRA - Communal Electricity,2304 - Energy Costs - Electricity,30/09/2014,2116327-1,31.24,2104953 - British Gas Trading Ltd,ll grange rd 6/9/14
Tendring DC,http://statistics.data.gov.uk/id/local-authority-district/22UN,Life Opportunities,5440 - HRA - Communal Electricity,2304 - Energy Costs - Electricity,23/09/2014,7015006-1,2679.76,2100197 - British Gas Trading Ltd,ELEC AUG 14
Tendring DC,http://statistics.data.gov.uk/id/local-authority-district/22UN,Life Opportunities,5820 - Harwich Sports Centre,2304 - Energy Costs - Electricity,23/09/2014,7015006-2,334.88,2100197 - British Gas Trading Ltd,ELEC AUG 14
Tendring DC,http://statistics.data.gov.uk/id/local-authority-district/22UN,Life Opportunities,5860 - Manningtree Sports Centre,2304 - Energy Costs - Electricity,23/09/2014,7015006-3,488.65,2100197 - British Gas Trading Ltd,ELEC AUG 14
Tendring DC,http://statistics.data.gov.uk/id/local-authority-district/22UN,Life Opportunities,5340 - HRA - Communal Central Heating,2304 - Energy Costs - Electricity,23/09/2014,7015006-4,2328.43,2100197 - British Gas Trading Ltd,ELEC AUG 14
Tendring DC,http://statistics.data.gov.uk/id/local-authority-district/22UN,Life Opportunities,5360 - HRA - Sheltered Units,2304 - Energy Costs - Electricity,23/09/2014,7015006-5,11.69,2100197 - British Gas Trading Ltd,ELEC AUG 14
Tendring DC,http://statistics.data.gov.uk/id/local-authority-district/22UN,Life Opportunities,5440 - HRA - Communal Electricity,2304 - Energy Costs - Electricity,23/09/2014,7015006-6,7887.77,2100197 - British Gas Trading Ltd,ELEC AUG 14
Tendring DC,http://statistics.data.gov.uk/id/local-authority-district/22UN,Life Opportunities,7600 - Tourist Information Centres,2304 - Energy Costs - Electricity,23/09/2014,7015006-7,21.82,2100197 - British Gas Trading Ltd,ELEC AUG 14
Tendring DC,http://statistics.data.gov.uk/id/local-authority-district/22UN,Life Opportunities,5440 - HRA - Communal Electricity,2304 - Energy Costs - Electricity,23/09/2014,7015006-8,-4341.97,2100197 - British Gas Trading Ltd,ELEC AUG 14
Tendring DC,http://statistics.data.gov.uk/id/local-authority-district/22UN,Life Opportunities,5340 - HRA - Communal Central Heating,2304 - Energy Costs - Electricity,23/09/2014,7015006-9,-838.55,2100197 - British Gas Trading Ltd,ELEC AUG 14
Tendring DC,http://statistics.data.gov.uk/id/local-authority-district/22UN,Life Opportunities,1880 - Office Accommodation Expenses,2308 - Energy Costs - Gas (Including LPG),30/09/2014,7015036-1,52.07,2100197 - British Gas Trading Ltd,CLAYHALL GAS 4.6 TO 4.9.14
Tendring DC,http://statistics.data.gov.uk/id/local-authority-district/22UN,Life Opportunities,1880 - Office Accommodation Expenses,2304 - Energy Costs - Electricity,30/09/2014,7015049-1,1310.55,2100197 - British Gas Trading Ltd,BRITISH GAS ELECTRIC AUG 14
Tendring DC,http://statistics.data.gov.uk/id/local-authority-district/22UN,Life Opportunities,1880 - Office Accommodation Expenses,2304 - Energy Costs - Electricity,30/09/2014,7015049-2,21.91,2100197 - British Gas Trading Ltd,BRITISH GAS ELECTRIC AUG 14
Tendring DC,http://statistics.data.gov.uk/id/local-authority-district/22UN,Life Opportunities,1860 - Depots General,2304 - Energy Costs - Electricity,30/09/2014,7015049-3,380.37,2100197 - British Gas Trading Ltd,BRITISH GAS ELECTRIC AUG 14
Tendring DC,http://statistics.data.gov.uk/id/local-authority-district/22UN,Life Opportunities,1860 - Depots General,2304 - Energy Costs - Electricity,30/09/2014,7015049-4,58.21,2100197 - British Gas Trading Ltd,BRITISH GAS ELECTRIC AUG 14
Tendring DC,http://statistics.data.gov.uk/id/local-authority-district/22UN,Life Opportunities,1880 - Office Accommodation Expenses,2304 - Energy Costs - Electricity,30/09/2014,7015049-5,71.33,2100197 - British Gas Trading Ltd,BRITISH GAS ELECTRIC AUG 14
Tendring DC,http://statistics.data.gov.uk/id/local-authority-district/22UN,Life Opportunities,1880 - Office Accommodation Expenses,2304 - Energy Costs - Electricity,30/09/2014,7015049-6,74.67,2100197 - British Gas Trading Ltd,BRITISH GAS ELECTRIC AUG 14
Tendring DC,http://statistics.data.gov.uk/id/local-authority-district/22UN,Life Opportunities,1880 - Office Accommodation Expenses,2304 - Energy Costs - Electricity,30/09/2014,7015049-7,914.19,2100197 - British Gas Trading Ltd,BRITISH GAS ELECTRIC AUG 14
Tendring DC,http://statistics.data.gov.uk/id/local-authority-district/22UN,Life Opportunities,1860 - Depots General,2304 - Energy Costs - Electricity,30/09/2014,7015049-8,588.68,2100197 - British Gas Trading Ltd,BRITISH GAS ELECTRIC AUG 14
Tendring DC,http://statistics.data.gov.uk/id/local-authority-district/22UN,Life Opportunities,1880 - Office Accommodation Expenses,2304 - Energy Costs - Electricity,30/09/2014,7015049-9,1229.02,2100197 - British Gas Trading Ltd,BRITISH GAS ELECTRIC AUG 14
Tendring DC,http://statistics.data.gov.uk/id/local-authority-district/22UN,Life Opportunities,8520 - Frinton & Walton Swimming Pool,2304 - Energy Costs - Electricity,30/09/2014,7015062-1,2546.76,2100197 - British Gas Trading Ltd,FWSP - BRITISH GAS
Tendring DC,http://statistics.data.gov.uk/id/local-authority-district/22UN,Life Opportunities,7000 - CCTV,4718 - Fixed Communication Lines,02/09/2014,2115888-1,73.5,2100168 - British Telecommunications plc,wm 39407824 internet bt
Tendring DC,http://statistics.data.gov.uk/id/local-authority-district/22UN,Life Opportunities,7000 - CCTV,4718 - Fixed Communication Lines,16/09/2014,2116088-1,87,2100168 - British Telecommunications plc,wm 3969 7030
Tendring DC,http://statistics.data.gov.uk/id/local-authority-district/22UN,Life Opportunities,5480 - HRA - Repair & Maintenance,2069 - Lift/Stairlift Servicing,23/09/2014,2116324-1,46.89,2100168 - British Telecommunications plc,st nic court 4642
Tendring DC,http://statistics.data.gov.uk/id/local-authority-district/22UN,Life Opportunities,5480 - HRA - Repair & Maintenance,2069 - Lift/Stairlift Servicing,23/09/2014,2116325-1,46.89,2100168 - British Telecommunications plc,st nic court 4645
Tendring DC,http://statistics.data.gov.uk/id/local-authority-district/22UN,Life Opportunities,5480 - HRA - Repair & Maintenance,2069 - Lift/Stairlift Servicing,23/09/2014,2116326-1,46.89,2100168 - British Telecommunications plc,st nic court 4636
Tendring DC,http://statistics.data.gov.uk/id/local-authority-district/22UN,Life Opportunities,5480 - HRA - Repair & Maintenance,2069 - Lift/Stairlift Servicing,30/09/2014,2116344-1,46.88,2100168 - British Telecommunications plc,ea 4148 2478
Tendring DC,http://statistics.data.gov.uk/id/local-authority-district/22UN,Life Opportunities,7000 - CCTV,4718 - Fixed Communication Lines,30/09/2014,2116345-1,44.7,2100168 - British Telecommunications plc,ea40791190
Tendring DC,http://statistics.data.gov.uk/id/local-authority-district/22UN,Life Opportunities,7000 - CCTV,4718 - Fixed Communication Lines,30/09/2014,2116346-1,46.88,2100168 - British Telecommunications plc,ea40489190
Tendring DC,http://statistics.data.gov.uk/id/local-authority-district/22UN,Life Opportunities,5240 - HRA - Managing Tenancies,5249 - Housing ASB Expenses,30/09/2014,2116385-1,94.8,2100168 - British Telecommunications plc,rental 1/9/14 to 30/11/14
Tendring DC,http://statistics.data.gov.uk/id/local-authority-district/22UN,Life Opportunities,6740 - Careline,4710 - Telephones - Charges,30/09/2014,2116396-1,288.84,2100168 - British Telecommunications plc,careline ea39351981
Tendring DC,http://statistics.data.gov.uk/id/local-authority-district/22UN,Life Opportunities,8530 - Brightlingsea Swimming Pool,4710 - Telephones - Charges,02/09/2014,7014841-1,100.09,2100168 - British Telecommunications plc,AUG-OCT RENTAL
Tendring DC,http://statistics.data.gov.uk/id/local-authority-district/22UN,Life Opportunities,7600 - Tourist Information Centres,4710 - Telephones - Charges,30/09/2014,7015037-1,152.25,2100168 - British Telecommunications plc,BT BILL SEPT 14
Tendring DC,http://statistics.data.gov.uk/id/local-authority-district/22UN,Life Opportunities,5820 - Harwich Sports Centre,4710 - Telephones - Charges,30/09/2014,7015037-10,366.71,2100168 - British Telecommunications plc,BT BILL SEPT 14
Tendring DC,http://statistics.data.gov.uk/id/local-authority-district/22UN,Life Opportunities,5860 - Manningtree Sports Centre,4710 - Telephones - Charges,30/09/2014,7015037-11,388.54,2100168 - British Telecommunications plc,BT BILL SEPT 14
Tendring DC,http://statistics.data.gov.uk/id/local-authority-district/22UN,Life Opportunities,8540 - Leisure Centre Clacton,4710 - Telephones - Charges,30/09/2014,7015037-12,802.45,2100168 - British Telecommunications plc,BT BILL SEPT 14
Tendring DC,http://statistics.data.gov.uk/id/local-authority-district/22UN,Life Opportunities,4540 - Cemeteries,4710 - Telephones - Charges,30/09/2014,7015037-13,37.12,2100168 - British Telecommunications plc,BT BILL SEPT 14
Tendring DC,http://statistics.data.gov.uk/id/local-authority-district/22UN,Life Opportunities,4560 - Crematorium,4710 - Telephones - Charges,30/09/2014,7015037-14,110.54,2100168 - British Telecommunications plc,BT BILL SEPT 14
Tendring DC,http://statistics.data.gov.uk/id/local-authority-district/22UN,Life Opportunities,5800 - Brightlingsea Sports Centre,4710 - Telephones - Charges,30/09/2014,7015037-15,254.31,2100168 - British Telecommunications plc,BT BILL SEPT 14
Tendring DC,http://statistics.data.gov.uk/id/local-authority-district/22UN,Life Opportunities,1840 - Central Telephone Service,4710 - Telephones - Charges,30/09/2014,7015037-2,35.7,2100168 - British Telecommunications plc,BT BILL SEPT 14
Tendring DC,http://statistics.data.gov.uk/id/local-authority-district/22UN,Life Opportunities,6060 - First Aid Posts,4710 - Telephones - Charges,30/09/2014,7015037-3,76.45,2100168 - British Telecommunications plc,BT BILL SEPT 14
Tendring DC,http://statistics.data.gov.uk/id/local-authority-district/22UN,Life Opportunities,6040 - Miscellaneous Seafront Activities,4710 - Telephones - Charges,30/09/2014,7015037-4,238.99,2100168 - British Telecommunications plc,BT BILL SEPT 14
Tendring DC,http://statistics.data.gov.uk/id/local-authority-district/22UN,Life Opportunities,1915 - Low Road Depot,4710 - Telephones - Charges,30/09/2014,7015037-5,36.6,2100168 - British Telecommunications plc,BT BILL SEPT 14
Tendring DC,http://statistics.data.gov.uk/id/local-authority-district/22UN,Life Opportunities,1920 - Mill Lane Depot,4710 - Telephones - Charges,30/09/2014,7015037-6,37.89,2100168 - British Telecommunications plc,BT BILL SEPT 14
Tendring DC,http://statistics.data.gov.uk/id/local-authority-district/22UN,Life Opportunities,8125 - Horticultural Services,4710 - Telephones - Charges,30/09/2014,7015037-7,55.3,2100168 - British Telecommunications plc,BT BILL SEPT 14
Tendring DC,http://statistics.data.gov.uk/id/local-authority-district/22UN,Life Opportunities,8510 - Dovercourt Swimming Pool & All Weather Facilities,4710 - Telephones - Charges,30/09/2014,7015037-8,127.63,2100168 - British Telecommunications plc,BT BILL SEPT 14
Tendring DC,http://statistics.data.gov.uk/id/local-authority-district/22UN,Life Opportunities,8520 - Frinton & Walton Swimming Pool,4710 - Telephones - Charges,30/09/2014,7015037-9,282.78,2100168 - British Telecommunications plc,BT BILL SEPT 14
Tendring DC,http://statistics.data.gov.uk/id/local-authority-district/22UN,Life Opportunities,6740 - Careline,4710 - Telephones - Charges,30/09/2014,7015038-1,50.54,2100168 - British Telecommunications plc,EA41552464
Tendring DC,http://statistics.data.gov.uk/id/local-authority-district/22UN,Life Opportunities,6740 - Careline,4710 - Telephones - Charges,30/09/2014,7015038-2,13.5,2100168 - British Telecommunications plc,EA41552464
Tendring DC,http://statistics.data.gov.uk/id/local-authority-district/22UN,Life Opportunities,6740 - Careline,4710 - Telephones - Charges,30/09/2014,7015039-1,54.96,2100168 - British Telecommunications plc,EA 4155 2451
Tendring DC,http://statistics.data.gov.uk/id/local-authority-district/22UN,Life Opportunities,6740 - Careline,4710 - Telephones - Charges,30/09/2014,7015039-2,13.5,2100168 - British Telecommunications plc,EA 4155 2451
Tendring DC,http://statistics.data.gov.uk/id/local-authority-district/22UN,Life Opportunities,H815 - Re-roofing,C200 - Main Contractor,23/09/2014,1061157-1,1114,REDACTED PERSONAL DATA,REDACTED PERSONAL DATA
Tendring DC,http://statistics.data.gov.uk/id/local-authority-district/22UN,Life Opportunities,H715 - Measures To Combat Condensation,C200 - Main Contractor,09/09/2014,2115902-1,968,REDACTED PERSONAL DATA,REDACTED PERSONAL DATA
Tendring DC,http://statistics.data.gov.uk/id/local-authority-district/22UN,Life Opportunities,8540 - Leisure Centre Clacton,2700 - Cleaning Materials,09/09/2014,1061007-1,94.42,2101624 - Bunzl,CLEAN SUPPLIES
Tendring DC,http://statistics.data.gov.uk/id/local-authority-district/22UN,Life Opportunities,8520 - Frinton & Walton Swimming Pool,2700 - Cleaning Materials,09/09/2014,1061013-1,91.61,2101624 - Bunzl,FWSP-BUNZL
Tendring DC,http://statistics.data.gov.uk/id/local-authority-district/22UN,Life Opportunities,8520 - Frinton & Walton Swimming Pool,2700 - Cleaning Materials,09/09/2014,1061014-1,42.8,2101624 - Bunzl,FWSP-BUNZL
Tendring DC,http://statistics.data.gov.uk/id/local-authority-district/22UN,Life Opportunities,8520 - Frinton & Walton Swimming Pool,2700 - Cleaning Materials,02/09/2014,2115804-1,87.92,2101624 - Bunzl,fwsp - bunzl
Tendring DC,http://statistics.data.gov.uk/id/local-authority-district/22UN,Life Opportunities,8520 - Frinton & Walton Swimming Pool,2700 - Cleaning Materials,02/09/2014,2115805-1,37.06,2101624 - Bunzl,fwsp - bunzl
Tendring DC,http://statistics.data.gov.uk/id/local-authority-district/22UN,Life Opportunities,8540 - Leisure Centre Clacton,2700 - Cleaning Materials,02/09/2014,2115813-1,13.52,2101624 - Bunzl,cleaning supplies
Tendring DC,http://statistics.data.gov.uk/id/local-authority-district/22UN,Life Opportunities,8540 - Leisure Centre Clacton,2700 - Cleaning Materials,02/09/2014,2115814-1,18.91,2101624 - Bunzl,cleaning supplies
Tendring DC,http://statistics.data.gov.uk/id/local-authority-district/22UN,Life Opportunities,8540 - Leisure Centre Clacton,2700 - Cleaning Materials,02/09/2014,2115815-1,241.25,2101624 - Bunzl,cleaning supplies
Tendring DC,http://statistics.data.gov.uk/id/local-authority-district/22UN,Life Opportunities,5360 - HRA - Sheltered Units,2700 - Cleaning Materials,02/09/2014,2115845-1,12.42,2101624 - Bunzl,yellow mop head sheltered
Tendring DC,http://statistics.data.gov.uk/id/local-authority-district/22UN,Life Opportunities,8150 - Office Cleaning,4080 - Materials & Consumables,09/09/2014,2116015-1,187.96,2101624 - Bunzl,cleaning goods weeley
Tendring DC,http://statistics.data.gov.uk/id/local-authority-district/22UN,Life Opportunities,8510 - Dovercourt Swimming Pool & All Weather Facilities,2700 - Cleaning Materials,16/09/2014,2116117-1,95.74,2101624 - Bunzl,dovercourt pool  - various
Tendring DC,http://statistics.data.gov.uk/id/local-authority-district/22UN,Life Opportunities,8510 - Dovercourt Swimming Pool & All Weather Facilities,2700 - Cleaning Materials,16/09/2014,2116118-1,22.96,2101624 - Bunzl,dovercourt pool - wd40
Tendring DC,http://statistics.data.gov.uk/id/local-authority-district/22UN,Life Opportunities,8150 - Office Cleaning,4080 - Materials & Consumables,16/09/2014,2116154-1,833.86,2101624 - Bunzl,cleaning supplies
Tendring DC,http://statistics.data.gov.uk/id/local-authority-district/22UN,Life Opportunities,8540 - Leisure Centre Clacton,2700 - Cleaning Materials,23/09/2014,2116307-1,27.04,2101624 - Bunzl,clean supplies
Tendring DC,http://statistics.data.gov.uk/id/local-authority-district/22UN,Life Opportunities,8540 - Leisure Centre Clacton,2700 - Cleaning Materials,23/09/2014,2116318-1,204.29,2101624 - Bunzl,cleaning supplies
Tendring DC,http://statistics.data.gov.uk/id/local-authority-district/22UN,Life Opportunities,8520 - Frinton & Walton Swimming Pool,2700 - Cleaning Materials,30/09/2014,7015078-1,112.56,2101624 - Bunzl,FWSP - BUNZL
Tendring DC,http://statistics.data.gov.uk/id/local-authority-district/22UN,Life Opportunities,8530 - Brightlingsea Swimming Pool,2700 - Cleaning Materials,30/09/2014,7015085-1,1.43,2101624 - Bunzl,BUNZL - COMPLETED OF OLD ORDER
Tendring DC,http://statistics.data.gov.uk/id/local-authority-district/22UN,Life Opportunities,7620 - Air Show,4628 - Hired Services - Air Displays,16/09/2014,2116125-1,11500,2114287 - Canadian Warplane Heritage Museum,lancaster appearance airshow 14
Tendring DC,http://statistics.data.gov.uk/id/local-authority-district/22UN,Life Opportunities,7620 - Air Show,4628 - Hired Services - Air Displays,16/09/2014,2116125-2,1400,2114287 - Canadian Warplane Heritage Museum,lancaster appearance airshow 14
Tendring DC,http://statistics.data.gov.uk/id/local-authority-district/22UN,Life Opportunities,1650 - Building Services Service Unit,4400 - Maintenance Under Service Agreements,16/09/2014,2116085-1,50.11,2100291 - Canon (UK) Ltd,service october 14
Tendring DC,http://statistics.data.gov.uk/id/local-authority-district/22UN,Life Opportunities,1650 - Building Services Service Unit,4616 - Hired Services - Engineers and Architects Fees,09/09/2014,2116036-1,1575,2104200 - Castons,contract payment
Tendring DC,http://statistics.data.gov.uk/id/local-authority-district/22UN,Life Opportunities,H920 - Disabled Facilities Grants,C400 - Grant payments,16/09/2014,1061067-1,89,REDACTED PERSONAL DATA,REDACTED PERSONAL DATA
Tendring DC,http://statistics.data.gov.uk/id/local-authority-district/22UN,Life Opportunities,"1580 - Benefits, Revenues and Customer Contact SU",3312 - Car Allowances - Car Hire,23/09/2014,7015007-1,25,2104746 - CC Hire,COURT SECTION CAR HIRE
Tendring DC,http://statistics.data.gov.uk/id/local-authority-district/22UN,Life Opportunities,"1580 - Benefits, Revenues and Customer Contact SU",3062 - Running Costs - Petrol,23/09/2014,7015007-2,5,2104746 - CC Hire,COURT SECTION CAR HIRE
Tendring DC,http://statistics.data.gov.uk/id/local-authority-district/22UN,Life Opportunities,1242 - Corporate Director (Life Opportunities),1710 - Training - Central Department Budget,09/09/2014,2116035-1,135,REDACTED PERSONAL DATA,REDACTED PERSONAL DATA
Tendring DC,http://statistics.data.gov.uk/id/local-authority-district/22UN,Life Opportunities,1242 - Corporate Director (Life Opportunities),1710 - Training - Central Department Budget,30/09/2014,2116390-1,10,REDACTED PERSONAL DATA,REDACTED PERSONAL DATA
Tendring DC,http://statistics.data.gov.uk/id/local-authority-district/22UN,Life Opportunities,1242 - Corporate Director (Life Opportunities),1710 - Training - Central Department Budget,30/09/2014,2116391-1,10,REDACTED PERSONAL DATA,REDACTED PERSONAL DATA
Tendring DC,http://statistics.data.gov.uk/id/local-authority-district/22UN,Life Opportunities,5140 - Homelessness,4680 - Bed & Breakfast Accommodation,02/09/2014,2115880-1,448,REDACTED PERSONAL DATA,REDACTED PERSONAL DATA
Tendring DC,http://statistics.data.gov.uk/id/local-authority-district/22UN,Life Opportunities,5140 - Homelessness,4680 - Bed & Breakfast Accommodation,02/09/2014,2115880-2,112,REDACTED PERSONAL DATA,REDACTED PERSONAL DATA
Tendring DC,http://statistics.data.gov.uk/id/local-authority-district/22UN,Life Opportunities,5140 - Homelessness,4680 - Bed & Breakfast Accommodation,02/09/2014,2115881-1,448,REDACTED PERSONAL DATA,REDACTED PERSONAL DATA
Tendring DC,http://statistics.data.gov.uk/id/local-authority-district/22UN,Life Opportunities,5140 - Homelessness,4680 - Bed & Breakfast Accommodation,02/09/2014,2115881-2,112,REDACTED PERSONAL DATA,REDACTED PERSONAL DATA
Tendring DC,http://statistics.data.gov.uk/id/local-authority-district/22UN,Life Opportunities,5140 - Homelessness,4680 - Bed & Breakfast Accommodation,02/09/2014,2115882-1,448,REDACTED PERSONAL DATA,REDACTED PERSONAL DATA
Tendring DC,http://statistics.data.gov.uk/id/local-authority-district/22UN,Life Opportunities,5140 - Homelessness,4680 - Bed & Breakfast Accommodation,02/09/2014,2115882-2,112,REDACTED PERSONAL DATA,REDACTED PERSONAL DATA
Tendring DC,http://statistics.data.gov.uk/id/local-authority-district/22UN,Life Opportunities,5140 - Homelessness,4680 - Bed & Breakfast Accommodation,02/09/2014,2115883-1,168,REDACTED PERSONAL DATA,REDACTED PERSONAL DATA
Tendring DC,http://statistics.data.gov.uk/id/local-authority-district/22UN,Life Opportunities,5140 - Homelessness,4680 - Bed & Breakfast Accommodation,02/09/2014,2115883-2,42,REDACTED PERSONAL DATA,REDACTED PERSONAL DATA
Tendring DC,http://statistics.data.gov.uk/id/local-authority-district/22UN,Life Opportunities,5140 - Homelessness,4680 - Bed & Breakfast Accommodation,02/09/2014,2115884-1,168,REDACTED PERSONAL DATA,REDACTED PERSONAL DATA
Tendring DC,http://statistics.data.gov.uk/id/local-authority-district/22UN,Life Opportunities,5140 - Homelessness,4680 - Bed & Breakfast Accommodation,02/09/2014,2115884-2,42,REDACTED PERSONAL DATA,REDACTED PERSONAL DATA
Tendring DC,http://statistics.data.gov.uk/id/local-authority-district/22UN,Life Opportunities,5140 - Homelessness,4680 - Bed & Breakfast Accommodation,02/09/2014,2115885-1,168,REDACTED PERSONAL DATA,REDACTED PERSONAL DATA
Tendring DC,http://statistics.data.gov.uk/id/local-authority-district/22UN,Life Opportunities,5140 - Homelessness,4680 - Bed & Breakfast Accommodation,02/09/2014,2115885-2,42,REDACTED PERSONAL DATA,REDACTED PERSONAL DATA
Tendring DC,http://statistics.data.gov.uk/id/local-authority-district/22UN,Life Opportunities,5140 - Homelessness,4680 - Bed & Breakfast Accommodation,02/09/2014,2115886-1,168,REDACTED PERSONAL DATA,REDACTED PERSONAL DATA
Tendring DC,http://statistics.data.gov.uk/id/local-authority-district/22UN,Life Opportunities,5140 - Homelessness,4680 - Bed & Breakfast Accommodation,02/09/2014,2115886-2,42,REDACTED PERSONAL DATA,REDACTED PERSONAL DATA
Tendring DC,http://statistics.data.gov.uk/id/local-authority-district/22UN,Life Opportunities,5140 - Homelessness,4680 - Bed & Breakfast Accommodation,09/09/2014,2116016-1,100,REDACTED PERSONAL DATA,REDACTED PERSONAL DATA
Tendring DC,http://statistics.data.gov.uk/id/local-authority-district/22UN,Life Opportunities,5140 - Homelessness,4680 - Bed & Breakfast Accommodation,09/09/2014,2116017-1,175,REDACTED PERSONAL DATA,REDACTED PERSONAL DATA
Tendring DC,http://statistics.data.gov.uk/id/local-authority-district/22UN,Life Opportunities,5140 - Homelessness,4680 - Bed & Breakfast Accommodation,09/09/2014,2116018-1,280,REDACTED PERSONAL DATA,REDACTED PERSONAL DATA
Tendring DC,http://statistics.data.gov.uk/id/local-authority-district/22UN,Life Opportunities,5140 - Homelessness,4680 - Bed & Breakfast Accommodation,09/09/2014,2116019-1,448,REDACTED PERSONAL DATA,REDACTED PERSONAL DATA
Tendring DC,http://statistics.data.gov.uk/id/local-authority-district/22UN,Life Opportunities,5140 - Homelessness,4680 - Bed & Breakfast Accommodation,09/09/2014,2116019-2,112,REDACTED PERSONAL DATA,REDACTED PERSONAL DATA
Tendring DC,http://statistics.data.gov.uk/id/local-authority-district/22UN,Life Opportunities,5140 - Homelessness,4680 - Bed & Breakfast Accommodation,09/09/2014,2116020-1,448,REDACTED PERSONAL DATA,REDACTED PERSONAL DATA
Tendring DC,http://statistics.data.gov.uk/id/local-authority-district/22UN,Life Opportunities,5140 - Homelessness,4680 - Bed & Breakfast Accommodation,09/09/2014,2116020-2,112,REDACTED PERSONAL DATA,REDACTED PERSONAL DATA
Tendring DC,http://statistics.data.gov.uk/id/local-authority-district/22UN,Life Opportunities,5140 - Homelessness,4680 - Bed & Breakfast Accommodation,09/09/2014,2116021-1,184,REDACTED PERSONAL DATA,REDACTED PERSONAL DATA
Tendring DC,http://statistics.data.gov.uk/id/local-authority-district/22UN,Life Opportunities,5140 - Homelessness,4680 - Bed & Breakfast Accommodation,09/09/2014,2116021-2,96,REDACTED PERSONAL DATA,REDACTED PERSONAL DATA
Tendring DC,http://statistics.data.gov.uk/id/local-authority-district/22UN,Life Opportunities,5140 - Homelessness,4680 - Bed & Breakfast Accommodation,09/09/2014,2116022-1,224,REDACTED PERSONAL DATA,REDACTED PERSONAL DATA
Tendring DC,http://statistics.data.gov.uk/id/local-authority-district/22UN,Life Opportunities,5140 - Homelessness,4680 - Bed & Breakfast Accommodation,09/09/2014,2116022-2,56,REDACTED PERSONAL DATA,REDACTED PERSONAL DATA
Tendring DC,http://statistics.data.gov.uk/id/local-authority-district/22UN,Life Opportunities,5140 - Homelessness,4680 - Bed & Breakfast Accommodation,09/09/2014,2116023-1,56,REDACTED PERSONAL DATA,REDACTED PERSONAL DATA
Tendring DC,http://statistics.data.gov.uk/id/local-authority-district/22UN,Life Opportunities,5140 - Homelessness,4680 - Bed & Breakfast Accommodation,09/09/2014,2116023-2,224,REDACTED PERSONAL DATA,REDACTED PERSONAL DATA
Tendring DC,http://statistics.data.gov.uk/id/local-authority-district/22UN,Life Opportunities,5140 - Homelessness,4680 - Bed & Breakfast Accommodation,09/09/2014,2116024-1,168,REDACTED PERSONAL DATA,REDACTED PERSONAL DATA
Tendring DC,http://statistics.data.gov.uk/id/local-authority-district/22UN,Life Opportunities,5140 - Homelessness,4680 - Bed & Breakfast Accommodation,09/09/2014,2116024-2,42,REDACTED PERSONAL DATA,REDACTED PERSONAL DATA
Tendring DC,http://statistics.data.gov.uk/id/local-authority-district/22UN,Life Opportunities,5140 - Homelessness,4680 - Bed & Breakfast Accommodation,09/09/2014,2116025-1,168,REDACTED PERSONAL DATA,REDACTED PERSONAL DATA
Tendring DC,http://statistics.data.gov.uk/id/local-authority-district/22UN,Life Opportunities,5140 - Homelessness,4680 - Bed & Breakfast Accommodation,09/09/2014,2116025-2,42,REDACTED PERSONAL DATA,REDACTED PERSONAL DATA
Tendring DC,http://statistics.data.gov.uk/id/local-authority-district/22UN,Life Opportunities,5140 - Homelessness,4680 - Bed & Breakfast Accommodation,09/09/2014,2116026-1,168,REDACTED PERSONAL DATA,REDACTED PERSONAL DATA
Tendring DC,http://statistics.data.gov.uk/id/local-authority-district/22UN,Life Opportunities,5140 - Homelessness,4680 - Bed & Breakfast Accommodation,09/09/2014,2116026-2,42,REDACTED PERSONAL DATA,REDACTED PERSONAL DATA
Tendring DC,http://statistics.data.gov.uk/id/local-authority-district/22UN,Life Opportunities,5140 - Homelessness,4680 - Bed & Breakfast Accommodation,09/09/2014,2116027-1,168,REDACTED PERSONAL DATA,REDACTED PERSONAL DATA
Tendring DC,http://statistics.data.gov.uk/id/local-authority-district/22UN,Life Opportunities,5140 - Homelessness,4680 - Bed & Breakfast Accommodation,09/09/2014,2116027-2,42,REDACTED PERSONAL DATA,REDACTED PERSONAL DATA
Tendring DC,http://statistics.data.gov.uk/id/local-authority-district/22UN,Life Opportunities,5140 - Homelessness,4680 - Bed & Breakfast Accommodation,09/09/2014,2116028-1,448,REDACTED PERSONAL DATA,REDACTED PERSONAL DATA
Tendring DC,http://statistics.data.gov.uk/id/local-authority-district/22UN,Life Opportunities,5140 - Homelessness,4680 - Bed & Breakfast Accommodation,09/09/2014,2116028-2,112,REDACTED PERSONAL DATA,REDACTED PERSONAL DATA
Tendring DC,http://statistics.data.gov.uk/id/local-authority-district/22UN,Life Opportunities,5140 - Homelessness,4680 - Bed & Breakfast Accommodation,09/09/2014,2116029-1,448,REDACTED PERSONAL DATA,REDACTED PERSONAL DATA
Tendring DC,http://statistics.data.gov.uk/id/local-authority-district/22UN,Life Opportunities,5140 - Homelessness,4680 - Bed & Breakfast Accommodation,09/09/2014,2116029-2,112,REDACTED PERSONAL DATA,REDACTED PERSONAL DATA
Tendring DC,http://statistics.data.gov.uk/id/local-authority-district/22UN,Life Opportunities,7000 - CCTV,4400 - Maintenance Under Service Agreements,23/09/2014,2116269-1,250,2113346 - Chroma Vision Ltd,replacement router dovercourt
Tendring DC,http://statistics.data.gov.uk/id/local-authority-district/22UN,Life Opportunities,7000 - CCTV,4400 - Maintenance Under Service Agreements,23/09/2014,2116270-1,360,2113346 - Chroma Vision Ltd,map generation
Tendring DC,http://statistics.data.gov.uk/id/local-authority-district/22UN,Life Opportunities,7000 - CCTV,4400 - Maintenance Under Service Agreements,23/09/2014,2116271-1,629,2113346 - Chroma Vision Ltd,cctv monitor replacement
Tendring DC,http://statistics.data.gov.uk/id/local-authority-district/22UN,Life Opportunities,7000 - CCTV,4400 - Maintenance Under Service Agreements,23/09/2014,2116272-1,378,2113346 - Chroma Vision Ltd,camera 1 repair & reinstall
Tendring DC,http://statistics.data.gov.uk/id/local-authority-district/22UN,Life Opportunities,7000 - CCTV,4400 - Maintenance Under Service Agreements,23/09/2014,2116273-1,1800,2113346 - Chroma Vision Ltd,cop/procedures
Tendring DC,http://statistics.data.gov.uk/id/local-authority-district/22UN,Life Opportunities,7000 - CCTV,4400 - Maintenance Under Service Agreements,23/09/2014,2116274-1,304,2113346 - Chroma Vision Ltd,ip reprogramming for wireless equipment
Tendring DC,http://statistics.data.gov.uk/id/local-authority-district/22UN,Life Opportunities,7000 - CCTV,4400 - Maintenance Under Service Agreements,23/09/2014,2116275-1,750,2113346 - Chroma Vision Ltd,mains for dovercourt station
Tendring DC,http://statistics.data.gov.uk/id/local-authority-district/22UN,Life Opportunities,7000 - CCTV,4400 - Maintenance Under Service Agreements,23/09/2014,7014953-1,6654.4,2113346 - Chroma Vision Ltd,SUPPLY & INSTALLATION CCTV SIGNS
Tendring DC,http://statistics.data.gov.uk/id/local-authority-district/22UN,Life Opportunities,5480 - HRA - Repair & Maintenance,2073 - Smoke Alarm Service/Testing,02/09/2014,2115879-1,185,2100237 - Cirrus Communication Systems Ltd,belmans court
Tendring DC,http://statistics.data.gov.uk/id/local-authority-district/22UN,Life Opportunities,8510 - Dovercourt Swimming Pool & All Weather Facilities,4000 - Furniture,23/09/2014,2116280-1,45.97,2100267 - City Electrical Factors Ltd Anglia Division,dovercourt pool - bulbs
Tendring DC,http://statistics.data.gov.uk/id/local-authority-district/22UN,Life Opportunities,8540 - Leisure Centre Clacton,2100 - Building Repairs,23/09/2014,2116314-1,67.42,2100218 - Clacton Electronics Ltd,pa repairs
Tendring DC,http://statistics.data.gov.uk/id/local-authority-district/22UN,Life Opportunities,1880 - Office Accommodation Expenses,2100 - Building Repairs,23/09/2014,2116285-1,359.2,2100258 - Clacton Tile Centre Ltd,equipment for room 3 council tax
Tendring DC,http://statistics.data.gov.uk/id/local-authority-district/22UN,Life Opportunities,8510 - Dovercourt Swimming Pool & All Weather Facilities,9283 - Memberships - DD,30/09/2014,1061276-1,25,REDACTED PERSONAL DATA,REDACTED PERSONAL DATA
Tendring DC,http://statistics.data.gov.uk/id/local-authority-district/22UN,Life Opportunities,6160 - Princes Theatre,4040 - Equipment & Tools,16/09/2014,2116113-1,613.7,2114277 - Clear Display Ltd,water proof snaps
Tendring DC,http://statistics.data.gov.uk/id/local-authority-district/22UN,Life Opportunities,5860 - Manningtree Sports Centre,4597 - Hired Services - Payments to Contractors,23/09/2014,2116277-1,367.5,2112840 - Colchester School of Gymnastics,gymnastics coaching
Tendring DC,http://statistics.data.gov.uk/id/local-authority-district/22UN,Life Opportunities,"1580 - Benefits, Revenues and Customer Contact SU",4462 - Bailiffs and Tracing Agent Fees re debt recovery,16/09/2014,1061120-1,590.32,2100381 - Collect Services Ltd,VAT ON FEES COLLECTED CT ON 4196.44
Tendring DC,http://statistics.data.gov.uk/id/local-authority-district/22UN,Life Opportunities,"1580 - Benefits, Revenues and Customer Contact SU",4462 - Bailiffs and Tracing Agent Fees re debt recovery,16/09/2014,1061120-2,-590.32,2100381 - Collect Services Ltd,VAT ON FEES COLLECTED CT ON 4196.44
Tendring DC,http://statistics.data.gov.uk/id/local-authority-district/22UN,Life Opportunities,"1580 - Benefits, Revenues and Customer Contact SU",4462 - Bailiffs and Tracing Agent Fees re debt recovery,23/09/2014,1061213-1,3046.18,2100381 - Collect Services Ltd,VAT ON FEES COLLECTED C/T RECOVERED 7885.11
Tendring DC,http://statistics.data.gov.uk/id/local-authority-district/22UN,Life Opportunities,"1580 - Benefits, Revenues and Customer Contact SU",4462 - Bailiffs and Tracing Agent Fees re debt recovery,23/09/2014,1061213-2,-3046.18,2100381 - Collect Services Ltd,VAT ON FEES COLLECTED C/T RECOVERED 7885.11
Tendring DC,http://statistics.data.gov.uk/id/local-authority-district/22UN,Life Opportunities,"1580 - Benefits, Revenues and Customer Contact SU",4462 - Bailiffs and Tracing Agent Fees re debt recovery,23/09/2014,1061214-1,-81.85,2100381 - Collect Services Ltd,VAT ON FEES COLLECTED BUS RATES RECOVERED 918.15
Tendring DC,http://statistics.data.gov.uk/id/local-authority-district/22UN,Life Opportunities,"1580 - Benefits, Revenues and Customer Contact SU",4462 - Bailiffs and Tracing Agent Fees re debt recovery,23/09/2014,1061214-2,81.85,2100381 - Collect Services Ltd,VAT ON FEES COLLECTED BUS RATES RECOVERED 918.15
Tendring DC,http://statistics.data.gov.uk/id/local-authority-district/22UN,Life Opportunities,"1580 - Benefits, Revenues and Customer Contact SU",4462 - Bailiffs and Tracing Agent Fees re debt recovery,23/09/2014,1061215-1,5,2100381 - Collect Services Ltd,VAT ON FEES COLLECTED CT RECOVERED 5667.29
Tendring DC,http://statistics.data.gov.uk/id/local-authority-district/22UN,Life Opportunities,"1580 - Benefits, Revenues and Customer Contact SU",4462 - Bailiffs and Tracing Agent Fees re debt recovery,23/09/2014,1061215-2,-5,2100381 - Collect Services Ltd,VAT ON FEES COLLECTED CT RECOVERED 5667.29
Tendring DC,http://statistics.data.gov.uk/id/local-authority-district/22UN,Life Opportunities,"1580 - Benefits, Revenues and Customer Contact SU",4462 - Bailiffs and Tracing Agent Fees re debt recovery,23/09/2014,1061215-3,991.98,2100381 - Collect Services Ltd,VAT ON FEES COLLECTED CT RECOVERED 5667.29
Tendring DC,http://statistics.data.gov.uk/id/local-authority-district/22UN,Life Opportunities,"1580 - Benefits, Revenues and Customer Contact SU",4462 - Bailiffs and Tracing Agent Fees re debt recovery,23/09/2014,1061215-4,-991.98,2100381 - Collect Services Ltd,VAT ON FEES COLLECTED CT RECOVERED 5667.29
Tendring DC,http://statistics.data.gov.uk/id/local-authority-district/22UN,Life Opportunities,"1580 - Benefits, Revenues and Customer Contact SU",4462 - Bailiffs and Tracing Agent Fees re debt recovery,09/09/2014,2116043-1,34.86,2100381 - Collect Services Ltd,vat on fees collected nndr on 246.14
Tendring DC,http://statistics.data.gov.uk/id/local-authority-district/22UN,Life Opportunities,"1580 - Benefits, Revenues and Customer Contact SU",4462 - Bailiffs and Tracing Agent Fees re debt recovery,09/09/2014,2116043-2,-34.86,2100381 - Collect Services Ltd,vat on fees collected nndr on 246.14
Tendring DC,http://statistics.data.gov.uk/id/local-authority-district/22UN,Life Opportunities,"1580 - Benefits, Revenues and Customer Contact SU",4462 - Bailiffs and Tracing Agent Fees re debt recovery,09/09/2014,2116044-1,102,2100381 - Collect Services Ltd,vat on fees collected nndr on 850
Tendring DC,http://statistics.data.gov.uk/id/local-authority-district/22UN,Life Opportunities,"1580 - Benefits, Revenues and Customer Contact SU",4462 - Bailiffs and Tracing Agent Fees re debt recovery,09/09/2014,2116044-2,-102,2100381 - Collect Services Ltd,vat on fees collected nndr on 850
Tendring DC,http://statistics.data.gov.uk/id/local-authority-district/22UN,Life Opportunities,"1580 - Benefits, Revenues and Customer Contact SU",4462 - Bailiffs and Tracing Agent Fees re debt recovery,09/09/2014,2116045-1,1065.57,2100381 - Collect Services Ltd,"vat on fees collected ct on 6,147.01"
Tendring DC,http://statistics.data.gov.uk/id/local-authority-district/22UN,Life Opportunities,"1580 - Benefits, Revenues and Customer Contact SU",4462 - Bailiffs and Tracing Agent Fees re debt recovery,09/09/2014,2116045-2,-1065.57,2100381 - Collect Services Ltd,"vat on fees collected ct on 6,147.01"
Tendring DC,http://statistics.data.gov.uk/id/local-authority-district/22UN,Life Opportunities,"1580 - Benefits, Revenues and Customer Contact SU",4462 - Bailiffs and Tracing Agent Fees re debt recovery,09/09/2014,2116045-3,5,2100381 - Collect Services Ltd,"vat on fees collected ct on 6,147.01"
Tendring DC,http://statistics.data.gov.uk/id/local-authority-district/22UN,Life Opportunities,"1580 - Benefits, Revenues and Customer Contact SU",4462 - Bailiffs and Tracing Agent Fees re debt recovery,09/09/2014,2116045-4,-5,2100381 - Collect Services Ltd,"vat on fees collected ct on 6,147.01"
Tendring DC,http://statistics.data.gov.uk/id/local-authority-district/22UN,Life Opportunities,"1580 - Benefits, Revenues and Customer Contact SU",4462 - Bailiffs and Tracing Agent Fees re debt recovery,09/09/2014,2116046-1,3657.66,2100381 - Collect Services Ltd,vat on fees collected ct on 12834.48
Tendring DC,http://statistics.data.gov.uk/id/local-authority-district/22UN,Life Opportunities,"1580 - Benefits, Revenues and Customer Contact SU",4462 - Bailiffs and Tracing Agent Fees re debt recovery,09/09/2014,2116046-2,-3657.66,2100381 - Collect Services Ltd,vat on fees collected ct on 12834.48
Tendring DC,http://statistics.data.gov.uk/id/local-authority-district/22UN,Life Opportunities,"1580 - Benefits, Revenues and Customer Contact SU",5189 - External Debt Recovery Commission,16/09/2014,2116104-1,237.13,2100381 - Collect Services Ltd,15& commission on 1580.86 debts
Tendring DC,http://statistics.data.gov.uk/id/local-authority-district/22UN,Life Opportunities,"1580 - Benefits, Revenues and Customer Contact SU",4462 - Bailiffs and Tracing Agent Fees re debt recovery,16/09/2014,2116134-1,101.28,2100381 - Collect Services Ltd,vat on fees collected nndr on 273.72
Tendring DC,http://statistics.data.gov.uk/id/local-authority-district/22UN,Life Opportunities,"1580 - Benefits, Revenues and Customer Contact SU",4462 - Bailiffs and Tracing Agent Fees re debt recovery,16/09/2014,2116134-2,-101.28,2100381 - Collect Services Ltd,vat on fees collected nndr on 273.72
Tendring DC,http://statistics.data.gov.uk/id/local-authority-district/22UN,Life Opportunities,"1580 - Benefits, Revenues and Customer Contact SU",4462 - Bailiffs and Tracing Agent Fees re debt recovery,30/09/2014,2116333-1,5,2100381 - Collect Services Ltd,vat on fees collected ct 3745.37 recovered
Tendring DC,http://statistics.data.gov.uk/id/local-authority-district/22UN,Life Opportunities,"1580 - Benefits, Revenues and Customer Contact SU",4462 - Bailiffs and Tracing Agent Fees re debt recovery,30/09/2014,2116333-2,-5,2100381 - Collect Services Ltd,vat on fees collected ct 3745.37 recovered
Tendring DC,http://statistics.data.gov.uk/id/local-authority-district/22UN,Life Opportunities,"1580 - Benefits, Revenues and Customer Contact SU",4462 - Bailiffs and Tracing Agent Fees re debt recovery,30/09/2014,2116333-3,810.27,2100381 - Collect Services Ltd,vat on fees collected ct 3745.37 recovered
Tendring DC,http://statistics.data.gov.uk/id/local-authority-district/22UN,Life Opportunities,"1580 - Benefits, Revenues and Customer Contact SU",4462 - Bailiffs and Tracing Agent Fees re debt recovery,30/09/2014,2116333-4,-810.27,2100381 - Collect Services Ltd,vat on fees collected ct 3745.37 recovered
Tendring DC,http://statistics.data.gov.uk/id/local-authority-district/22UN,Life Opportunities,"1580 - Benefits, Revenues and Customer Contact SU",4462 - Bailiffs and Tracing Agent Fees re debt recovery,30/09/2014,2116334-1,32.85,2100381 - Collect Services Ltd,vat on fees collected bus rates 342.15 recovered
Tendring DC,http://statistics.data.gov.uk/id/local-authority-district/22UN,Life Opportunities,"1580 - Benefits, Revenues and Customer Contact SU",4462 - Bailiffs and Tracing Agent Fees re debt recovery,30/09/2014,2116334-2,-32.85,2100381 - Collect Services Ltd,vat on fees collected bus rates 342.15 recovered
Tendring DC,http://statistics.data.gov.uk/id/local-authority-district/22UN,Life Opportunities,"1580 - Benefits, Revenues and Customer Contact SU",4462 - Bailiffs and Tracing Agent Fees re debt recovery,30/09/2014,2116335-1,4707.9,2100381 - Collect Services Ltd,"vat on fees collected ct 13,972.18"
Tendring DC,http://statistics.data.gov.uk/id/local-authority-district/22UN,Life Opportunities,"1580 - Benefits, Revenues and Customer Contact SU",4462 - Bailiffs and Tracing Agent Fees re debt recovery,30/09/2014,2116335-2,-4707.9,2100381 - Collect Services Ltd,"vat on fees collected ct 13,972.18"
Tendring DC,http://statistics.data.gov.uk/id/local-authority-district/22UN,Life Opportunities,9900 - General Fund Balance Sheet,B863 - Bailiff Payments Holding Account,02/09/2014,1060903-1,3818.09,REDACTED COMMERCIAL CONFIDENTIALITY,REDACTED COMMERCIAL CONFIDENTIALITY
Tendring DC,http://statistics.data.gov.uk/id/local-authority-district/22UN,Life Opportunities,9900 - General Fund Balance Sheet,B863 - Bailiff Payments Holding Account,09/09/2014,1061053-1,3040.5,REDACTED COMMERCIAL CONFIDENTIALITY,REDACTED COMMERCIAL CONFIDENTIALITY
Tendring DC,http://statistics.data.gov.uk/id/local-authority-district/22UN,Life Opportunities,9900 - General Fund Balance Sheet,B863 - Bailiff Payments Holding Account,16/09/2014,1061123-1,1876.5,REDACTED COMMERCIAL CONFIDENTIALITY,REDACTED COMMERCIAL CONFIDENTIALITY
Tendring DC,http://statistics.data.gov.uk/id/local-authority-district/22UN,Life Opportunities,9900 - General Fund Balance Sheet,B863 - Bailiff Payments Holding Account,23/09/2014,1061225-1,2157.5,REDACTED COMMERCIAL CONFIDENTIALITY,REDACTED COMMERCIAL CONFIDENTIALITY
Tendring DC,http://statistics.data.gov.uk/id/local-authority-district/22UN,Life Opportunities,9900 - General Fund Balance Sheet,B863 - Bailiff Payments Holding Account,30/09/2014,1061306-1,2284.5,REDACTED COMMERCIAL CONFIDENTIALITY,REDACTED COMMERCIAL CONFIDENTIALITY
Tendring DC,http://statistics.data.gov.uk/id/local-authority-district/22UN,Life Opportunities,5365 - HRA - Colne Housing Soc Shel Units,4404 - Service Agreement - Foundry Court,30/09/2014,2116397-1,1404.91,2100342 - Colne Housing Society Ltd,2nd quarter
Tendring DC,http://statistics.data.gov.uk/id/local-authority-district/22UN,Life Opportunities,1650 - Building Services Service Unit,4040 - Equipment & Tools,09/09/2014,1060987-1,110,2110168 - CoolerAid Ltd,X2 RENTAL RENEWAL 14
Tendring DC,http://statistics.data.gov.uk/id/local-authority-district/22UN,Life Opportunities,1100 - Corporate Director (Corporate Services) and Admin Service Unit,4094 - Other Equipment Hire/Leasing,09/09/2014,1060987-2,110,2110168 - CoolerAid Ltd,X2 RENTAL RENEWAL 14
Tendring DC,http://statistics.data.gov.uk/id/local-authority-district/22UN,Life Opportunities,H920 - Disabled Facilities Grants,C400 - Grant payments,09/09/2014,1060959-1,5947.97,REDACTED PERSONAL DATA,REDACTED PERSONAL DATA
Tendring DC,http://statistics.data.gov.uk/id/local-authority-district/22UN,Life Opportunities,8510 - Dovercourt Swimming Pool & All Weather Facilities,2100 - Building Repairs,16/09/2014,1061060-1,33,2100314 - Cooper & Brome (Plumbing & Heating) Ltd,DOVERCOURT SWIMMING POOL
Tendring DC,http://statistics.data.gov.uk/id/local-authority-district/22UN,Life Opportunities,5820 - Harwich Sports Centre,2100 - Building Repairs,16/09/2014,1061061-1,64.29,2100314 - Cooper & Brome (Plumbing & Heating) Ltd,PLUMBING REPAIRS
Tendring DC,http://statistics.data.gov.uk/id/local-authority-district/22UN,Life Opportunities,H920 - Disabled Facilities Grants,C400 - Grant payments,16/09/2014,1061070-1,286,REDACTED PERSONAL DATA,REDACTED PERSONAL DATA
Tendring DC,http://statistics.data.gov.uk/id/local-authority-district/22UN,Life Opportunities,H920 - Disabled Facilities Grants,C400 - Grant payments,23/09/2014,7015009-1,107,REDACTED PERSONAL DATA,REDACTED PERSONAL DATA
Tendring DC,http://statistics.data.gov.uk/id/local-authority-district/22UN,Life Opportunities,8540 - Leisure Centre Clacton,2308 - Energy Costs - Gas (Including LPG),02/09/2014,2115811-1,1158.02,2104620 - Corona Energy Retail 4 Limited,july
Tendring DC,http://statistics.data.gov.uk/id/local-authority-district/22UN,Life Opportunities,5340 - HRA - Communal Central Heating,2308 - Energy Costs - Gas (Including LPG),09/09/2014,2115905-1,784.82,2104620 - Corona Energy Retail 4 Limited,mead hse oct 14
Tendring DC,http://statistics.data.gov.uk/id/local-authority-district/22UN,Life Opportunities,5340 - HRA - Communal Central Heating,2308 - Energy Costs - Gas (Including LPG),09/09/2014,2115906-1,1131.46,2104620 - Corona Energy Retail 4 Limited,mead hse nov 13
Tendring DC,http://statistics.data.gov.uk/id/local-authority-district/22UN,Life Opportunities,5340 - HRA - Communal Central Heating,2308 - Energy Costs - Gas (Including LPG),09/09/2014,2115907-1,1393.53,2104620 - Corona Energy Retail 4 Limited,mead hse dec 13
Tendring DC,http://statistics.data.gov.uk/id/local-authority-district/22UN,Life Opportunities,5340 - HRA - Communal Central Heating,2304 - Energy Costs - Electricity,09/09/2014,2115908-1,1420.49,2104620 - Corona Energy Retail 4 Limited,mead hse jan 14
Tendring DC,http://statistics.data.gov.uk/id/local-authority-district/22UN,Life Opportunities,5340 - HRA - Communal Central Heating,2308 - Energy Costs - Gas (Including LPG),09/09/2014,2115909-1,1293.72,2104620 - Corona Energy Retail 4 Limited,mead hse feb 14
Tendring DC,http://statistics.data.gov.uk/id/local-authority-district/22UN,Life Opportunities,5340 - HRA - Communal Central Heating,2308 - Energy Costs - Gas (Including LPG),09/09/2014,2115910-1,1194.89,2104620 - Corona Energy Retail 4 Limited,mead hse march 14
Tendring DC,http://statistics.data.gov.uk/id/local-authority-district/22UN,Life Opportunities,5340 - HRA - Communal Central Heating,2308 - Energy Costs - Gas (Including LPG),09/09/2014,2115911-1,933.28,2104620 - Corona Energy Retail 4 Limited,mead hse april 14
Tendring DC,http://statistics.data.gov.uk/id/local-authority-district/22UN,Life Opportunities,5340 - HRA - Communal Central Heating,2308 - Energy Costs - Gas (Including LPG),09/09/2014,2115912-1,645.06,2104620 - Corona Energy Retail 4 Limited,mead hse may 14
Tendring DC,http://statistics.data.gov.uk/id/local-authority-district/22UN,Life Opportunities,5340 - HRA - Communal Central Heating,2304 - Energy Costs - Electricity,09/09/2014,2115913-1,478.08,2104620 - Corona Energy Retail 4 Limited,mead hse june 14
Tendring DC,http://statistics.data.gov.uk/id/local-authority-district/22UN,Life Opportunities,5340 - HRA - Communal Central Heating,2304 - Energy Costs - Electricity,09/09/2014,2115914-1,469.56,2104620 - Corona Energy Retail 4 Limited,mead hse july 14
Tendring DC,http://statistics.data.gov.uk/id/local-authority-district/22UN,Life Opportunities,8520 - Frinton & Walton Swimming Pool,2308 - Energy Costs - Gas (Including LPG),16/09/2014,2116093-1,2625.18,2104620 - Corona Energy Retail 4 Limited,fwsp - corona
Tendring DC,http://statistics.data.gov.uk/id/local-authority-district/22UN,Life Opportunities,8510 - Dovercourt Swimming Pool & All Weather Facilities,2308 - Energy Costs - Gas (Including LPG),16/09/2014,2116112-1,2155.97,2104620 - Corona Energy Retail 4 Limited,july elec
Tendring DC,http://statistics.data.gov.uk/id/local-authority-district/22UN,Life Opportunities,5140 - Homelessness,4683 - Other Homelessness Expenses,23/09/2014,1061179-1,95,REDACTED PERSONAL DATA,REDACTED PERSONAL DATA
Tendring DC,http://statistics.data.gov.uk/id/local-authority-district/22UN,Life Opportunities,5140 - Homelessness,4683 - Other Homelessness Expenses,23/09/2014,1061180-1,25,REDACTED PERSONAL DATA,REDACTED PERSONAL DATA
Tendring DC,http://statistics.data.gov.uk/id/local-authority-district/22UN,Life Opportunities,5140 - Homelessness,4683 - Other Homelessness Expenses,23/09/2014,1061181-1,450,REDACTED PERSONAL DATA,REDACTED PERSONAL DATA
Tendring DC,http://statistics.data.gov.uk/id/local-authority-district/22UN,Life Opportunities,5140 - Homelessness,4683 - Other Homelessness Expenses,23/09/2014,1061175-1,275,REDACTED PERSONAL DATA,REDACTED PERSONAL DATA
Tendring DC,http://statistics.data.gov.uk/id/local-authority-district/22UN,Life Opportunities,5140 - Homelessness,4683 - Other Homelessness Expenses,23/09/2014,1061176-1,435,REDACTED PERSONAL DATA,REDACTED PERSONAL DATA
Tendring DC,http://statistics.data.gov.uk/id/local-authority-district/22UN,Life Opportunities,6160 - Princes Theatre,4622 - Hired Services - Artistes and Production Companies,16/09/2014,2116196-1,1149.03,2111937 - Crimson Fair Ltd,surfin usa
Tendring DC,http://statistics.data.gov.uk/id/local-authority-district/22UN,Life Opportunities,7610 - TDC Events - Council Owned Land,4094 - Other Equipment Hire/Leasing,02/09/2014,2115852-1,3320,2114295 - Cyberstein Robots Ltd,robot hire for airshow
Tendring DC,http://statistics.data.gov.uk/id/local-authority-district/22UN,Life Opportunities,H860 - Disabled Adaptations,C200 - Main Contractor,09/09/2014,1060921-1,450,REDACTED PERSONAL DATA,REDACTED PERSONAL DATA
Tendring DC,http://statistics.data.gov.uk/id/local-authority-district/22UN,Life Opportunities,6160 - Princes Theatre,4220 - Laundry,16/09/2014,2116122-1,7.1,2100397 - Danes of Colchester Ltd,dry cleaning for theatre
Tendring DC,http://statistics.data.gov.uk/id/local-authority-district/22UN,Life Opportunities,6160 - Princes Theatre,4220 - Laundry,16/09/2014,2116123-1,4.8,2100397 - Danes of Colchester Ltd,dry cleaning for theatre
Tendring DC,http://statistics.data.gov.uk/id/local-authority-district/22UN,Life Opportunities,1760 - IT Direct Service Costs,4715 - Data Communication Charge,23/09/2014,7014922-1,519.02,2109315 - Data Track Technology plc,ECLIPSE 111 CALL MANAGEMENT 24.08.-24.08.15 MAINTENANCE
Tendring DC,http://statistics.data.gov.uk/id/local-authority-district/22UN,Life Opportunities,5480 - HRA - Repair & Maintenance,2071 - Electric Installation Testing,09/09/2014,1061052-1,2445.68,2113648 - David Stagg and Associates Ltd,TEST INSPECT UPGRADE & REWIRE 19 PROPERTIES
Tendring DC,http://statistics.data.gov.uk/id/local-authority-district/22UN,Life Opportunities,5480 - HRA - Repair & Maintenance,2072 - Planned Partial Refurbishment To Electrical Instal,09/09/2014,1061052-2,10593.5,2113648 - David Stagg and Associates Ltd,TEST INSPECT UPGRADE & REWIRE 19 PROPERTIES
Tendring DC,http://statistics.data.gov.uk/id/local-authority-district/22UN,Life Opportunities,H810 - Electrical Re-wiring,C200 - Main Contractor,09/09/2014,1061052-3,3744.76,2113648 - David Stagg and Associates Ltd,TEST INSPECT UPGRADE & REWIRE 19 PROPERTIES
Tendring DC,http://statistics.data.gov.uk/id/local-authority-district/22UN,Life Opportunities,5480 - HRA - Repair & Maintenance,2071 - Electric Installation Testing,30/09/2014,1061314-1,1802.08,2113648 - David Stagg and Associates Ltd,TEST INSPECT UPGRADE AND REWIRE 15 PROPERTIES
Tendring DC,http://statistics.data.gov.uk/id/local-authority-district/22UN,Life Opportunities,5480 - HRA - Repair & Maintenance,2072 - Planned Partial Refurbishment To Electrical Instal,30/09/2014,1061314-2,9336.87,2113648 - David Stagg and Associates Ltd,TEST INSPECT UPGRADE AND REWIRE 15 PROPERTIES
Tendring DC,http://statistics.data.gov.uk/id/local-authority-district/22UN,Life Opportunities,H810 - Electrical Re-wiring,C200 - Main Contractor,30/09/2014,1061314-3,1770.55,2113648 - David Stagg and Associates Ltd,TEST INSPECT UPGRADE AND REWIRE 15 PROPERTIES
Tendring DC,http://statistics.data.gov.uk/id/local-authority-district/22UN,Life Opportunities,5240 - HRA - Managing Tenancies,5242 - Tenant Relations,09/09/2014,1061045-1,10,REDACTED PERSONAL DATA,REDACTED PERSONAL DATA
Tendring DC,http://statistics.data.gov.uk/id/local-authority-district/22UN,Life Opportunities,8540 - Leisure Centre Clacton,9283 - Memberships - DD,02/09/2014,2115837-1,70,REDACTED PERSONAL DATA,REDACTED PERSONAL DATA
Tendring DC,http://statistics.data.gov.uk/id/local-authority-district/22UN,Life Opportunities,5480 - HRA - Repair & Maintenance,2068 - Other Minor Equipment Repairs,16/09/2014,2116090-1,105,2100490 - DORMA UK Ltd - Service Division,belamns court
Tendring DC,http://statistics.data.gov.uk/id/local-authority-district/22UN,Life Opportunities,5440 - HRA - Communal Electricity,2304 - Energy Costs - Electricity,16/09/2014,2116084-1,28.54,2107644 - E.ON,35-41 abbott road
Tendring DC,http://statistics.data.gov.uk/id/local-authority-district/22UN,Life Opportunities,5480 - HRA - Repair & Maintenance,2304 - Energy Costs - Electricity,30/09/2014,2116384-1,16.69,2107644 - E.ON,38 mary warner
Tendring DC,http://statistics.data.gov.uk/id/local-authority-district/22UN,Life Opportunities,5880 - Management Of Sport & Leisure Facilities,2100 - Building Repairs,09/09/2014,2115920-1,887,REDACTED PERSONAL DATA,REDACTED PERSONAL DATA
Tendring DC,http://statistics.data.gov.uk/id/local-authority-district/22UN,Life Opportunities,7560 - Tourism Publications,4668 - Production Expenses,09/09/2014,1060995-1,408,2100404 - Easy Tigernet,PHOTOGRAPHY AIRSHOW 14
Tendring DC,http://statistics.data.gov.uk/id/local-authority-district/22UN,Life Opportunities,8510 - Dovercourt Swimming Pool & All Weather Facilities,2304 - Energy Costs - Electricity,16/09/2014,1061121-1,2706.09,2105146 - EDF Energy 1 Ltd,EDF DSP AUG
Tendring DC,http://statistics.data.gov.uk/id/local-authority-district/22UN,Life Opportunities,8510 - Dovercourt Swimming Pool & All Weather Facilities,2304 - Energy Costs - Electricity,16/09/2014,1061121-2,-4.43,2105146 - EDF Energy 1 Ltd,EDF DSP AUG
Tendring DC,http://statistics.data.gov.uk/id/local-authority-district/22UN,Life Opportunities,8510 - Dovercourt Swimming Pool & All Weather Facilities,2304 - Energy Costs - Electricity,16/09/2014,1061121-3,-13.72,2105146 - EDF Energy 1 Ltd,EDF DSP AUG
Tendring DC,http://statistics.data.gov.uk/id/local-authority-district/22UN,Life Opportunities,8540 - Leisure Centre Clacton,2304 - Energy Costs - Electricity,23/09/2014,1061209-1,6887.44,2105146 - EDF Energy 1 Ltd,AUGUST
Tendring DC,http://statistics.data.gov.uk/id/local-authority-district/22UN,Life Opportunities,8540 - Leisure Centre Clacton,2304 - Energy Costs - Electricity,23/09/2014,1061209-2,-4.43,2105146 - EDF Energy 1 Ltd,AUGUST
Tendring DC,http://statistics.data.gov.uk/id/local-authority-district/22UN,Life Opportunities,8540 - Leisure Centre Clacton,2304 - Energy Costs - Electricity,23/09/2014,1061209-3,-13.72,2105146 - EDF Energy 1 Ltd,AUGUST
Tendring DC,http://statistics.data.gov.uk/id/local-authority-district/22UN,Life Opportunities,1880 - Office Accommodation Expenses,2304 - Energy Costs - Electricity,16/09/2014,2116135-1,4838.84,2105146 - EDF Energy 1 Ltd,electricity town hall aug 14
Tendring DC,http://statistics.data.gov.uk/id/local-authority-district/22UN,Life Opportunities,1880 - Office Accommodation Expenses,2304 - Energy Costs - Electricity,16/09/2014,2116135-2,-3.99,2105146 - EDF Energy 1 Ltd,electricity town hall aug 14
Tendring DC,http://statistics.data.gov.uk/id/local-authority-district/22UN,Life Opportunities,1880 - Office Accommodation Expenses,2304 - Energy Costs - Electricity,16/09/2014,2116135-3,-12.35,2105146 - EDF Energy 1 Ltd,electricity town hall aug 14
Tendring DC,http://statistics.data.gov.uk/id/local-authority-district/22UN,Life Opportunities,6160 - Princes Theatre,2304 - Energy Costs - Electricity,16/09/2014,2116135-4,537.65,2105146 - EDF Energy 1 Ltd,electricity town hall aug 14
Tendring DC,http://statistics.data.gov.uk/id/local-authority-district/22UN,Life Opportunities,6160 - Princes Theatre,2304 - Energy Costs - Electricity,16/09/2014,2116135-5,-0.44,2105146 - EDF Energy 1 Ltd,electricity town hall aug 14
Tendring DC,http://statistics.data.gov.uk/id/local-authority-district/22UN,Life Opportunities,6160 - Princes Theatre,2304 - Energy Costs - Electricity,16/09/2014,2116135-6,-1.37,2105146 - EDF Energy 1 Ltd,electricity town hall aug 14
Tendring DC,http://statistics.data.gov.uk/id/local-authority-district/22UN,Life Opportunities,H920 - Disabled Facilities Grants,C400 - Grant payments,09/09/2014,1060955-1,1495,REDACTED PERSONAL DATA,REDACTED PERSONAL DATA
Tendring DC,http://statistics.data.gov.uk/id/local-authority-district/22UN,Life Opportunities,5140 - Homelessness,4680 - Bed & Breakfast Accommodation,30/09/2014,2116336-1,50,REDACTED PERSONAL DATA,REDACTED PERSONAL DATA
Tendring DC,http://statistics.data.gov.uk/id/local-authority-district/22UN,Life Opportunities,1242 - Corporate Director (Life Opportunities),1710 - Training - Central Department Budget,09/09/2014,1060985-1,55,2109345 - Essex County Council - ESAB,C LOW 28/10/14
Tendring DC,http://statistics.data.gov.uk/id/local-authority-district/22UN,Life Opportunities,1242 - Corporate Director (Life Opportunities),1710 - Training - Central Department Budget,09/09/2014,1060986-1,110,2109345 - Essex County Council - ESAB,D BUNCE & S FARLEY 28/10/14
Tendring DC,http://statistics.data.gov.uk/id/local-authority-district/22UN,Life Opportunities,1242 - Corporate Director (Life Opportunities),1710 - Training - Central Department Budget,23/09/2014,2116286-1,75,2109345 - Essex County Council - ESAB,domestic abuse 14/10/14
Tendring DC,http://statistics.data.gov.uk/id/local-authority-district/22UN,Life Opportunities,6740 - Careline,9050 - Careline Income - General,02/09/2014,2115834-1,5.4,2114265 - Essex Legal Services,careline refund
Tendring DC,http://statistics.data.gov.uk/id/local-authority-district/22UN,Life Opportunities,1242 - Corporate Director (Life Opportunities),1710 - Training - Central Department Budget,16/09/2014,2116080-1,165,REDACTED PERSONAL DATA,REDACTED PERSONAL DATA
Tendring DC,http://statistics.data.gov.uk/id/local-authority-district/22UN,Life Opportunities,1242 - Corporate Director (Life Opportunities),1710 - Training - Central Department Budget,16/09/2014,2116081-1,165,REDACTED PERSONAL DATA,REDACTED PERSONAL DATA
Tendring DC,http://statistics.data.gov.uk/id/local-authority-district/22UN,Life Opportunities,1880 - Office Accommodation Expenses,4632 - Security,30/09/2014,7015034-1,29.95,2114390 - Fire Safety Services (UK) Ltd,EXTINGUISHER SERVICE
Tendring DC,http://statistics.data.gov.uk/id/local-authority-district/22UN,Life Opportunities,1880 - Office Accommodation Expenses,4632 - Security,30/09/2014,7015035-1,442,2114390 - Fire Safety Services (UK) Ltd,FIRE SAFETY EQUIPMENT
Tendring DC,http://statistics.data.gov.uk/id/local-authority-district/22UN,Life Opportunities,5480 - HRA - Repair & Maintenance,2058 - Fire Alarms Repairs,02/09/2014,2115890-1,50,2108583 - Firesite,white hart court
Tendring DC,http://statistics.data.gov.uk/id/local-authority-district/22UN,Life Opportunities,5480 - HRA - Repair & Maintenance,2057 - Fire Alarms Servicing,02/09/2014,2115891-1,160,2108583 - Firesite,groom house
Tendring DC,http://statistics.data.gov.uk/id/local-authority-district/22UN,Life Opportunities,5480 - HRA - Repair & Maintenance,2058 - Fire Alarms Repairs,16/09/2014,2116152-1,100,2108583 - Firesite,crooked elm
Tendring DC,http://statistics.data.gov.uk/id/local-authority-district/22UN,Life Opportunities,5480 - HRA - Repair & Maintenance,2058 - Fire Alarms Repairs,23/09/2014,7014990-1,50,2108583 - Firesite,WHITEHART COURT
Tendring DC,http://statistics.data.gov.uk/id/local-authority-district/22UN,Life Opportunities,7600 - Tourist Information Centres,9356 - Commission Sales,09/09/2014,1061047-1,1795,2103743 - First Essex Buses Ltd,SALES FOR AUGUST 14 FIRST ESSEX
Tendring DC,http://statistics.data.gov.uk/id/local-authority-district/22UN,Life Opportunities,7600 - Tourist Information Centres,9356 - Commission Sales,09/09/2014,1061047-2,-179.5,2103743 - First Essex Buses Ltd,SALES FOR AUGUST 14 FIRST ESSEX
Tendring DC,http://statistics.data.gov.uk/id/local-authority-district/22UN,Life Opportunities,7600 - Tourist Information Centres,9356 - Commission Sales,02/09/2014,2115849-1,32,2107423 - Fizz Coach Trips,coach trip 06/07/14
Tendring DC,http://statistics.data.gov.uk/id/local-authority-district/22UN,Life Opportunities,7600 - Tourist Information Centres,9356 - Commission Sales,02/09/2014,2115849-2,-3.2,2107423 - Fizz Coach Trips,coach trip 06/07/14
Tendring DC,http://statistics.data.gov.uk/id/local-authority-district/22UN,Life Opportunities,1880 - Office Accommodation Expenses,2100 - Building Repairs,23/09/2014,2116287-1,107.19,2100584 - Frinton & Walton Town Council,cleaning cash office & communial area frinton
Tendring DC,http://statistics.data.gov.uk/id/local-authority-district/22UN,Life Opportunities,H920 - Disabled Facilities Grants,C400 - Grant payments,09/09/2014,1060958-1,1760,REDACTED PERSONAL DATA,REDACTED PERSONAL DATA
Tendring DC,http://statistics.data.gov.uk/id/local-authority-district/22UN,Life Opportunities,H920 - Disabled Facilities Grants,C400 - Grant payments,16/09/2014,1061068-1,1994,REDACTED PERSONAL DATA,REDACTED PERSONAL DATA
Tendring DC,http://statistics.data.gov.uk/id/local-authority-district/22UN,Life Opportunities,5820 - Harwich Sports Centre,4597 - Hired Services - Payments to Contractors,23/09/2014,1061206-1,50,2100546 - GCS Alarms,CHECK HALL DOOR CONTACTS
Tendring DC,http://statistics.data.gov.uk/id/local-authority-district/22UN,Life Opportunities,5820 - Harwich Sports Centre,4597 - Hired Services - Payments to Contractors,23/09/2014,1061207-1,50,2100546 - GCS Alarms,NEW CONTACTS ON FIRE DOORS
Tendring DC,http://statistics.data.gov.uk/id/local-authority-district/22UN,Life Opportunities,8510 - Dovercourt Swimming Pool & All Weather Facilities,4400 - Maintenance Under Service Agreements,02/09/2014,2115802-1,85,2100546 - GCS Alarms,dovercourt pool - alarms
Tendring DC,http://statistics.data.gov.uk/id/local-authority-district/22UN,Life Opportunities,7620 - Air Show,4094 - Other Equipment Hire/Leasing,09/09/2014,2115904-1,654,2100546 - GCS Alarms,radios & headsets airshow 14
Tendring DC,http://statistics.data.gov.uk/id/local-authority-district/22UN,Life Opportunities,1880 - Office Accommodation Expenses,4632 - Security,09/09/2014,2115915-1,80,2100546 - GCS Alarms,replace faulty id chip pier avenue
Tendring DC,http://statistics.data.gov.uk/id/local-authority-district/22UN,Life Opportunities,8520 - Frinton & Walton Swimming Pool,4597 - Hired Services - Payments to Contractors,16/09/2014,2116094-1,240,2100546 - GCS Alarms,fwsp - gcs alarms
Tendring DC,http://statistics.data.gov.uk/id/local-authority-district/22UN,Life Opportunities,1880 - Office Accommodation Expenses,4632 - Security,23/09/2014,7014930-1,162.5,2100546 - GCS Alarms,INTRUDER ALARM MONITORING 1/4 TO 7.9.14
Tendring DC,http://statistics.data.gov.uk/id/local-authority-district/22UN,Life Opportunities,1880 - Office Accommodation Expenses,4632 - Security,23/09/2014,7014930-10,162.5,2100546 - GCS Alarms,INTRUDER ALARM MONITORING 1/4 TO 7.9.14
Tendring DC,http://statistics.data.gov.uk/id/local-authority-district/22UN,Life Opportunities,1860 - Depots General,4632 - Security,23/09/2014,7014930-11,39.58,2100546 - GCS Alarms,INTRUDER ALARM MONITORING 1/4 TO 7.9.14
Tendring DC,http://statistics.data.gov.uk/id/local-authority-district/22UN,Life Opportunities,1880 - Office Accommodation Expenses,4632 - Security,23/09/2014,7014930-2,162.5,2100546 - GCS Alarms,INTRUDER ALARM MONITORING 1/4 TO 7.9.14
Tendring DC,http://statistics.data.gov.uk/id/local-authority-district/22UN,Life Opportunities,1880 - Office Accommodation Expenses,4632 - Security,23/09/2014,7014930-3,39.58,2100546 - GCS Alarms,INTRUDER ALARM MONITORING 1/4 TO 7.9.14
Tendring DC,http://statistics.data.gov.uk/id/local-authority-district/22UN,Life Opportunities,1880 - Office Accommodation Expenses,4632 - Security,23/09/2014,7014930-4,39.58,2100546 - GCS Alarms,INTRUDER ALARM MONITORING 1/4 TO 7.9.14
Tendring DC,http://statistics.data.gov.uk/id/local-authority-district/22UN,Life Opportunities,1860 - Depots General,4632 - Security,23/09/2014,7014930-5,162.5,2100546 - GCS Alarms,INTRUDER ALARM MONITORING 1/4 TO 7.9.14
Tendring DC,http://statistics.data.gov.uk/id/local-authority-district/22UN,Life Opportunities,1880 - Office Accommodation Expenses,4632 - Security,23/09/2014,7014930-6,39.58,2100546 - GCS Alarms,INTRUDER ALARM MONITORING 1/4 TO 7.9.14
Tendring DC,http://statistics.data.gov.uk/id/local-authority-district/22UN,Life Opportunities,1880 - Office Accommodation Expenses,4632 - Security,23/09/2014,7014930-7,162.5,2100546 - GCS Alarms,INTRUDER ALARM MONITORING 1/4 TO 7.9.14
Tendring DC,http://statistics.data.gov.uk/id/local-authority-district/22UN,Life Opportunities,1880 - Office Accommodation Expenses,4632 - Security,23/09/2014,7014930-8,39.58,2100546 - GCS Alarms,INTRUDER ALARM MONITORING 1/4 TO 7.9.14
Tendring DC,http://statistics.data.gov.uk/id/local-authority-district/22UN,Life Opportunities,1880 - Office Accommodation Expenses,4632 - Security,23/09/2014,7014930-9,162.5,2100546 - GCS Alarms,INTRUDER ALARM MONITORING 1/4 TO 7.9.14
Tendring DC,http://statistics.data.gov.uk/id/local-authority-district/22UN,Life Opportunities,8540 - Leisure Centre Clacton,9283 - Memberships - DD,23/09/2014,1061190-1,11.25,REDACTED PERSONAL DATA,REDACTED PERSONAL DATA
Tendring DC,http://statistics.data.gov.uk/id/local-authority-district/22UN,Life Opportunities,5880 - Management Of Sport & Leisure Facilities,4597 - Hired Services - Payments to Contractors,02/09/2014,1060908-1,91204.04,2114081 - Gipping Construction Ltd,DOVERCOURT POOL EXTENSION
Tendring DC,http://statistics.data.gov.uk/id/local-authority-district/22UN,Life Opportunities,5880 - Management Of Sport & Leisure Facilities,4597 - Hired Services - Payments to Contractors,30/09/2014,1061313-1,171474.38,2114081 - Gipping Construction Ltd,DOVERCOURT POOL UPGRADE
Tendring DC,http://statistics.data.gov.uk/id/local-authority-district/22UN,Life Opportunities,7620 - Air Show,4628 - Hired Services - Air Displays,16/09/2014,2116126-1,896.88,2114297 - Great Oakley Airfield Ltd,avgas for breitling wing walker airshow 14
Tendring DC,http://statistics.data.gov.uk/id/local-authority-district/22UN,Life Opportunities,6160 - Princes Theatre,4105 - Bar/Catering Expenses,09/09/2014,2115965-1,538.43,2112641 - Greene King Brewing and Retailing Ltd,beverages for princes theatre
Tendring DC,http://statistics.data.gov.uk/id/local-authority-district/22UN,Life Opportunities,6160 - Princes Theatre,4105 - Bar/Catering Expenses,23/09/2014,7015001-1,583.42,2112641 - Greene King Brewing and Retailing Ltd,STOCK FOR THEATRE BAR
Tendring DC,http://statistics.data.gov.uk/id/local-authority-district/22UN,Life Opportunities,1880 - Office Accommodation Expenses,2100 - Building Repairs,02/09/2014,1060902-1,360,2106272 - Greenleaf Pest Control Services Ltd,FIT + SECURE BIRD FREE GEL TOWN HALL
Tendring DC,http://statistics.data.gov.uk/id/local-authority-district/22UN,Life Opportunities,1880 - Office Accommodation Expenses,2100 - Building Repairs,02/09/2014,2115892-1,60,2106272 - Greenleaf Pest Control Services Ltd,pigeon proofing at town hall
Tendring DC,http://statistics.data.gov.uk/id/local-authority-district/22UN,Life Opportunities,5480 - HRA - Repair & Maintenance,2017 - Mechanical Equipment /Extract Fans,09/09/2014,2115918-1,85,REDACTED PERSONAL DATA,REDACTED PERSONAL DATA
Tendring DC,http://statistics.data.gov.uk/id/local-authority-district/22UN,Life Opportunities,1880 - Office Accommodation Expenses,2100 - Building Repairs,23/09/2014,2116321-1,180,2106272 - Greenleaf Pest Control Services Ltd,flea spray clacton town hall
Tendring DC,http://statistics.data.gov.uk/id/local-authority-district/22UN,Life Opportunities,1880 - Office Accommodation Expenses,2100 - Building Repairs,23/09/2014,7014934-1,380,2106272 - Greenleaf Pest Control Services Ltd,PEST CONTROL VISITS X 8
Tendring DC,http://statistics.data.gov.uk/id/local-authority-district/22UN,Life Opportunities,5140 - Homelessness,4680 - Bed & Breakfast Accommodation,16/09/2014,2116082-1,240,REDACTED PERSONAL DATA,REDACTED PERSONAL DATA
Tendring DC,http://statistics.data.gov.uk/id/local-authority-district/22UN,Life Opportunities,5140 - Homelessness,4680 - Bed & Breakfast Accommodation,30/09/2014,2116389-1,200,REDACTED PERSONAL DATA,REDACTED PERSONAL DATA
Tendring DC,http://statistics.data.gov.uk/id/local-authority-district/22UN,Life Opportunities,5140 - Homelessness,4680 - Bed & Breakfast Accommodation,23/09/2014,7014951-1,360,REDACTED PERSONAL DATA,REDACTED PERSONAL DATA
Tendring DC,http://statistics.data.gov.uk/id/local-authority-district/22UN,Life Opportunities,5860 - Manningtree Sports Centre,5300 - Resaleable Items,16/09/2014,2116114-1,97.28,2100641 - Gymnastic Enterprises Ltd,gymnastic & trampoline awards
Tendring DC,http://statistics.data.gov.uk/id/local-authority-district/22UN,Life Opportunities,"1580 - Benefits, Revenues and Customer Contact SU",4662 - Examination of Vehicles,30/09/2014,2116331-1,25,2113197 - Hambury Tilmond Ltd,vat on fees collected ct on 867
Tendring DC,http://statistics.data.gov.uk/id/local-authority-district/22UN,Life Opportunities,"1580 - Benefits, Revenues and Customer Contact SU",4662 - Examination of Vehicles,30/09/2014,2116331-2,-25,2113197 - Hambury Tilmond Ltd,vat on fees collected ct on 867
Tendring DC,http://statistics.data.gov.uk/id/local-authority-district/22UN,Life Opportunities,5240 - HRA - Managing Tenancies,5242 - Tenant Relations,09/09/2014,1060997-1,44,2100604 - Harwich Taxis,TRANSPORT 14/8/14
Tendring DC,http://statistics.data.gov.uk/id/local-authority-district/22UN,Life Opportunities,5240 - HRA - Managing Tenancies,5242 - Tenant Relations,09/09/2014,1060998-1,44,2100604 - Harwich Taxis,TRANSPORT 5/8/14
Tendring DC,http://statistics.data.gov.uk/id/local-authority-district/22UN,Life Opportunities,5240 - HRA - Managing Tenancies,5242 - Tenant Relations,16/09/2014,2116164-1,44,REDACTED PERSONAL DATA,REDACTED PERSONAL DATA
Tendring DC,http://statistics.data.gov.uk/id/local-authority-district/22UN,Life Opportunities,5140 - Homelessness,4683 - Other Homelessness Expenses,23/09/2014,1061178-1,194.59,REDACTED PERSONAL DATA,REDACTED PERSONAL DATA
Tendring DC,http://statistics.data.gov.uk/id/local-authority-district/22UN,Life Opportunities,1242 - Corporate Director (Life Opportunities),1710 - Training - Central Department Budget,16/09/2014,2116087-1,450,2108862 - Hbinfo Ltd,overpayments day x 2
Tendring DC,http://statistics.data.gov.uk/id/local-authority-district/22UN,Life Opportunities,8530 - Brightlingsea Swimming Pool,2100 - Building Repairs,30/09/2014,7015082-1,130.29,2100615 - Healey Tool Hire & Sales Limited,HEALEYS - PETROL PUMP
Tendring DC,http://statistics.data.gov.uk/id/local-authority-district/22UN,Life Opportunities,7620 - Air Show,4628 - Hired Services - Air Displays,23/09/2014,7014955-1,17166.67,2103697 - HMG SUB-ACCOUNT 3638,RAF PARTICIPATION AIRSHOW 14
Tendring DC,http://statistics.data.gov.uk/id/local-authority-district/22UN,Life Opportunities,7620 - Air Show,4628 - Hired Services - Air Displays,23/09/2014,7014960-1,4765,2103697 - HMG SUB-ACCOUNT 3638,INSURANCE FOR RAF AIRSHOW 14
Tendring DC,http://statistics.data.gov.uk/id/local-authority-district/22UN,Life Opportunities,H920 - Disabled Facilities Grants,C400 - Grant payments,09/09/2014,1060960-1,1792.12,REDACTED PERSONAL DATA,REDACTED PERSONAL DATA
Tendring DC,http://statistics.data.gov.uk/id/local-authority-district/22UN,Life Opportunities,8540 - Leisure Centre Clacton,2100 - Building Repairs,02/09/2014,2115819-1,104,2101848 - Homecraft Contracts Ltd,repair urinal
Tendring DC,http://statistics.data.gov.uk/id/local-authority-district/22UN,Life Opportunities,7560 - Tourism Publications,4307 - Attractions Leaflet Printing,23/09/2014,2116322-1,95.83,2100687 - Homestead Caravan Centre Ltd,day tent
Tendring DC,http://statistics.data.gov.uk/id/local-authority-district/22UN,Life Opportunities,5220 - HRA - Policy & Management,5930 - Business Planning Expenses,09/09/2014,1061024-1,5416.2,2100648 - HouseMark Ltd,HOUSEMARK SUBSCRIPTION 14/15
Tendring DC,http://statistics.data.gov.uk/id/local-authority-district/22UN,Life Opportunities,5240 - HRA - Managing Tenancies,4312 - Tenancy Stationery,16/09/2014,2116078-1,397.02,2111338 - Housing Partners Limited,june - aug 14
Tendring DC,http://statistics.data.gov.uk/id/local-authority-district/22UN,Life Opportunities,1242 - Corporate Director (Life Opportunities),1710 - Training - Central Department Budget,23/09/2014,2116281-1,199,REDACTED PERSONAL DATA,REDACTED PERSONAL DATA
Tendring DC,http://statistics.data.gov.uk/id/local-authority-district/22UN,Life Opportunities,5220 - HRA - Policy & Management,5930 - Business Planning Expenses,30/09/2014,2116372-1,1095,2102449 - HQN Ltd,annual subs 1/9/14 to 31/8/15
Tendring DC,http://statistics.data.gov.uk/id/local-authority-district/22UN,Life Opportunities,6160 - Princes Theatre,4040 - Equipment & Tools,23/09/2014,7014956-1,85,2113683 - Illuminate Design,2 X PSU FOR CHAUVET LED BATON
Tendring DC,http://statistics.data.gov.uk/id/local-authority-district/22UN,Life Opportunities,C149 - Dovercourt Swimming Pool - redevelopment,C200 - Main Contractor,16/09/2014,2116079-1,2339.92,2108761 - Ingleton Wood,app 11 dsp
Tendring DC,http://statistics.data.gov.uk/id/local-authority-district/22UN,Life Opportunities,C304 - Frinton & Walton Swimming Pool Re-Development,C200 - Main Contractor,16/09/2014,2116153-1,7733.05,2108761 - Ingleton Wood,app 2
Tendring DC,http://statistics.data.gov.uk/id/local-authority-district/22UN,Life Opportunities,1880 - Office Accommodation Expenses,4666 - Hygiene Services,02/09/2014,2115846-1,15.74,2104976 - Initial Washroom Solutions,initial 28/8 to 27/9/14
Tendring DC,http://statistics.data.gov.uk/id/local-authority-district/22UN,Life Opportunities,1860 - Depots General,4666 - Hygiene Services,02/09/2014,2115846-2,7.87,2104976 - Initial Washroom Solutions,initial 28/8 to 27/9/14
Tendring DC,http://statistics.data.gov.uk/id/local-authority-district/22UN,Life Opportunities,1880 - Office Accommodation Expenses,4666 - Hygiene Services,02/09/2014,2115846-3,15.74,2104976 - Initial Washroom Solutions,initial 28/8 to 27/9/14
Tendring DC,http://statistics.data.gov.uk/id/local-authority-district/22UN,Life Opportunities,1880 - Office Accommodation Expenses,4666 - Hygiene Services,02/09/2014,2115846-4,91.6,2104976 - Initial Washroom Solutions,initial 28/8 to 27/9/14
Tendring DC,http://statistics.data.gov.uk/id/local-authority-district/22UN,Life Opportunities,4820 - Public Conveniences,4080 - Materials & Consumables,02/09/2014,2115846-5,108.84,2104976 - Initial Washroom Solutions,initial 28/8 to 27/9/14
Tendring DC,http://statistics.data.gov.uk/id/local-authority-district/22UN,Life Opportunities,1880 - Office Accommodation Expenses,4666 - Hygiene Services,02/09/2014,2115846-6,7.87,2104976 - Initial Washroom Solutions,initial 28/8 to 27/9/14
Tendring DC,http://statistics.data.gov.uk/id/local-authority-district/22UN,Life Opportunities,1880 - Office Accommodation Expenses,4666 - Hygiene Services,30/09/2014,2116387-1,15.74,2104976 - Initial Washroom Solutions,initial 28/9 to 27/10/14
Tendring DC,http://statistics.data.gov.uk/id/local-authority-district/22UN,Life Opportunities,1860 - Depots General,4666 - Hygiene Services,30/09/2014,2116387-2,7.87,2104976 - Initial Washroom Solutions,initial 28/9 to 27/10/14
Tendring DC,http://statistics.data.gov.uk/id/local-authority-district/22UN,Life Opportunities,1880 - Office Accommodation Expenses,4666 - Hygiene Services,30/09/2014,2116387-3,15.74,2104976 - Initial Washroom Solutions,initial 28/9 to 27/10/14
Tendring DC,http://statistics.data.gov.uk/id/local-authority-district/22UN,Life Opportunities,1880 - Office Accommodation Expenses,4666 - Hygiene Services,30/09/2014,2116387-4,91.6,2104976 - Initial Washroom Solutions,initial 28/9 to 27/10/14
Tendring DC,http://statistics.data.gov.uk/id/local-authority-district/22UN,Life Opportunities,4820 - Public Conveniences,4080 - Materials & Consumables,30/09/2014,2116387-5,108.84,2104976 - Initial Washroom Solutions,initial 28/9 to 27/10/14
Tendring DC,http://statistics.data.gov.uk/id/local-authority-district/22UN,Life Opportunities,1880 - Office Accommodation Expenses,4666 - Hygiene Services,30/09/2014,2116387-6,7.87,2104976 - Initial Washroom Solutions,initial 28/9 to 27/10/14
Tendring DC,http://statistics.data.gov.uk/id/local-authority-district/22UN,Life Opportunities,5880 - Management Of Sport & Leisure Facilities,5166 - Marketing and Promotion,23/09/2014,1061218-1,90,2113575 - Intelligent Texting,INTXT UK SEPT
Tendring DC,http://statistics.data.gov.uk/id/local-authority-district/22UN,Life Opportunities,1880 - Office Accommodation Expenses,4448 - Confidential Waste,23/09/2014,2116282-1,89.3,2110936 - IPPlus (UK) Ltd,confidential waste
Tendring DC,http://statistics.data.gov.uk/id/local-authority-district/22UN,Life Opportunities,1880 - Office Accommodation Expenses,4448 - Confidential Waste,23/09/2014,2116282-2,37.6,2110936 - IPPlus (UK) Ltd,confidential waste
Tendring DC,http://statistics.data.gov.uk/id/local-authority-district/22UN,Life Opportunities,1880 - Office Accommodation Expenses,4448 - Confidential Waste,23/09/2014,2116282-3,110.45,2110936 - IPPlus (UK) Ltd,confidential waste
Tendring DC,http://statistics.data.gov.uk/id/local-authority-district/22UN,Life Opportunities,8520 - Frinton & Walton Swimming Pool,4300 - Printing & Stationery,09/09/2014,1061011-1,115,2100724 - IQL UK Ltd,FWSP-IQL UK
Tendring DC,http://statistics.data.gov.uk/id/local-authority-district/22UN,Life Opportunities,8520 - Frinton & Walton Swimming Pool,4597 - Hired Services - Payments to Contractors,30/09/2014,7015076-1,50,REDACTED PERSONAL DATA,REDACTED PERSONAL DATA
Tendring DC,http://statistics.data.gov.uk/id/local-authority-district/22UN,Life Opportunities,8520 - Frinton & Walton Swimming Pool,5300 - Resaleable Items,09/09/2014,1061015-1,409.82,2100755 - J P Lennard Ltd,FWSP-JPLENNARD
Tendring DC,http://statistics.data.gov.uk/id/local-authority-district/22UN,Life Opportunities,8540 - Leisure Centre Clacton,4000 - Furniture,23/09/2014,1061205-1,52.55,2100755 - J P Lennard Ltd,POOL TOYS
Tendring DC,http://statistics.data.gov.uk/id/local-authority-district/22UN,Life Opportunities,8520 - Frinton & Walton Swimming Pool,5300 - Resaleable Items,02/09/2014,2115803-1,235.3,2100755 - J P Lennard Ltd,fwsp - jpl
Tendring DC,http://statistics.data.gov.uk/id/local-authority-district/22UN,Life Opportunities,6355 - Community Activity Network,4597 - Hired Services - Payments to Contractors,02/09/2014,2115810-1,319.39,2100755 - J P Lennard Ltd,t t table
Tendring DC,http://statistics.data.gov.uk/id/local-authority-district/22UN,Life Opportunities,8540 - Leisure Centre Clacton,2100 - Building Repairs,02/09/2014,2115816-1,96.55,2100755 - J P Lennard Ltd,hair dryer
Tendring DC,http://statistics.data.gov.uk/id/local-authority-district/22UN,Life Opportunities,8510 - Dovercourt Swimming Pool & All Weather Facilities,4000 - Furniture,09/09/2014,2116050-1,36.55,2100755 - J P Lennard Ltd,dovercourt pool - clock
Tendring DC,http://statistics.data.gov.uk/id/local-authority-district/22UN,Life Opportunities,8520 - Frinton & Walton Swimming Pool,5300 - Resaleable Items,16/09/2014,2116106-1,281.06,2100755 - J P Lennard Ltd,fwsp - jpl
Tendring DC,http://statistics.data.gov.uk/id/local-authority-district/22UN,Life Opportunities,8540 - Leisure Centre Clacton,4000 - Furniture,23/09/2014,2116312-1,116.55,2100755 - J P Lennard Ltd,overshoes & TT Bats
Tendring DC,http://statistics.data.gov.uk/id/local-authority-district/22UN,Life Opportunities,8520 - Frinton & Walton Swimming Pool,5300 - Resaleable Items,30/09/2014,7015063-1,66.01,2100755 - J P Lennard Ltd,FWSP - J P L
Tendring DC,http://statistics.data.gov.uk/id/local-authority-district/22UN,Life Opportunities,8520 - Frinton & Walton Swimming Pool,5300 - Resaleable Items,30/09/2014,7015063-2,121.36,2100755 - J P Lennard Ltd,FWSP - J P L
Tendring DC,http://statistics.data.gov.uk/id/local-authority-district/22UN,Life Opportunities,8540 - Leisure Centre Clacton,4000 - Furniture,30/09/2014,7015072-1,40.3,2100755 - J P Lennard Ltd,SHUTTLECOCK
Tendring DC,http://statistics.data.gov.uk/id/local-authority-district/22UN,Life Opportunities,6740 - Careline,9050 - Careline Income - General,30/09/2014,1061281-1,12.4,REDACTED PERSONAL DATA,REDACTED PERSONAL DATA
Tendring DC,http://statistics.data.gov.uk/id/local-authority-district/22UN,Life Opportunities,6740 - Careline,9050 - Careline Income - General,30/09/2014,1061282-1,12.4,REDACTED PERSONAL DATA,REDACTED PERSONAL DATA
Tendring DC,http://statistics.data.gov.uk/id/local-authority-district/22UN,Life Opportunities,8520 - Frinton & Walton Swimming Pool,5311 - General Provisions - Vending,30/09/2014,7015047-1,125.7,2109088 - JC Vending Services,FWSP - JC VENDING
Tendring DC,http://statistics.data.gov.uk/id/local-authority-district/22UN,Life Opportunities,5240 - HRA - Managing Tenancies,5242 - Tenant Relations,09/09/2014,1061044-1,10,REDACTED PERSONAL DATA,REDACTED PERSONAL DATA
Tendring DC,http://statistics.data.gov.uk/id/local-authority-district/22UN,Life Opportunities,7520 - Tourism Publicity Marketing Promotion,5160 - Advertising,09/09/2014,2116055-1,4620,2113777 - JoLi Studios,filing for airshow 14
Tendring DC,http://statistics.data.gov.uk/id/local-authority-district/22UN,Life Opportunities,5140 - Homelessness,4683 - Other Homelessness Expenses,23/09/2014,1061172-1,415,REDACTED PERSONAL DATA,REDACTED PERSONAL DATA
Tendring DC,http://statistics.data.gov.uk/id/local-authority-district/22UN,Life Opportunities,5480 - HRA - Repair & Maintenance,2064 - Domestic Appliance Repairs,02/09/2014,2115863-1,25,REDACTED PERSONAL DATA,REDACTED PERSONAL DATA
Tendring DC,http://statistics.data.gov.uk/id/local-authority-district/22UN,Life Opportunities,5480 - HRA - Repair & Maintenance,2064 - Domestic Appliance Repairs,23/09/2014,7014993-1,95,2112159 - Justins Domestic Appliance Repairs,KATE DANIELS HOUSE
Tendring DC,http://statistics.data.gov.uk/id/local-authority-district/22UN,Life Opportunities,5480 - HRA - Repair & Maintenance,2064 - Domestic Appliance Repairs,23/09/2014,7014994-1,65,REDACTED PERSONAL DATA,REDACTED PERSONAL DATA
Tendring DC,http://statistics.data.gov.uk/id/local-authority-district/22UN,Life Opportunities,5480 - HRA - Repair & Maintenance,2064 - Domestic Appliance Repairs,23/09/2014,7014995-1,25,REDACTED PERSONAL DATA,REDACTED PERSONAL DATA
Tendring DC,http://statistics.data.gov.uk/id/local-authority-district/22UN,Life Opportunities,5480 - HRA - Repair & Maintenance,2064 - Domestic Appliance Repairs,23/09/2014,7014996-1,35,2112159 - Justins Domestic Appliance Repairs,VYNTONER HOUSE
Tendring DC,http://statistics.data.gov.uk/id/local-authority-district/22UN,Life Opportunities,5480 - HRA - Repair & Maintenance,2064 - Domestic Appliance Repairs,23/09/2014,7014997-1,100,2112159 - Justins Domestic Appliance Repairs,GREENFIELDS
Tendring DC,http://statistics.data.gov.uk/id/local-authority-district/22UN,Life Opportunities,5480 - HRA - Repair & Maintenance,2064 - Domestic Appliance Repairs,23/09/2014,7014998-1,25,2112159 - Justins Domestic Appliance Repairs,ST MARYS COURT
Tendring DC,http://statistics.data.gov.uk/id/local-authority-district/22UN,Life Opportunities,H860 - Disabled Adaptations,C200 - Main Contractor,30/09/2014,1061255-1,2255,REDACTED PERSONAL DATA,REDACTED PERSONAL DATA
Tendring DC,http://statistics.data.gov.uk/id/local-authority-district/22UN,Life Opportunities,H860 - Disabled Adaptations,C200 - Main Contractor,30/09/2014,1061255-2,3630,REDACTED PERSONAL DATA,REDACTED PERSONAL DATA
Tendring DC,http://statistics.data.gov.uk/id/local-authority-district/22UN,Life Opportunities,1880 - Office Accommodation Expenses,2100 - Building Repairs,23/09/2014,1061153-1,75,2100758 - K A Hockley Ltd,WINDOWS AT TOWN HALL
Tendring DC,http://statistics.data.gov.uk/id/local-authority-district/22UN,Life Opportunities,H800 - Structural Repairs,C200 - Main Contractor,09/09/2014,2115933-1,125,REDACTED PERSONAL DATA,REDACTED PERSONAL DATA
Tendring DC,http://statistics.data.gov.uk/id/local-authority-district/22UN,Life Opportunities,H800 - Structural Repairs,C200 - Main Contractor,16/09/2014,2116077-1,285,REDACTED PERSONAL DATA,REDACTED PERSONAL DATA
Tendring DC,http://statistics.data.gov.uk/id/local-authority-district/22UN,Life Opportunities,7620 - Air Show,4800 - Hospitality,09/09/2014,2116010-1,100,2105605 - Kings Cliff Hotel,bk10436/1 1 room for airshow 14
Tendring DC,http://statistics.data.gov.uk/id/local-authority-district/22UN,Life Opportunities,7620 - Air Show,4800 - Hospitality,09/09/2014,2116011-1,100,2105605 - Kings Cliff Hotel,bk10437/1 1 room for airshow 14
Tendring DC,http://statistics.data.gov.uk/id/local-authority-district/22UN,Life Opportunities,7620 - Air Show,4800 - Hospitality,09/09/2014,2116012-1,50,2105605 - Kings Cliff Hotel,bk10473/1 1 room for airshow 14
Tendring DC,http://statistics.data.gov.uk/id/local-authority-district/22UN,Life Opportunities,7620 - Air Show,4800 - Hospitality,09/09/2014,2116013-1,50,2105605 - Kings Cliff Hotel,bl 10474/1 1 room for airshow 14
Tendring DC,http://statistics.data.gov.uk/id/local-authority-district/22UN,Life Opportunities,7620 - Air Show,4800 - Hospitality,09/09/2014,2116014-1,50,2105605 - Kings Cliff Hotel,bk10478/1 1 room for airshow 14
Tendring DC,http://statistics.data.gov.uk/id/local-authority-district/22UN,Life Opportunities,5480 - HRA - Repair & Maintenance,2072 - Planned Partial Refurbishment To Electrical Instal,23/09/2014,1061240-1,9376.86,2113799 - Kirkman & Jourdain Ltd,UPGRADE TO BELMANS COURT COMMUNAL LIGHTING & D/B AS ATTACHED
Tendring DC,http://statistics.data.gov.uk/id/local-authority-district/22UN,Life Opportunities,8540 - Leisure Centre Clacton,4597 - Hired Services - Payments to Contractors,23/09/2014,1061210-1,250,2100851 - KO-SHEEN Contract Cleaning Ltd,W/E 30.8.14
Tendring DC,http://statistics.data.gov.uk/id/local-authority-district/22UN,Life Opportunities,8540 - Leisure Centre Clacton,4597 - Hired Services - Payments to Contractors,23/09/2014,1061211-1,262.5,2100851 - KO-SHEEN Contract Cleaning Ltd,W/E 23-8-14
Tendring DC,http://statistics.data.gov.uk/id/local-authority-district/22UN,Life Opportunities,8540 - Leisure Centre Clacton,4597 - Hired Services - Payments to Contractors,23/09/2014,1061212-1,462.5,2100851 - KO-SHEEN Contract Cleaning Ltd,W/E 16-8-14
Tendring DC,http://statistics.data.gov.uk/id/local-authority-district/22UN,Life Opportunities,5860 - Manningtree Sports Centre,4601 - Hired services - Cleaning,23/09/2014,1061221-1,51,2100851 - KO-SHEEN Contract Cleaning Ltd,CONTRACT CLEANING X 6 HRS
Tendring DC,http://statistics.data.gov.uk/id/local-authority-district/22UN,Life Opportunities,8540 - Leisure Centre Clacton,4597 - Hired Services - Payments to Contractors,02/09/2014,2115818-1,250,2100851 - KO-SHEEN Contract Cleaning Ltd,we 9/8/14
Tendring DC,http://statistics.data.gov.uk/id/local-authority-district/22UN,Life Opportunities,5360 - HRA - Sheltered Units,4601 - Hired services - Cleaning,23/09/2014,2116284-1,391,2100851 - KO-SHEEN Contract Cleaning Ltd,cleaning 1/9/- 5/9/14
Tendring DC,http://statistics.data.gov.uk/id/local-authority-district/22UN,Life Opportunities,5360 - HRA - Sheltered Units,4601 - Hired services - Cleaning,30/09/2014,2116398-1,425,2100851 - KO-SHEEN Contract Cleaning Ltd,cleaning 8/9/14 to 12/9/14
Tendring DC,http://statistics.data.gov.uk/id/local-authority-district/22UN,Life Opportunities,8540 - Leisure Centre Clacton,4597 - Hired Services - Payments to Contractors,30/09/2014,7015070-1,193.75,2100851 - KO-SHEEN Contract Cleaning Ltd,W/E 06.09.14
Tendring DC,http://statistics.data.gov.uk/id/local-authority-district/22UN,Life Opportunities,"1580 - Benefits, Revenues and Customer Contact SU",4466 - Land Registry Fees,16/09/2014,2116170-1,399,2113091 - Land Registry Commercial Services,august 14 data
Tendring DC,http://statistics.data.gov.uk/id/local-authority-district/22UN,Life Opportunities,7520 - Tourism Publicity Marketing Promotion,5160 - Advertising,09/09/2014,2116040-1,375,2108803 - Landor Travel Publications Ltd,advert aug 14 issue gto mag
Tendring DC,http://statistics.data.gov.uk/id/local-authority-district/22UN,Life Opportunities,5480 - HRA - Repair & Maintenance,2018 - Other Responsive Repairs,02/09/2014,2115874-1,2300,2112730 - Lee Bilsby Ltd,25-32 grove avenue
Tendring DC,http://statistics.data.gov.uk/id/local-authority-district/22UN,Life Opportunities,5480 - HRA - Repair & Maintenance,2020 - Fixed Plant repairs,09/09/2014,2115900-1,160,2112730 - Lee Bilsby Ltd,greenfield
Tendring DC,http://statistics.data.gov.uk/id/local-authority-district/22UN,Life Opportunities,5480 - HRA - Repair & Maintenance,2020 - Fixed Plant repairs,09/09/2014,2115901-1,150,2112730 - Lee Bilsby Ltd,honeycroft
Tendring DC,http://statistics.data.gov.uk/id/local-authority-district/22UN,Life Opportunities,7620 - Air Show,4800 - Hospitality,09/09/2014,2116031-1,2889.44,2100893 - Leisure Hire Marquees Ltd,supply marquee and equpiment for airshow 14
Tendring DC,http://statistics.data.gov.uk/id/local-authority-district/22UN,Life Opportunities,"1580 - Benefits, Revenues and Customer Contact SU",1350 - Agency Staff,30/09/2014,2116395-1,390,2100894 - Liberata UK Ltd,submissions may 14
Tendring DC,http://statistics.data.gov.uk/id/local-authority-district/22UN,Life Opportunities,5140 - Homelessness,4683 - Other Homelessness Expenses,23/09/2014,1061185-1,550,REDACTED PERSONAL DATA,REDACTED PERSONAL DATA
Tendring DC,http://statistics.data.gov.uk/id/local-authority-district/22UN,Life Opportunities,5880 - Management Of Sport & Leisure Facilities,5166 - Marketing and Promotion,02/09/2014,2115807-1,124,2107277 - Look 5 Ltd,hpc look 2 sept
Tendring DC,http://statistics.data.gov.uk/id/local-authority-district/22UN,Life Opportunities,5800 - Brightlingsea Sports Centre,5160 - Advertising,23/09/2014,2116311-1,124,2107277 - Look 5 Ltd,look 2 oct
Tendring DC,http://statistics.data.gov.uk/id/local-authority-district/22UN,Life Opportunities,1230 - Strategic Housing & Needs Management,3302 - Car/Cycle Allowances - Officers,23/09/2014,1061228-1,36.6,2113693 - Luke Tappenden,MILEAGE LUKE TAPPENDEN-CAREER TRACK
Tendring DC,http://statistics.data.gov.uk/id/local-authority-district/22UN,Life Opportunities,6160 - Princes Theatre,4597 - Hired Services - Payments to Contractors,23/09/2014,7014925-1,150,2100837 - M A Williams,STOCK TAKING THEATRE BAR SEPT 14
Tendring DC,http://statistics.data.gov.uk/id/local-authority-district/22UN,Life Opportunities,6160 - Princes Theatre,4105 - Bar/Catering Expenses,30/09/2014,7015031-1,184.45,2105052 - Maddisons,CUPS FOR THEATRE
Tendring DC,http://statistics.data.gov.uk/id/local-authority-district/22UN,Life Opportunities,5240 - HRA - Managing Tenancies,5242 - Tenant Relations,09/09/2014,2116034-1,120,2113137 - Manningtree Taxis,"transport 5/8, 14/8 and 26/8"
Tendring DC,http://statistics.data.gov.uk/id/local-authority-district/22UN,Life Opportunities,H815 - Re-roofing,C200 - Main Contractor,30/09/2014,1061258-1,1053,2111055 - Mansell Roofing Ltd,BEDFORD ROAD
Tendring DC,http://statistics.data.gov.uk/id/local-authority-district/22UN,Life Opportunities,H815 - Re-roofing,C200 - Main Contractor,02/09/2014,7014862-1,6428,2111055 - Mansell Roofing Ltd,MAPLE CLOSE
Tendring DC,http://statistics.data.gov.uk/id/local-authority-district/22UN,Life Opportunities,6740 - Careline,5160 - Advertising,16/09/2014,2116086-1,85,2111922 - Mansion House Publishing (UK) Ltd,in touce sept 14
Tendring DC,http://statistics.data.gov.uk/id/local-authority-district/22UN,Life Opportunities,H920 - Disabled Facilities Grants,C400 - Grant payments,09/09/2014,1060954-1,2910,REDACTED PERSONAL DATA,REDACTED PERSONAL DATA
Tendring DC,http://statistics.data.gov.uk/id/local-authority-district/22UN,Life Opportunities,H920 - Disabled Facilities Grants,C400 - Grant payments,30/09/2014,1061268-1,4079.56,REDACTED PERSONAL DATA,REDACTED PERSONAL DATA
Tendring DC,http://statistics.data.gov.uk/id/local-authority-district/22UN,Life Opportunities,1090 - Chief Executive and Support Service Unit,4355 - Books & Periodicals,09/09/2014,2115966-1,62.3,2112734 - Matt's Carousel,milk and papers aug 14
Tendring DC,http://statistics.data.gov.uk/id/local-authority-district/22UN,Life Opportunities,1100 - Corporate Director (Corporate Services) and Admin Service Unit,4355 - Books & Periodicals,09/09/2014,2115966-2,46.25,2112734 - Matt's Carousel,milk and papers aug 14
Tendring DC,http://statistics.data.gov.uk/id/local-authority-district/22UN,Life Opportunities,1040 - Regeneration Service Unit,4355 - Books & Periodicals,09/09/2014,2115966-3,19.6,2112734 - Matt's Carousel,milk and papers aug 14
Tendring DC,http://statistics.data.gov.uk/id/local-authority-district/22UN,Life Opportunities,"1580 - Benefits, Revenues and Customer Contact SU",4355 - Books & Periodicals,09/09/2014,2115966-4,19.6,2112734 - Matt's Carousel,milk and papers aug 14
Tendring DC,http://statistics.data.gov.uk/id/local-authority-district/22UN,Life Opportunities,8540 - Leisure Centre Clacton,2100 - Building Repairs,02/09/2014,2115812-1,50.25,2101791 - Medlock Electrical,light bulbs
Tendring DC,http://statistics.data.gov.uk/id/local-authority-district/22UN,Life Opportunities,1880 - Office Accommodation Expenses,4080 - Materials & Consumables,09/09/2014,2115926-1,48.25,2101791 - Medlock Electrical,lamps & tubes
Tendring DC,http://statistics.data.gov.uk/id/local-authority-district/22UN,Life Opportunities,8540 - Leisure Centre Clacton,2100 - Building Repairs,23/09/2014,2116310-1,35.4,2101791 - Medlock Electrical,light bulbs
Tendring DC,http://statistics.data.gov.uk/id/local-authority-district/22UN,Life Opportunities,8540 - Leisure Centre Clacton,2100 - Building Repairs,02/09/2014,7014844-1,19.2,2101791 - Medlock Electrical,LIGHT BULBS
Tendring DC,http://statistics.data.gov.uk/id/local-authority-district/22UN,Life Opportunities,5240 - HRA - Managing Tenancies,5242 - Tenant Relations,09/09/2014,1061037-1,10,REDACTED PERSONAL DATA,REDACTED PERSONAL DATA
Tendring DC,http://statistics.data.gov.uk/id/local-authority-district/22UN,Life Opportunities,8540 - Leisure Centre Clacton,9284 - Memberships - Cash,23/09/2014,1061188-1,16.67,REDACTED PERSONAL DATA,REDACTED PERSONAL DATA
Tendring DC,http://statistics.data.gov.uk/id/local-authority-district/22UN,Life Opportunities,5140 - Homelessness,4683 - Other Homelessness Expenses,23/09/2014,1061173-1,179,REDACTED PERSONAL DATA,REDACTED PERSONAL DATA
Tendring DC,http://statistics.data.gov.uk/id/local-authority-district/22UN,Life Opportunities,5140 - Homelessness,4683 - Other Homelessness Expenses,23/09/2014,1061177-1,652.9,REDACTED PERSONAL DATA,REDACTED PERSONAL DATA
Tendring DC,http://statistics.data.gov.uk/id/local-authority-district/22UN,Life Opportunities,1242 - Corporate Director (Life Opportunities),1710 - Training - Central Department Budget,23/09/2014,1061224-1,430.2,2112603 - Mile End Climbing Wall,WALL TRAINING 10/8 TO 7/9/14
Tendring DC,http://statistics.data.gov.uk/id/local-authority-district/22UN,Life Opportunities,9920 - HRA Balance Sheet,B860 - Housing Rents - Cash,23/09/2014,7015014-1,73.76,REDACTED PERSONAL DATA,REDACTED PERSONAL DATA
Tendring DC,http://statistics.data.gov.uk/id/local-authority-district/22UN,Life Opportunities,9920 - HRA Balance Sheet,B860 - Housing Rents - Cash,23/09/2014,7015013-1,236.08,REDACTED PERSONAL DATA,REDACTED PERSONAL DATA
Tendring DC,http://statistics.data.gov.uk/id/local-authority-district/22UN,Life Opportunities,9920 - HRA Balance Sheet,B860 - Housing Rents - Cash,02/09/2014,7014855-1,29.2,REDACTED PERSONAL DATA,REDACTED PERSONAL DATA
Tendring DC,http://statistics.data.gov.uk/id/local-authority-district/22UN,Life Opportunities,8540 - Leisure Centre Clacton,4400 - Maintenance Under Service Agreements,23/09/2014,2116308-1,66.2,2104791 - Mobile Mini Uk Ltd,27/8/14 - 23/9/14
Tendring DC,http://statistics.data.gov.uk/id/local-authority-district/22UN,Life Opportunities,8530 - Brightlingsea Swimming Pool,4200 - Clothing & Uniforms,23/09/2014,2116319-1,24,2109450 - Monster Merchandise Ltd,monster merchandise - uniform
Tendring DC,http://statistics.data.gov.uk/id/local-authority-district/22UN,Life Opportunities,H920 - Disabled Facilities Grants,C400 - Grant payments,09/09/2014,1060956-1,1085,REDACTED PERSONAL DATA,REDACTED PERSONAL DATA
Tendring DC,http://statistics.data.gov.uk/id/local-authority-district/22UN,Life Opportunities,5480 - HRA - Repair & Maintenance,2073 - Smoke Alarm Service/Testing,23/09/2014,1061233-1,987,2111370 - Morrison Facilities Services,GAS SERVICE & REPAIR-SOUTH AREA 14/15
Tendring DC,http://statistics.data.gov.uk/id/local-authority-district/22UN,Life Opportunities,5480 - HRA - Repair & Maintenance,2075 - Gas Service Contract Servicing/Testing (Domestic I,23/09/2014,1061233-2,2562.7,2111370 - Morrison Facilities Services,GAS SERVICE & REPAIR-SOUTH AREA 14/15
Tendring DC,http://statistics.data.gov.uk/id/local-authority-district/22UN,Life Opportunities,5480 - HRA - Repair & Maintenance,2076 - Gas Service Contract Other Refurbishment/Repairs (,23/09/2014,1061233-3,4829.15,2111370 - Morrison Facilities Services,GAS SERVICE & REPAIR-SOUTH AREA 14/15
Tendring DC,http://statistics.data.gov.uk/id/local-authority-district/22UN,Life Opportunities,8540 - Leisure Centre Clacton,5311 - General Provisions - Vending,30/09/2014,7015069-1,159.77,2113825 - Morvend Ltd,VEND SUPPLIES
Tendring DC,http://statistics.data.gov.uk/id/local-authority-district/22UN,Life Opportunities,5240 - HRA - Managing Tenancies,5242 - Tenant Relations,09/09/2014,1061038-1,10,REDACTED PERSONAL DATA,REDACTED PERSONAL DATA
Tendring DC,http://statistics.data.gov.uk/id/local-authority-district/22UN,Life Opportunities,H920 - Disabled Facilities Grants,C400 - Grant payments,09/09/2014,1060953-1,4980,REDACTED PERSONAL DATA,REDACTED PERSONAL DATA
Tendring DC,http://statistics.data.gov.uk/id/local-authority-district/22UN,Life Opportunities,9920 - HRA Balance Sheet,B860 - Housing Rents - Cash,09/09/2014,1060946-1,102.71,REDACTED PERSONAL DATA,REDACTED PERSONAL DATA
Tendring DC,http://statistics.data.gov.uk/id/local-authority-district/22UN,Life Opportunities,6481 - Flood Support Schemes - Repair & Renew Grant Funded,4900 - Grants,23/09/2014,1061191-1,1630.83,REDACTED PERSONAL DATA,REDACTED PERSONAL DATA
Tendring DC,http://statistics.data.gov.uk/id/local-authority-district/22UN,Life Opportunities,9920 - HRA Balance Sheet,B860 - Housing Rents - Cash,30/09/2014,1061273-1,394.08,REDACTED PERSONAL DATA,REDACTED PERSONAL DATA
Tendring DC,http://statistics.data.gov.uk/id/local-authority-district/22UN,Life Opportunities,5240 - HRA - Managing Tenancies,6625 - Tenants Compensation Scheme,09/09/2014,1061046-1,500,REDACTED PERSONAL DATA,REDACTED PERSONAL DATA
Tendring DC,http://statistics.data.gov.uk/id/local-authority-district/22UN,Life Opportunities,9920 - HRA Balance Sheet,B860 - Housing Rents - Cash,30/09/2014,1061271-1,429.26,REDACTED PERSONAL DATA,REDACTED PERSONAL DATA
Tendring DC,http://statistics.data.gov.uk/id/local-authority-district/22UN,Life Opportunities,9920 - HRA Balance Sheet,B860 - Housing Rents - Cash,16/09/2014,1061079-1,18.74,REDACTED PERSONAL DATA,REDACTED PERSONAL DATA
Tendring DC,http://statistics.data.gov.uk/id/local-authority-district/22UN,Life Opportunities,6740 - Careline,9050 - Careline Income - General,30/09/2014,1061280-1,12.4,REDACTED PERSONAL DATA,REDACTED PERSONAL DATA
Tendring DC,http://statistics.data.gov.uk/id/local-authority-district/22UN,Life Opportunities,5140 - Homelessness,4683 - Other Homelessness Expenses,23/09/2014,1061186-1,435,REDACTED PERSONAL DATA,REDACTED PERSONAL DATA
Tendring DC,http://statistics.data.gov.uk/id/local-authority-district/22UN,Life Opportunities,H920 - Disabled Facilities Grants,C400 - Grant payments,30/09/2014,1061267-1,2668.63,REDACTED PERSONAL DATA,REDACTED PERSONAL DATA
Tendring DC,http://statistics.data.gov.uk/id/local-authority-district/22UN,Life Opportunities,5960 - Recreation Grounds,9286 - Leisure Centre Facilities - General Hire & Bookings,16/09/2014,1061078-1,16.85,REDACTED PERSONAL DATA,REDACTED PERSONAL DATA
Tendring DC,http://statistics.data.gov.uk/id/local-authority-district/22UN,Life Opportunities,5220 - HRA - Policy & Management,5930 - Business Planning Expenses,09/09/2014,1060966-1,4000,2113511 - Mr Rory Clarke,AIRSHOW INJUNCTION
Tendring DC,http://statistics.data.gov.uk/id/local-authority-district/22UN,Life Opportunities,6740 - Careline,9050 - Careline Income - General,02/09/2014,2115833-1,7.8,REDACTED PERSONAL DATA,REDACTED PERSONAL DATA
Tendring DC,http://statistics.data.gov.uk/id/local-authority-district/22UN,Life Opportunities,5240 - HRA - Managing Tenancies,5242 - Tenant Relations,09/09/2014,1061041-1,10,REDACTED PERSONAL DATA,REDACTED PERSONAL DATA
Tendring DC,http://statistics.data.gov.uk/id/local-authority-district/22UN,Life Opportunities,9920 - HRA Balance Sheet,B860 - Housing Rents - Cash,09/09/2014,1060945-1,159.97,REDACTED PERSONAL DATA,REDACTED PERSONAL DATA
Tendring DC,http://statistics.data.gov.uk/id/local-authority-district/22UN,Life Opportunities,9920 - HRA Balance Sheet,B860 - Housing Rents - Cash,16/09/2014,1061076-1,336.51,REDACTED PERSONAL DATA,REDACTED PERSONAL DATA
Tendring DC,http://statistics.data.gov.uk/id/local-authority-district/22UN,Life Opportunities,7610 - TDC Events - Council Owned Land,4094 - Other Equipment Hire/Leasing,09/09/2014,2116039-1,300,2103915 - MRL Productions,changing room for airshow 14
Tendring DC,http://statistics.data.gov.uk/id/local-authority-district/22UN,Life Opportunities,9920 - HRA Balance Sheet,B860 - Housing Rents - Cash,30/09/2014,1061274-1,213,REDACTED PERSONAL DATA,REDACTED PERSONAL DATA
Tendring DC,http://statistics.data.gov.uk/id/local-authority-district/22UN,Life Opportunities,5240 - HRA - Managing Tenancies,6620 - Under Occupation Incentive Scheme,09/09/2014,1060965-1,349.47,REDACTED PERSONAL DATA,REDACTED PERSONAL DATA
Tendring DC,http://statistics.data.gov.uk/id/local-authority-district/22UN,Life Opportunities,9920 - HRA Balance Sheet,B860 - Housing Rents - Cash,30/09/2014,1061261-1,100,REDACTED PERSONAL DATA,REDACTED PERSONAL DATA
Tendring DC,http://statistics.data.gov.uk/id/local-authority-district/22UN,Life Opportunities,9920 - HRA Balance Sheet,B860 - Housing Rents - Cash,02/09/2014,7014854-1,39.63,REDACTED PERSONAL DATA,REDACTED PERSONAL DATA
Tendring DC,http://statistics.data.gov.uk/id/local-authority-district/22UN,Life Opportunities,8520 - Frinton & Walton Swimming Pool,9283 - Memberships - DD,30/09/2014,1061260-1,152.08,REDACTED PERSONAL DATA,REDACTED PERSONAL DATA
Tendring DC,http://statistics.data.gov.uk/id/local-authority-district/22UN,Life Opportunities,9920 - HRA Balance Sheet,B860 - Housing Rents - Cash,30/09/2014,1061272-1,1032.03,REDACTED PERSONAL DATA,REDACTED PERSONAL DATA
Tendring DC,http://statistics.data.gov.uk/id/local-authority-district/22UN,Life Opportunities,6740 - Careline,9050 - Careline Income - General,30/09/2014,1061283-1,13.02,REDACTED PERSONAL DATA,REDACTED PERSONAL DATA
Tendring DC,http://statistics.data.gov.uk/id/local-authority-district/22UN,Life Opportunities,6740 - Careline,9050 - Careline Income - General,30/09/2014,1061284-1,13.2,REDACTED PERSONAL DATA,REDACTED PERSONAL DATA
Tendring DC,http://statistics.data.gov.uk/id/local-authority-district/22UN,Life Opportunities,8520 - Frinton & Walton Swimming Pool,9228 - Swimming Lessons,09/09/2014,1060949-1,43,REDACTED PERSONAL DATA,REDACTED PERSONAL DATA
Tendring DC,http://statistics.data.gov.uk/id/local-authority-district/22UN,Life Opportunities,5240 - HRA - Managing Tenancies,5242 - Tenant Relations,09/09/2014,1061043-1,10,REDACTED PERSONAL DATA,REDACTED PERSONAL DATA
Tendring DC,http://statistics.data.gov.uk/id/local-authority-district/22UN,Life Opportunities,6740 - Careline,9050 - Careline Income - General,02/09/2014,2115832-1,6.6,REDACTED PERSONAL DATA,REDACTED PERSONAL DATA
Tendring DC,http://statistics.data.gov.uk/id/local-authority-district/22UN,Life Opportunities,5820 - Harwich Sports Centre,4597 - Hired Services - Payments to Contractors,16/09/2014,2116096-1,60,2112299 - My Time Fitness Ltd,fitness classes
Tendring DC,http://statistics.data.gov.uk/id/local-authority-district/22UN,Life Opportunities,8510 - Dovercourt Swimming Pool & All Weather Facilities,4000 - Furniture,02/09/2014,2115841-1,1088,2102791 - Nantmor Blinds Ltd,dovercourt pools - blinds
Tendring DC,http://statistics.data.gov.uk/id/local-authority-district/22UN,Life Opportunities,5800 - Brightlingsea Sports Centre,4000 - Furniture,23/09/2014,2116276-1,139.68,2102791 - Nantmor Blinds Ltd,nantmor blinds ltd
Tendring DC,http://statistics.data.gov.uk/id/local-authority-district/22UN,Life Opportunities,1240 - Commercial Management,3311 - Travelling Career Track,09/09/2014,1061029-1,60,REDACTED PERSONAL DATA,REDACTED PERSONAL DATA
Tendring DC,http://statistics.data.gov.uk/id/local-authority-district/22UN,Life Opportunities,7600 - Tourist Information Centres,9356 - Commission Sales,09/09/2014,2115968-1,966.6,2110032 - National Express Ltd,national express aug 14
Tendring DC,http://statistics.data.gov.uk/id/local-authority-district/22UN,Life Opportunities,7600 - Tourist Information Centres,9356 - Commission Sales,09/09/2014,2115968-2,-83.54,2110032 - National Express Ltd,national express aug 14
Tendring DC,http://statistics.data.gov.uk/id/local-authority-district/22UN,Life Opportunities,6160 - Princes Theatre,5160 - Advertising,09/09/2014,1061003-1,99,2113536 - Newsquest Media Group,EVENING GAZETTE 20/8/14
Tendring DC,http://statistics.data.gov.uk/id/local-authority-district/22UN,Life Opportunities,6160 - Princes Theatre,5160 - Advertising,09/09/2014,1061004-1,120,2113536 - Newsquest Media Group,EVENING GAZETTE 20/8/14
Tendring DC,http://statistics.data.gov.uk/id/local-authority-district/22UN,Life Opportunities,5880 - Management Of Sport & Leisure Facilities,5166 - Marketing and Promotion,02/09/2014,2115808-1,489.84,2113536 - Newsquest Media Group,cfg/hms 31/7 & 1/8
Tendring DC,http://statistics.data.gov.uk/id/local-authority-district/22UN,Life Opportunities,6160 - Princes Theatre,5160 - Advertising,02/09/2014,2115856-1,84.3,2113536 - Newsquest Media Group,gazette 14/8/14
Tendring DC,http://statistics.data.gov.uk/id/local-authority-district/22UN,Life Opportunities,6160 - Princes Theatre,5160 - Advertising,16/09/2014,2116157-1,84.3,2113536 - Newsquest Media Group,princes theatre 28/8/14
Tendring DC,http://statistics.data.gov.uk/id/local-authority-district/22UN,Life Opportunities,6160 - Princes Theatre,5160 - Advertising,23/09/2014,2116320-1,100,2113536 - Newsquest Media Group,h&m std 5/9/14
Tendring DC,http://statistics.data.gov.uk/id/local-authority-district/22UN,Life Opportunities,1240 - Commercial Management,3311 - Travelling Career Track,09/09/2014,1061031-1,21.4,REDACTED PERSONAL DATA,REDACTED PERSONAL DATA
Tendring DC,http://statistics.data.gov.uk/id/local-authority-district/22UN,Life Opportunities,1240 - Commercial Management,3311 - Travelling Career Track,30/09/2014,1061262-1,60,REDACTED PERSONAL DATA,REDACTED PERSONAL DATA
Tendring DC,http://statistics.data.gov.uk/id/local-authority-district/22UN,Life Opportunities,1240 - Commercial Management,3311 - Travelling Career Track,30/09/2014,1061263-1,44.4,REDACTED PERSONAL DATA,REDACTED PERSONAL DATA
Tendring DC,http://statistics.data.gov.uk/id/local-authority-district/22UN,Life Opportunities,5140 - Homelessness,4683 - Other Homelessness Expenses,23/09/2014,1061182-1,850,REDACTED PERSONAL DATA,REDACTED PERSONAL DATA
Tendring DC,http://statistics.data.gov.uk/id/local-authority-district/22UN,Life Opportunities,5140 - Homelessness,4683 - Other Homelessness Expenses,23/09/2014,1061183-1,381.22,REDACTED PERSONAL DATA,REDACTED PERSONAL DATA
Tendring DC,http://statistics.data.gov.uk/id/local-authority-district/22UN,Life Opportunities,7520 - Tourism Publicity Marketing Promotion,4880 - Subscriptions Paid,09/09/2014,2116054-1,175,2112380 - NOEA,noea annual membership 2014/15
Tendring DC,http://statistics.data.gov.uk/id/local-authority-district/22UN,Life Opportunities,5260 - HRA - Rent Collection And Accounting,4757 - IT External Charges,16/09/2014,2116083-1,250,2105490 - Northgate Housing User Group,user group fees 2014/15
Tendring DC,http://statistics.data.gov.uk/id/local-authority-district/22UN,Life Opportunities,H880 - New Build Initiatives and Acquisitions,C200 - Main Contractor,09/09/2014,1060999-1,945,2111951 - NPS Property Consultants Ltd,GORSEWAY
Tendring DC,http://statistics.data.gov.uk/id/local-authority-district/22UN,Life Opportunities,H880 - New Build Initiatives and Acquisitions,C200 - Main Contractor,09/09/2014,1061000-1,761,2111951 - NPS Property Consultants Ltd,LOTUS WAY
Tendring DC,http://statistics.data.gov.uk/id/local-authority-district/22UN,Life Opportunities,H880 - New Build Initiatives and Acquisitions,C200 - Main Contractor,09/09/2014,1061001-1,893,2111951 - NPS Property Consultants Ltd,LOTUS WAY
Tendring DC,http://statistics.data.gov.uk/id/local-authority-district/22UN,Life Opportunities,8530 - Brightlingsea Swimming Pool,2700 - Cleaning Materials,09/09/2014,1060988-1,40.8,2101011 - Nucleus Watersports,NUCLEUS-THROWBAGS
Tendring DC,http://statistics.data.gov.uk/id/local-authority-district/22UN,Life Opportunities,6160 - Princes Theatre,4040 - Equipment & Tools,16/09/2014,2116129-1,32.2,2101032 - Old Road Paint and Wallpaper Supplies,paint for theatre
Tendring DC,http://statistics.data.gov.uk/id/local-authority-district/22UN,Life Opportunities,5140 - Homelessness,4683 - Other Homelessness Expenses,23/09/2014,1061174-1,272,REDACTED PERSONAL DATA,REDACTED PERSONAL DATA
Tendring DC,http://statistics.data.gov.uk/id/local-authority-district/22UN,Life Opportunities,H920 - Disabled Facilities Grants,C400 - Grant payments,09/09/2014,1060963-1,4539.25,REDACTED PERSONAL DATA,REDACTED PERSONAL DATA
Tendring DC,http://statistics.data.gov.uk/id/local-authority-district/22UN,Life Opportunities,H920 - Disabled Facilities Grants,C400 - Grant payments,30/09/2014,1061266-1,5005.15,REDACTED PERSONAL DATA,REDACTED PERSONAL DATA
Tendring DC,http://statistics.data.gov.uk/id/local-authority-district/22UN,Life Opportunities,5860 - Manningtree Sports Centre,5311 - General Provisions - Vending,09/09/2014,1060989-1,49.99,2101083 - Osgood Smith,VENDING SUPPLIES
Tendring DC,http://statistics.data.gov.uk/id/local-authority-district/22UN,Life Opportunities,8520 - Frinton & Walton Swimming Pool,5311 - General Provisions - Vending,09/09/2014,1060990-1,15.45,2101083 - Osgood Smith,FWSP-OSGOOD SMITH
Tendring DC,http://statistics.data.gov.uk/id/local-authority-district/22UN,Life Opportunities,8520 - Frinton & Walton Swimming Pool,5311 - General Provisions - Vending,09/09/2014,1060991-1,279.17,2101083 - Osgood Smith,FWSP-OSGOOD SMITH
Tendring DC,http://statistics.data.gov.uk/id/local-authority-district/22UN,Life Opportunities,5820 - Harwich Sports Centre,5311 - General Provisions - Vending,09/09/2014,1060993-1,31.63,2101083 - Osgood Smith,CANTEEN GOODS
Tendring DC,http://statistics.data.gov.uk/id/local-authority-district/22UN,Life Opportunities,8540 - Leisure Centre Clacton,5500 - Miscellaneous Expenses,09/09/2014,1061005-1,627.91,2101083 - Osgood Smith,VEND PROVISIONS
